Workbook

Sheet Petanque
B1: Ctrl x | D1: Ctrl y | J1: Ctrl z | K1: =SUM(K3:K102) -> 0 | L1: =SUM(L3:L102) -> 0 | M1: 0 | N1: 0 | O1: 0 | P1: 0 | Q1: 0 | R1: 0 | S1: 0 | T1: 0 | U1: 0 | V1: 0 | W1: 0 | X1: 0 | Y1: 0 | Z1: 0 | AA1: 0 | AB1: 0 | AC1: 0 | AD1: 0 | AE1: 0 | AF1: -12 | AG1: 0 | AH1: 0 | AI1: 0 | AJ1: 0 | AK1: 0 | AL1: 0 | AM1: 0 | AN1: 0 | AO1: 0 | AP1: 0 | AQ1: 0 | AR1: 0 | AS1: 0 | AT1: 0 | AU1: 0 | AV1: 0 | AW1: 0 | AX1: 0 | AY1: 0 | AZ1: 0 | BA1: 0 | BB1: 0 | BC1: 0 | BD1: 0 | BE1: 0 | BF1: 0 | BG1: 0 | BH1: 0
A2: Nr. | B2: _Voornaam _ | C2: _Ts._ | D2: __Achternaam__ | E2: Gesp. | F2: Gew. | G2: Punten | H2: Procent | I2: Hulpkolom | J2: Uitlslag | K2: 01 | L2: 02 | M2: 03 | N2: 04 | O2: 05 | P2: 06 | Q2: 07 | R2: 08 | S2: 09 | T2: 10 | U2: 11 | V2: 12 | W2: 13 | X2: 14 | Y2: 15 | Z2: 16 | AA2: 17 | AB2: 18 | AC2: 19 | AD2: 20 | AE2: 21 | AF2: 22 | AG2: 23 | AH2: 24 | AI2: 25 | AJ2: 26 | AK2: 27 | AL2: 28 | AM2: 29 | AN2: 30 | AO2: 31 | AP2: 32 | AQ2: 33 | AR2: 34 | AS2: 35 | AT2: 36 | AU2: 37 | AV2: 38 | AW2: 39 | AX2: 40 | AY2: 41 | AZ2: 42 | BA2: 43 | BB2: 44 | BC2: 45 | BD2: 46 | BE2: 47 | BF2: 48 | BG2: 49 | BH2: 50 | BJ2: 01 | BK2: 02 | BL2: 03 | BM2: 04 | BN2: 05 | BO2: 06 | BP2: 07 | BQ2: 08 | BR2: 09 | BS2: 10 | BT2: 11 | BU2: 12 | BV2: 13 | BW2: 14 | BX2: 15 | BY2: 16 | BZ2: 17 | CA2: 18 | CB2: 19 | CC2: 20 | CD2: 21 | CE2: 22 | CF2: 23 | CG2: 24 | CH2: 25 | CI2: 26 | CJ2: 27 | CK2: 28 | CL2: 29 | CM2: 30 | CN2: 31 | CO2: 32 | CP2: 33 | CQ2: 34 | CR2: 35 | CS2: 36 | CT2: 37 | CU2: 38 | CV2: 39 | CW2: 40 | CX2: 41 | CY2: 42 | CZ2: 43 | DA2: 44 | DB2: 45 | DC2: 46 | DD2: 47 | DE2: 48 | DF2: 49 | DG2: 50
A3: 0 | B3: TRIPLET | C3: - | D3: DOUBLET | E3: XXXXX | F3: XXXXX | G3: XXXXX | H3: XXXXXXX | I3: XXXXXXX | J3: XXXXXXX | M3: -9 | N3: 11 | O3: -6 | P3: -10 | AC3: -3 | AD3: -8 | BJ3: =IF(K3>0,1,0) -> 0 | BK3: =IF(L3>0,1,0) -> 0 | BL3: =IF(M3>0,1,0) -> 0 | BM3: =IF(N3>0,1,0) -> 1 | BN3: =IF(O3>0,1,0) -> 0 | BO3: =IF(P3>0,1,0) -> 0 | BP3: =IF(Q3>0,1,0) -> 0 | BQ3: =IF(R3>0,1,0) -> 0 | BR3: =IF(S3>0,1,0) -> 0 | BS3: =IF(T3>0,1,0) -> 0 | BT3: =IF(U3>0,1,0) -> 0 | BU3: =IF(V3>0,1,0) -> 0 | BV3: =IF(W3>0,1,0) -> 0 | BW3: =IF(X3>0,1,0) -> 0 | BX3: =IF(Y3>0,1,0) -> 0 | BY3: =IF(Z3>0,1,0) -> 0 | BZ3: =IF(AA3>0,1,0) -> 0 | CA3: =IF(AB3>0,1,0) -> 0 | CB3: =IF(AC3>0,1,0) -> 0 | CC3: =IF(AD3>0,1,0) -> 0 | CD3: =IF(AE3>0,1,0) -> 0 | CE3: =IF(AF3>0,1,0) -> 0 | CF3: =IF(AG3>0,1,0) -> 0 | CG3: =IF(AH3>0,1,0) -> 0 | CH3: =IF(AI3>0,1,0) -> 0 | CI3: =IF(AJ3>0,1,0) -> 0 | CJ3: =IF(AK3>0,1,0) -> 0 | CK3: =IF(AL3>0,1,0) -> 0 | CL3: =IF(AM3>0,1,0) -> 0 | CM3: =IF(AN3>0,1,0) -> 0 | CN3: =IF(AO3>0,1,0) -> 0 | CO3: =IF(AP3>0,1,0) -> 0 | CP3: =IF(AQ3>0,1,0) -> 0 | CQ3: =IF(AR3>0,1,0) -> 0 | CR3: =IF(AS3>0,1,0) -> 0 | CS3: =IF(AT3>0,1,0) -> 0 | CT3: =IF(AU3>0,1,0) -> 0 | CU3: =IF(AV3>0,1,0) -> 0 | CV3: =IF(AW3>0,1,0) -> 0 | CW3: =IF(AX3>0,1,0) -> 0 | CX3: =IF(AY3>0,1,0) -> 0 | CY3: =IF(AZ3>0,1,0) -> 0 | CZ3: =IF(BA3>0,1,0) -> 0 | DA3: =IF(BB3>0,1,0) -> 0 | DB3: =IF(BC3>0,1,0) -> 0 | DC3: =IF(BD3>0,1,0) -> 0 | DD3: =IF(BE3>0,1,0) -> 0 | DE3: =IF(BF3>0,1,0) -> 0 | DF3: =IF(BG3>0,1,0) -> 0 | DG3: =IF(BH3>0,1,0) -> 0
A4: 33 | B4: Henk | C4: v | D4: Aarle | E4: =COUNT(K4:BH4) -> 14 | F4: =SUM(BJ4:DG4) -> 7 | G4: =SUM(K4:BH4) -> -12 | H4: =IF(E4=0,-0.99,F4/E4) -> 0.5 | I4: =IF(AND(E4>0,E4<0.5*$B$103),-0.01,H4) -> 0.5 | J4: =IF(I4>=0,I4,IF(I4=-0.01,"<1/2","")) -> 0.5 | K4: 8 | L4: 6 | M4: -2 | N4: -7 | S4: -2 | T4: -9 | U4: 11 | V4: 2 | W4: -11 | X4: -12 | AC4: -6 | AD4: 1 | AE4: 2 | AF4: 7 | BJ4: =IF(K4>0,1,0) -> 1 | BK4: =IF(L4>0,1,0) -> 1 | BL4: =IF(M4>0,1,0) -> 0 | BM4: =IF(N4>0,1,0) -> 0 | BN4: =IF(O4>0,1,0) -> 0 | BO4: =IF(P4>0,1,0) -> 0 | BP4: =IF(Q4>0,1,0) -> 0 | BQ4: =IF(R4>0,1,0) -> 0 | BR4: =IF(S4>0,1,0) -> 0 | BS4: =IF(T4>0,1,0) -> 0 | BT4: =IF(U4>0,1,0) -> 1 | BU4: =IF(V4>0,1,0) -> 1 | BV4: =IF(W4>0,1,0) -> 0 | BW4: =IF(X4>0,1,0) -> 0 | BX4: =IF(Y4>0,1,0) -> 0 | BY4: =IF(Z4>0,1,0) -> 0 | BZ4: =IF(AA4>0,1,0) -> 0 | CA4: =IF(AB4>0,1,0) -> 0 | CB4: =IF(AC4>0,1,0) -> 0 | CC4: =IF(AD4>0,1,0) -> 1 | CD4: =IF(AE4>0,1,0) -> 1 | CE4: =IF(AF4>0,1,0) -> 1 | CF4: =IF(AG4>0,1,0) -> 0 | CG4: =IF(AH4>0,1,0) -> 0 | CH4: =IF(AI4>0,1,0) -> 0 | CI4: =IF(AJ4>0,1,0) -> 0 | CJ4: =IF(AK4>0,1,0) -> 0 | CK4: =IF(AL4>0,1,0) -> 0 | CL4: =IF(AM4>0,1,0) -> 0 | CM4: =IF(AN4>0,1,0) -> 0 | CN4: =IF(AO4>0,1,0) -> 0 | CO4: =IF(AP4>0,1,0) -> 0 | CP4: =IF(AQ4>0,1,0) -> 0 | CQ4: =IF(AR4>0,1,0) -> 0 | CR4: =IF(AS4>0,1,0) -> 0 | CS4: =IF(AT4>0,1,0) -> 0 | CT4: =IF(AU4>0,1,0) -> 0 | CU4: =IF(AV4>0,1,0) -> 0 | CV4: =IF(AW4>0,1,0) -> 0 | CW4: =IF(AX4>0,1,0) -> 0 | CX4: =IF(AY4>0,1,0) -> 0 | CY4: =IF(AZ4>0,1,0) -> 0 | CZ4: =IF(BA4>0,1,0) -> 0 | DA4: =IF(BB4>0,1,0) -> 0 | DB4: =IF(BC4>0,1,0) -> 0 | DC4: =IF(BD4>0,1,0) -> 0 | DD4: =IF(BE4>0,1,0) -> 0 | DE4: =IF(BF4>0,1,0) -> 0 | DF4: =IF(BG4>0,1,0) -> 0 | DG4: =IF(BH4>0,1,0) -> 0
A5: 47 | B5: Kees | C5: v | D5: Aarle | E5: =COUNT(K5:BH5) -> 16 | F5: =SUM(BJ5:DG5) -> 5 | G5: =SUM(K5:BH5) -> -28 | H5: =IF(E5=0,-0.99,F5/E5) -> 0.3125 | I5: =IF(AND(E5>0,E5<0.5*$B$103),-0.01,H5) -> 0.3125 | J5: =IF(I5>=0,I5,IF(I5=-0.01,"<1/2","")) -> 0.3125 | K5: -3 | L5: -1 | M5: -6 | N5: -6 | Q5: -10 | R5: 2 | U5: -1 | V5: -3 | W5: -12 | X5: -5 | Y5: -2 | Z5: -6 | AC5: 6 | AD5: 12 | AE5: 5 | AF5: 2 | BJ5: =IF(K5>0,1,0) -> 0 | BK5: =IF(L5>0,1,0) -> 0 | BL5: =IF(M5>0,1,0) -> 0 | BM5: =IF(N5>0,1,0) -> 0 | BN5: =IF(O5>0,1,0) -> 0 | BO5: =IF(P5>0,1,0) -> 0 | BP5: =IF(Q5>0,1,0) -> 0 | BQ5: =IF(R5>0,1,0) -> 1 | BR5: =IF(S5>0,1,0) -> 0 | BS5: =IF(T5>0,1,0) -> 0 | BT5: =IF(U5>0,1,0) -> 0 | BU5: =IF(V5>0,1,0) -> 0 | BV5: =IF(W5>0,1,0) -> 0 | BW5: =IF(X5>0,1,0) -> 0 | BX5: =IF(Y5>0,1,0) -> 0 | BY5: =IF(Z5>0,1,0) -> 0 | BZ5: =IF(AA5>0,1,0) -> 0 | CA5: =IF(AB5>0,1,0) -> 0 | CB5: =IF(AC5>0,1,0) -> 1 | CC5: =IF(AD5>0,1,0) -> 1 | CD5: =IF(AE5>0,1,0) -> 1 | CE5: =IF(AF5>0,1,0) -> 1 | CF5: =IF(AG5>0,1,0) -> 0 | CG5: =IF(AH5>0,1,0) -> 0 | CH5: =IF(AI5>0,1,0) -> 0 | CI5: =IF(AJ5>0,1,0) -> 0 | CJ5: =IF(AK5>0,1,0) -> 0 | CK5: =IF(AL5>0,1,0) -> 0 | CL5: =IF(AM5>0,1,0) -> 0 | CM5: =IF(AN5>0,1,0) -> 0 | CN5: =IF(AO5>0,1,0) -> 0 | CO5: =IF(AP5>0,1,0) -> 0 | CP5: =IF(AQ5>0,1,0) -> 0 | CQ5: =IF(AR5>0,1,0) -> 0 | CR5: =IF(AS5>0,1,0) -> 0 | CS5: =IF(AT5>0,1,0) -> 0 | CT5: =IF(AU5>0,1,0) -> 0 | CU5: =IF(AV5>0,1,0) -> 0 | CV5: =IF(AW5>0,1,0) -> 0 | CW5: =IF(AX5>0,1,0) -> 0 | CX5: =IF(AY5>0,1,0) -> 0 | CY5: =IF(AZ5>0,1,0) -> 0 | CZ5: =IF(BA5>0,1,0) -> 0 | DA5: =IF(BB5>0,1,0) -> 0 | DB5: =IF(BC5>0,1,0) -> 0 | DC5: =IF(BD5>0,1,0) -> 0 | DD5: =IF(BE5>0,1,0) -> 0 | DE5: =IF(BF5>0,1,0) -> 0 | DF5: =IF(BG5>0,1,0) -> 0 | DG5: 0
A6: 60 | B6: Thea | C6: v | D6: Acht | E6: =COUNT(K6:BH6) -> 6 | F6: =SUM(BJ6:DG6) -> 3 | G6: =SUM(K6:BH6) -> -5 | H6: =IF(E6=0,-0.99,F6/E6) -> 0.5 | I6: =IF(AND(E6>0,E6<0.5*$B$103),-0.01,H6) -> -0.01 | J6: =IF(I6>=0,I6,IF(I6=-0.01,"<1/2","")) -> <1/2 | O6: 7 | P6: 10 | Q6: -8 | R6: -7 | W6: 4 | X6: -11 | BJ6: =IF(K6>0,1,0) -> 0 | BK6: =IF(L6>0,1,0) -> 0 | BL6: =IF(M6>0,1,0) -> 0 | BM6: =IF(N6>0,1,0) -> 0 | BN6: =IF(O6>0,1,0) -> 1 | BO6: =IF(P6>0,1,0) -> 1 | BP6: =IF(Q6>0,1,0) -> 0 | BQ6: =IF(R6>0,1,0) -> 0 | BR6: =IF(S6>0,1,0) -> 0 | BS6: =IF(T6>0,1,0) -> 0 | BT6: =IF(U6>0,1,0) -> 0 | BU6: =IF(V6>0,1,0) -> 0 | BV6: =IF(W6>0,1,0) -> 1 | BW6: =IF(X6>0,1,0) -> 0 | BX6: =IF(Y6>0,1,0) -> 0 | BY6: =IF(Z6>0,1,0) -> 0 | BZ6: =IF(AA6>0,1,0) -> 0 | CA6: =IF(AB6>0,1,0) -> 0 | CB6: =IF(AC6>0,1,0) -> 0 | CC6: =IF(AD6>0,1,0) -> 0 | CD6: =IF(AE6>0,1,0) -> 0 | CE6: =IF(AF6>0,1,0) -> 0 | CF6: =IF(AG6>0,1,0) -> 0 | CG6: =IF(AH6>0,1,0) -> 0 | CH6: =IF(AI6>0,1,0) -> 0 | CI6: =IF(AJ6>0,1,0) -> 0 | CJ6: =IF(AK6>0,1,0) -> 0 | CK6: =IF(AL6>0,1,0) -> 0 | CL6: =IF(AM6>0,1,0) -> 0 | CM6: =IF(AN6>0,1,0) -> 0 | CN6: =IF(AO6>0,1,0) -> 0 | CO6: =IF(AP6>0,1,0) -> 0 | CP6: =IF(AQ6>0,1,0) -> 0 | CQ6: =IF(AR6>0,1,0) -> 0 | CR6: =IF(AS6>0,1,0) -> 0 | CS6: =IF(AT6>0,1,0) -> 0 | CT6: =IF(AU6>0,1,0) -> 0 | CU6: =IF(AV6>0,1,0) -> 0 | CV6: =IF(AW6>0,1,0) -> 0 | CW6: =IF(AX6>0,1,0) -> 0 | CX6: =IF(AY6>0,1,0) -> 0 | CY6: =IF(AZ6>0,1,0) -> 0 | CZ6: =IF(BA6>0,1,0) -> 0 | DA6: =IF(BB6>0,1,0) -> 0 | DB6: =IF(BC6>0,1,0) -> 0 | DC6: =IF(BD6>0,1,0) -> 0 | DD6: =IF(BE6>0,1,0) -> 0 | DE6: =IF(BF6>0,1,0) -> 0 | DF6: =IF(BG6>0,1,0) -> 0 | DG6: 0
A7: 59 | B7: Anneke | C7: v | D7: Berk | E7: =COUNT(K7:BH7) -> 2 | F7: =SUM(BJ7:DG7) -> 1 | G7: =SUM(K7:BH7) -> 1 | H7: =IF(E7=0,-0.99,F7/E7) -> 0.5 | I7: =IF(AND(E7>0,E7<0.5*$B$103),-0.01,H7) -> -0.01 | J7: =IF(I7>=0,I7,IF(I7=-0.01,"<1/2","")) -> <1/2 | O7: -7 | P7: 8 | BJ7: =IF(K7>0,1,0) -> 0 | BK7: =IF(L7>0,1,0) -> 0 | BL7: =IF(M7>0,1,0) -> 0 | BM7: =IF(N7>0,1,0) -> 0 | BN7: =IF(O7>0,1,0) -> 0 | BO7: =IF(P7>0,1,0) -> 1 | BP7: =IF(Q7>0,1,0) -> 0 | BQ7: =IF(R7>0,1,0) -> 0 | BR7: =IF(S7>0,1,0) -> 0 | BS7: =IF(T7>0,1,0) -> 0 | BT7: =IF(U7>0,1,0) -> 0 | BU7: =IF(V7>0,1,0) -> 0 | BV7: =IF(W7>0,1,0) -> 0 | BW7: =IF(X7>0,1,0) -> 0 | BX7: =IF(Y7>0,1,0) -> 0 | BY7: =IF(Z7>0,1,0) -> 0 | BZ7: =IF(AA7>0,1,0) -> 0 | CA7: =IF(AB7>0,1,0) -> 0 | CB7: =IF(AC7>0,1,0) -> 0 | CC7: =IF(AD7>0,1,0) -> 0 | CD7: =IF(AE7>0,1,0) -> 0 | CE7: =IF(AF7>0,1,0) -> 0 | CF7: =IF(AG7>0,1,0) -> 0 | CG7: =IF(AH7>0,1,0) -> 0 | CH7: =IF(AI7>0,1,0) -> 0 | CI7: =IF(AJ7>0,1,0) -> 0 | CJ7: =IF(AK7>0,1,0) -> 0 | CK7: =IF(AL7>0,1,0) -> 0 | CL7: =IF(AM7>0,1,0) -> 0 | CM7: =IF(AN7>0,1,0) -> 0 | CN7: =IF(AO7>0,1,0) -> 0 | CO7: =IF(AP7>0,1,0) -> 0 | CP7: =IF(AQ7>0,1,0) -> 0 | CQ7: =IF(AR7>0,1,0) -> 0 | CR7: =IF(AS7>0,1,0) -> 0 | CS7: =IF(AT7>0,1,0) -> 0 | CT7: =IF(AU7>0,1,0) -> 0 | CU7: =IF(AV7>0,1,0) -> 0 | CV7: =IF(AW7>0,1,0) -> 0 | CW7: =IF(AX7>0,1,0) -> 0 | CX7: =IF(AY7>0,1,0) -> 0 | CY7: =IF(AZ7>0,1,0) -> 0 | CZ7: =IF(BA7>0,1,0) -> 0 | DA7: =IF(BB7>0,1,0) -> 0 | DB7: =IF(BC7>0,1,0) -> 0 | DC7: =IF(BD7>0,1,0) -> 0 | DD7: =IF(BE7>0,1,0) -> 0 | DE7: =IF(BF7>0,1,0) -> 0 | DF7: =IF(BG7>0,1,0) -> 0 | DG7: 0
A8: 38 | B8: Joke | C8: de | D8: Berndsen | E8: =COUNT(K8:BH8) -> 16 | F8: =SUM(BJ8:DG8) -> 7 | G8: =SUM(K8:BH8) -> -22 | H8: =IF(E8=0,-0.99,F8/E8) -> 0.4375 | I8: =IF(AND(E8>0,E8<0.5*$B$103),-0.01,H8) -> 0.4375 | J8: =IF(I8>=0,I8,IF(I8=-0.01,"<1/2","")) -> 0.4375 | M8: 2 | N8: -4 | Q8: -10 | R8: 8 | S8: 2 | T8: -4 | U8: -1 | V8: -2 | Y8: -9 | Z8: -5 | AA8: 9 | AB8: 3 | AC8: 6 | AD8: 2 | AE8: -13 | AF8: -6 | BJ8: =IF(K8>0,1,0) -> 0 | BK8: =IF(L8>0,1,0) -> 0 | BL8: =IF(M8>0,1,0) -> 1 | BM8: =IF(N8>0,1,0) -> 0 | BN8: =IF(O8>0,1,0) -> 0 | BO8: =IF(P8>0,1,0) -> 0 | BP8: =IF(Q8>0,1,0) -> 0 | BQ8: =IF(R8>0,1,0) -> 1 | BR8: =IF(S8>0,1,0) -> 1 | BS8: =IF(T8>0,1,0) -> 0 | BT8: =IF(U8>0,1,0) -> 0 | BU8: =IF(V8>0,1,0) -> 0 | BV8: =IF(W8>0,1,0) -> 0 | BW8: =IF(X8>0,1,0) -> 0 | BX8: =IF(Y8>0,1,0) -> 0 | BY8: =IF(Z8>0,1,0) -> 0 | BZ8: =IF(AA8>0,1,0) -> 1 | CA8: =IF(AB8>0,1,0) -> 1 | CB8: =IF(AC8>0,1,0) -> 1 | CC8: =IF(AD8>0,1,0) -> 1 | CD8: =IF(AE8>0,1,0) -> 0 | CE8: =IF(AF8>0,1,0) -> 0 | CF8: =IF(AG8>0,1,0) -> 0 | CG8: =IF(AH8>0,1,0) -> 0 | CH8: =IF(AI8>0,1,0) -> 0 | CI8: =IF(AJ8>0,1,0) -> 0 | CJ8: =IF(AK8>0,1,0) -> 0 | CK8: =IF(AL8>0,1,0) -> 0 | CL8: =IF(AM8>0,1,0) -> 0 | CM8: =IF(AN8>0,1,0) -> 0 | CN8: =IF(AO8>0,1,0) -> 0 | CO8: =IF(AP8>0,1,0) -> 0 | CP8: =IF(AQ8>0,1,0) -> 0 | CQ8: =IF(AR8>0,1,0) -> 0 | CR8: =IF(AS8>0,1,0) -> 0 | CS8: =IF(AT8>0,1,0) -> 0 | CT8: =IF(AU8>0,1,0) -> 0 | CU8: =IF(AV8>0,1,0) -> 0 | CV8: =IF(AW8>0,1,0) -> 0 | CW8: =IF(AX8>0,1,0) -> 0 | CX8: =IF(AY8>0,1,0) -> 0 | CY8: =IF(AZ8>0,1,0) -> 0 | CZ8: =IF(BA8>0,1,0) -> 0 | DA8: =IF(BB8>0,1,0) -> 0 | DB8: =IF(BC8>0,1,0) -> 0 | DC8: =IF(BD8>0,1,0) -> 0 | DD8: =IF(BE8>0,1,0) -> 0 | DE8: =IF(BF8>0,1,0) -> 0 | DF8: =IF(BG8>0,1,0) -> 0 | DG8: 0
A9: 29 | B9: Jan | D9: Biggelaar | E9: =COUNT(K9:BH9) -> 14 | F9: =SUM(BJ9:DG9) -> 7 | G9: =SUM(K9:BH9) -> 2 | H9: =IF(E9=0,-0.99,F9/E9) -> 0.5 | I9: =IF(AND(E9>0,E9<0.5*$B$103),-0.01,H9) -> 0.5 | J9: =IF(I9>=0,I9,IF(I9=-0.01,"<1/2","")) -> 0.5 | K9: -4 | L9: -13 | Q9: 5 | R9: 9 | S9: 8 | T9: -7 | W9: 10 | X9: 9 | Y9: -6 | Z9: -8 | AA9: 7 | AB9: -3 | AE9: -8 | AF9: 3 | BJ9: =IF(K9>0,1,0) -> 0 | BK9: =IF(L9>0,1,0) -> 0 | BL9: =IF(M9>0,1,0) -> 0 | BM9: =IF(N9>0,1,0) -> 0 | BN9: =IF(O9>0,1,0) -> 0 | BO9: =IF(P9>0,1,0) -> 0 | BP9: =IF(Q9>0,1,0) -> 1 | BQ9: =IF(R9>0,1,0) -> 1 | BR9: =IF(S9>0,1,0) -> 1 | BS9: =IF(T9>0,1,0) -> 0 | BT9: =IF(U9>0,1,0) -> 0 | BU9: =IF(V9>0,1,0) -> 0 | BV9: =IF(W9>0,1,0) -> 1 | BW9: =IF(X9>0,1,0) -> 1 | BX9: =IF(Y9>0,1,0) -> 0 | BY9: =IF(Z9>0,1,0) -> 0 | BZ9: =IF(AA9>0,1,0) -> 1 | CA9: =IF(AB9>0,1,0) -> 0 | CB9: =IF(AC9>0,1,0) -> 0 | CC9: =IF(AD9>0,1,0) -> 0 | CD9: =IF(AE9>0,1,0) -> 0 | CE9: =IF(AF9>0,1,0) -> 1 | CF9: =IF(AG9>0,1,0) -> 0 | CG9: =IF(AH9>0,1,0) -> 0 | CH9: =IF(AI9>0,1,0) -> 0 | CI9: =IF(AJ9>0,1,0) -> 0 | CJ9: =IF(AK9>0,1,0) -> 0 | CK9: =IF(AL9>0,1,0) -> 0 | CL9: =IF(AM9>0,1,0) -> 0 | CM9: =IF(AN9>0,1,0) -> 0 | CN9: =IF(AO9>0,1,0) -> 0 | CO9: =IF(AP9>0,1,0) -> 0 | CP9: =IF(AQ9>0,1,0) -> 0 | CQ9: =IF(AR9>0,1,0) -> 0 | CR9: =IF(AS9>0,1,0) -> 0 | CS9: =IF(AT9>0,1,0) -> 0 | CT9: =IF(AU9>0,1,0) -> 0 | CU9: =IF(AV9>0,1,0) -> 0 | CV9: =IF(AW9>0,1,0) -> 0 | CW9: =IF(AX9>0,1,0) -> 0 | CX9: =IF(AY9>0,1,0) -> 0 | CY9: =IF(AZ9>0,1,0) -> 0 | CZ9: =IF(BA9>0,1,0) -> 0 | DA9: =IF(BB9>0,1,0) -> 0 | DB9: =IF(BC9>0,1,0) -> 0 | DC9: =IF(BD9>0,1,0) -> 0 | DD9: =IF(BE9>0,1,0) -> 0 | DE9: =IF(BF9>0,1,0) -> 0 | DF9: =IF(BG9>0,1,0) -> 0 | DG9: 0
A10: 9 | B10: Frans | D10: Boven | E10: =COUNT(K10:BH10) -> 12 | F10: =SUM(BJ10:DG10) -> 8 | G10: =SUM(K10:BH10) -> 69 | H10: =IF(E10=0,-0.99,F10/E10) -> 0.6666666667 | I10: =IF(AND(E10>0,E10<0.5*$B$103),-0.01,H10) -> 0.6666666667 | J10: =IF(I10>=0,I10,IF(I10=-0.01,"<1/2","")) -> 0.6666666667 | K10: -1 | L10: 12 | M10: -9 | N10: 11 | O10: -6 | P10: 13 | Q10: -8 | R10: 11 | S10: 12 | T10: 12 | W10: 11 | X10: 11 | BJ10: =IF(K10>0,1,0) -> 0 | BK10: =IF(L10>0,1,0) -> 1 | BL10: =IF(M10>0,1,0) -> 0 | BM10: =IF(N10>0,1,0) -> 1 | BN10: =IF(O10>0,1,0) -> 0 | BO10: =IF(P10>0,1,0) -> 1 | BP10: =IF(Q10>0,1,0) -> 0 | BQ10: =IF(R10>0,1,0) -> 1 | BR10: =IF(S10>0,1,0) -> 1 | BS10: =IF(T10>0,1,0) -> 1 | BT10: =IF(U10>0,1,0) -> 0 | BU10: =IF(V10>0,1,0) -> 0 | BV10: =IF(W10>0,1,0) -> 1 | BW10: =IF(X10>0,1,0) -> 1 | BX10: =IF(Y10>0,1,0) -> 0 | BY10: =IF(Z10>0,1,0) -> 0 | BZ10: =IF(AA10>0,1,0) -> 0 | CA10: =IF(AB10>0,1,0) -> 0 | CB10: =IF(AC10>0,1,0) -> 0 | CC10: =IF(AD10>0,1,0) -> 0 | CD10: =IF(AE10>0,1,0) -> 0 | CE10: =IF(AF10>0,1,0) -> 0 | CF10: =IF(AG10>0,1,0) -> 0 | CG10: =IF(AH10>0,1,0) -> 0 | CH10: =IF(AI10>0,1,0) -> 0 | CI10: =IF(AJ10>0,1,0) -> 0 | CJ10: =IF(AK10>0,1,0) -> 0 | CK10: =IF(AL10>0,1,0) -> 0 | CL10: =IF(AM10>0,1,0) -> 0 | CM10: =IF(AN10>0,1,0) -> 0 | CN10: =IF(AO10>0,1,0) -> 0 | CO10: =IF(AP10>0,1,0) -> 0 | CP10: =IF(AQ10>0,1,0) -> 0 | CQ10: =IF(AR10>0,1,0) -> 0 | CR10: =IF(AS10>0,1,0) -> 0 | CS10: =IF(AT10>0,1,0) -> 0 | CT10: =IF(AU10>0,1,0) -> 0 | CU10: =IF(AV10>0,1,0) -> 0 | CV10: =IF(AW10>0,1,0) -> 0 | CW10: =IF(AX10>0,1,0) -> 0 | CX10: =IF(AY10>0,1,0) -> 0 | CY10: =IF(AZ10>0,1,0) -> 0 | CZ10: =IF(BA10>0,1,0) -> 0 | DA10: =IF(BB10>0,1,0) -> 0 | DB10: =IF(BC10>0,1,0) -> 0 | DC10: =IF(BD10>0,1,0) -> 0 | DD10: =IF(BE10>0,1,0) -> 0 | DE10: =IF(BF10>0,1,0) -> 0 | DF10: =IF(BG10>0,1,0) -> 0 | DG10: 0
A11: 56 | B11: Blanca | C11: v | D11: Boxmeer | E11: =COUNT(K11:BH11) -> 4 | F11: =SUM(BJ11:DG11) -> 2 | G11: =SUM(K11:BH11) -> 7 | H11: =IF(E11=0,-0.99,F11/E11) -> 0.5 | I11: =IF(AND(E11>0,E11<0.5*$B$103),-0.01,H11) -> -0.01 | J11: =IF(I11>=0,I11,IF(I11=-0.01,"<1/2","")) -> <1/2 | Q11: -1 | R11: 2 | Y11: -2 | Z11: 8 | BJ11: =IF(K11>0,1,0) -> 0 | BK11: =IF(L11>0,1,0) -> 0 | BL11: =IF(M11>0,1,0) -> 0 | BM11: =IF(N11>0,1,0) -> 0 | BN11: =IF(O11>0,1,0) -> 0 | BO11: =IF(P11>0,1,0) -> 0 | BP11: =IF(Q11>0,1,0) -> 0 | BQ11: =IF(R11>0,1,0) -> 1 | BR11: =IF(S11>0,1,0) -> 0 | BS11: =IF(T11>0,1,0) -> 0 | BT11: =IF(U11>0,1,0) -> 0 | BU11: =IF(V11>0,1,0) -> 0 | BV11: =IF(W11>0,1,0) -> 0 | BW11: =IF(X11>0,1,0) -> 0 | BX11: =IF(Y11>0,1,0) -> 0 | BY11: =IF(Z11>0,1,0) -> 1 | BZ11: =IF(AA11>0,1,0) -> 0 | CA11: =IF(AB11>0,1,0) -> 0 | CB11: =IF(AC11>0,1,0) -> 0 | CC11: =IF(AD11>0,1,0) -> 0 | CD11: =IF(AE11>0,1,0) -> 0 | CE11: =IF(AF11>0,1,0) -> 0 | CF11: =IF(AG11>0,1,0) -> 0 | CG11: =IF(AH11>0,1,0) -> 0 | CH11: =IF(AI11>0,1,0) -> 0 | CI11: =IF(AJ11>0,1,0) -> 0 | CJ11: =IF(AK11>0,1,0) -> 0 | CK11: =IF(AL11>0,1,0) -> 0 | CL11: =IF(AM11>0,1,0) -> 0 | CM11: =IF(AN11>0,1,0) -> 0 | CN11: =IF(AO11>0,1,0) -> 0 | CO11: =IF(AP11>0,1,0) -> 0 | CP11: =IF(AQ11>0,1,0) -> 0 | CQ11: =IF(AR11>0,1,0) -> 0 | CR11: =IF(AS11>0,1,0) -> 0 | CS11: =IF(AT11>0,1,0) -> 0 | CT11: =IF(AU11>0,1,0) -> 0 | CU11: =IF(AV11>0,1,0) -> 0 | CV11: =IF(AW11>0,1,0) -> 0 | CW11: =IF(AX11>0,1,0) -> 0 | CX11: =IF(AY11>0,1,0) -> 0 | CY11: =IF(AZ11>0,1,0) -> 0 | CZ11: =IF(BA11>0,1,0) -> 0 | DA11: =IF(BB11>0,1,0) -> 0 | DB11: =IF(BC11>0,1,0) -> 0 | DC11: =IF(BD11>0,1,0) -> 0 | DD11: =IF(BE11>0,1,0) -> 0 | DE11: =IF(BF11>0,1,0) -> 0 | DF11: =IF(BG11>0,1,0) -> 0 | DG11: 0
A12: 35 | B12: Lienie | C12: v | D12: Breugel | E12: =COUNT(K12:BH12) -> 20 | F12: =SUM(BJ12:DG12) -> 9 | G12: =SUM(K12:BH12) -> 3 | H12: =IF(E12=0,-0.99,F12/E12) -> 0.45 | I12: =IF(AND(E12>0,E12<0.5*$B$103),-0.01,H12) -> 0.45 | J12: =IF(I12>=0,I12,IF(I12=-0.01,"<1/2","")) -> 0.45 | K12: -11 | L12: -12 | M12: 6 | N12: 11 | O12: 11 | P12: 13 | Q12: 5 | R12: -2 | S12: 2 | T12: 6 | U12: 5 | V12: -9 | Y12: -2 | Z12: 13 | AA12: -1 | AB12: -3 | AC12: -13 | AD12: -12 | AE12: -2 | AF12: -2 | BJ12: =IF(K12>0,1,0) -> 0 | BK12: =IF(L12>0,1,0) -> 0 | BL12: =IF(M12>0,1,0) -> 1 | BM12: =IF(N12>0,1,0) -> 1 | BN12: =IF(O12>0,1,0) -> 1 | BO12: =IF(P12>0,1,0) -> 1 | BP12: =IF(Q12>0,1,0) -> 1 | BQ12: =IF(R12>0,1,0) -> 0 | BR12: =IF(S12>0,1,0) -> 1 | BS12: =IF(T12>0,1,0) -> 1 | BT12: =IF(U12>0,1,0) -> 1 | BU12: =IF(V12>0,1,0) -> 0 | BV12: =IF(W12>0,1,0) -> 0 | BW12: =IF(X12>0,1,0) -> 0 | BX12: =IF(Y12>0,1,0) -> 0 | BY12: =IF(Z12>0,1,0) -> 1 | BZ12: =IF(AA12>0,1,0) -> 0 | CA12: =IF(AB12>0,1,0) -> 0 | CB12: =IF(AC12>0,1,0) -> 0 | CC12: =IF(AD12>0,1,0) -> 0 | CD12: =IF(AE12>0,1,0) -> 0 | CE12: =IF(AF12>0,1,0) -> 0 | CF12: =IF(AG12>0,1,0) -> 0 | CG12: =IF(AH12>0,1,0) -> 0 | CH12: =IF(AI12>0,1,0) -> 0 | CI12: =IF(AJ12>0,1,0) -> 0 | CJ12: =IF(AK12>0,1,0) -> 0 | CK12: =IF(AL12>0,1,0) -> 0 | CL12: =IF(AM12>0,1,0) -> 0 | CM12: =IF(AN12>0,1,0) -> 0 | CN12: =IF(AO12>0,1,0) -> 0 | CO12: =IF(AP12>0,1,0) -> 0 | CP12: =IF(AQ12>0,1,0) -> 0 | CQ12: =IF(AR12>0,1,0) -> 0 | CR12: =IF(AS12>0,1,0) -> 0 | CS12: =IF(AT12>0,1,0) -> 0 | CT12: =IF(AU12>0,1,0) -> 0 | CU12: =IF(AV12>0,1,0) -> 0 | CV12: =IF(AW12>0,1,0) -> 0 | CW12: =IF(AX12>0,1,0) -> 0 | CX12: =IF(AY12>0,1,0) -> 0 | CY12: =IF(AZ12>0,1,0) -> 0 | CZ12: =IF(BA12>0,1,0) -> 0 | DA12: =IF(BB12>0,1,0) -> 0 | DB12: =IF(BC12>0,1,0) -> 0 | DC12: =IF(BD12>0,1,0) -> 0 | DD12: =IF(BE12>0,1,0) -> 0 | DE12: =IF(BF12>0,1,0) -> 0 | DF12: =IF(BG12>0,1,0) -> 0 | DG12: 0
A13: 2 | B13: Karel | C13: den | D13: Brouwers | E13: =COUNT(K13:BH13) -> 20 | F13: =SUM(BJ13:DG13) -> 15 | G13: =SUM(K13:BH13) -> 83 | H13: =IF(E13=0,-0.99,F13/E13) -> 0.75 | I13: =IF(AND(E13>0,E13<0.5*$B$103),-0.01,H13) -> 0.75 | J13: =IF(I13>=0,I13,IF(I13=-0.01,"<1/2","")) -> 0.75 | K13: 5 | L13: 13 | M13: 2 | N13: 6 | O13: -2 | P13: 6 | Q13: 10 | R13: 9 | S13: 9 | T13: -4 | U13: -12 | V13: 9 | W13: -10 | X13: -4 | AA13: 7 | AB13: 5 | AC13: 13 | AD13: 8 | AE13: 11 | AF13: 2 | BJ13: =IF(K13>0,1,0) -> 1 | BK13: =IF(L13>0,1,0) -> 1 | BL13: =IF(M13>0,1,0) -> 1 | BM13: =IF(N13>0,1,0) -> 1 | BN13: =IF(O13>0,1,0) -> 0 | BO13: =IF(P13>0,1,0) -> 1 | BP13: =IF(Q13>0,1,0) -> 1 | BQ13: =IF(R13>0,1,0) -> 1 | BR13: =IF(S13>0,1,0) -> 1 | BS13: =IF(T13>0,1,0) -> 0 | BT13: =IF(U13>0,1,0) -> 0 | BU13: =IF(V13>0,1,0) -> 1 | BV13: =IF(W13>0,1,0) -> 0 | BW13: =IF(X13>0,1,0) -> 0 | BX13: =IF(Y13>0,1,0) -> 0 | BY13: =IF(Z13>0,1,0) -> 0 | BZ13: =IF(AA13>0,1,0) -> 1 | CA13: =IF(AB13>0,1,0) -> 1 | CB13: =IF(AC13>0,1,0) -> 1 | CC13: =IF(AD13>0,1,0) -> 1 | CD13: =IF(AE13>0,1,0) -> 1 | CE13: =IF(AF13>0,1,0) -> 1 | CF13: =IF(AG13>0,1,0) -> 0 | CG13: =IF(AH13>0,1,0) -> 0 | CH13: =IF(AI13>0,1,0) -> 0 | CI13: =IF(AJ13>0,1,0) -> 0 | CJ13: =IF(AK13>0,1,0) -> 0 | CK13: =IF(AL13>0,1,0) -> 0 | CL13: =IF(AM13>0,1,0) -> 0 | CM13: =IF(AN13>0,1,0) -> 0 | CN13: =IF(AO13>0,1,0) -> 0 | CO13: =IF(AP13>0,1,0) -> 0 | CP13: =IF(AQ13>0,1,0) -> 0 | CQ13: =IF(AR13>0,1,0) -> 0 | CR13: =IF(AS13>0,1,0) -> 0 | CS13: =IF(AT13>0,1,0) -> 0 | CT13: =IF(AU13>0,1,0) -> 0 | CU13: =IF(AV13>0,1,0) -> 0 | CV13: =IF(AW13>0,1,0) -> 0 | CW13: =IF(AX13>0,1,0) -> 0 | CX13: =IF(AY13>0,1,0) -> 0 | CY13: =IF(AZ13>0,1,0) -> 0 | CZ13: =IF(BA13>0,1,0) -> 0 | DA13: =IF(BB13>0,1,0) -> 0 | DB13: =IF(BC13>0,1,0) -> 0 | DC13: =IF(BD13>0,1,0) -> 0 | DD13: =IF(BE13>0,1,0) -> 0 | DE13: =IF(BF13>0,1,0) -> 0 | DF13: =IF(BG13>0,1,0) -> 0 | DG13: 0
A14: 46 | B14: Elmien | D14: Dommels | E14: =COUNT(K14:BH14) -> 18 | F14: =SUM(BJ14:DG14) -> 6 | G14: =SUM(K14:BH14) -> -68 | H14: =IF(E14=0,-0.99,F14/E14) -> 0.3333333333 | I14: =IF(AND(E14>0,E14<0.5*$B$103),-0.01,H14) -> 0.3333333333 | J14: =IF(I14>=0,I14,IF(I14=-0.01,"<1/2","")) -> 0.3333333333 | K14: 2 | L14: -13 | M14: 10 | N14: -11 | Q14: 5 | R14: 7 | S14: -12 | T14: -9 | U14: -9 | V14: -2 | W14: -6 | X14: -8 | Y14: -6 | Z14: 1 | AC14: -11 | AD14: -8 | AE14: 3 | AF14: -1 | BJ14: =IF(K14>0,1,0) -> 1 | BK14: =IF(L14>0,1,0) -> 0 | BL14: =IF(M14>0,1,0) -> 1 | BM14: =IF(N14>0,1,0) -> 0 | BN14: =IF(O14>0,1,0) -> 0 | BO14: =IF(P14>0,1,0) -> 0 | BP14: =IF(Q14>0,1,0) -> 1 | BQ14: =IF(R14>0,1,0) -> 1 | BR14: =IF(S14>0,1,0) -> 0 | BS14: =IF(T14>0,1,0) -> 0 | BT14: =IF(U14>0,1,0) -> 0 | BU14: =IF(V14>0,1,0) -> 0 | BV14: =IF(W14>0,1,0) -> 0 | BW14: =IF(X14>0,1,0) -> 0 | BX14: =IF(Y14>0,1,0) -> 0 | BY14: =IF(Z14>0,1,0) -> 1 | BZ14: =IF(AA14>0,1,0) -> 0 | CA14: =IF(AB14>0,1,0) -> 0 | CB14: =IF(AC14>0,1,0) -> 0 | CC14: =IF(AD14>0,1,0) -> 0 | CD14: =IF(AE14>0,1,0) -> 1 | CE14: =IF(AF14>0,1,0) -> 0 | CF14: =IF(AG14>0,1,0) -> 0 | CG14: =IF(AH14>0,1,0) -> 0 | CH14: =IF(AI14>0,1,0) -> 0 | CI14: =IF(AJ14>0,1,0) -> 0 | CJ14: =IF(AK14>0,1,0) -> 0 | CK14: =IF(AL14>0,1,0) -> 0 | CL14: =IF(AM14>0,1,0) -> 0 | CM14: =IF(AN14>0,1,0) -> 0 | CN14: =IF(AO14>0,1,0) -> 0 | CO14: =IF(AP14>0,1,0) -> 0 | CP14: =IF(AQ14>0,1,0) -> 0 | CQ14: =IF(AR14>0,1,0) -> 0 | CR14: =IF(AS14>0,1,0) -> 0 | CS14: =IF(AT14>0,1,0) -> 0 | CT14: =IF(AU14>0,1,0) -> 0 | CU14: =IF(AV14>0,1,0) -> 0 | CV14: =IF(AW14>0,1,0) -> 0 | CW14: =IF(AX14>0,1,0) -> 0 | CX14: =IF(AY14>0,1,0) -> 0 | CY14: =IF(AZ14>0,1,0) -> 0 | CZ14: =IF(BA14>0,1,0) -> 0 | DA14: =IF(BB14>0,1,0) -> 0 | DB14: =IF(BC14>0,1,0) -> 0 | DC14: =IF(BD14>0,1,0) -> 0 | DD14: =IF(BE14>0,1,0) -> 0 | DE14: =IF(BF14>0,1,0) -> 0 | DF14: =IF(BG14>0,1,0) -> 0 | DG14: 0
A15: 57 | B15: Harrie | D15: Donkers | E15: =COUNT(K15:BH15) -> 8 | F15: =SUM(BJ15:DG15) -> 4 | G15: =SUM(K15:BH15) -> 3 | H15: =IF(E15=0,-0.99,F15/E15) -> 0.5 | I15: =IF(AND(E15>0,E15<0.5*$B$103),-0.01,H15) -> -0.01 | J15: =IF(I15>=0,I15,IF(I15=-0.01,"<1/2","")) -> <1/2 | Y15: 11 | Z15: -6 | AA15: 1 | AB15: -5 | AC15: -1 | AD15: 7 | AE15: -5 | AF15: 1 | BJ15: =IF(K15>0,1,0) -> 0 | BK15: =IF(L15>0,1,0) -> 0 | BL15: =IF(M15>0,1,0) -> 0 | BM15: =IF(N15>0,1,0) -> 0 | BN15: =IF(O15>0,1,0) -> 0 | BO15: =IF(P15>0,1,0) -> 0 | BP15: =IF(Q15>0,1,0) -> 0 | BQ15: =IF(R15>0,1,0) -> 0 | BR15: =IF(S15>0,1,0) -> 0 | BS15: =IF(T15>0,1,0) -> 0 | BT15: =IF(U15>0,1,0) -> 0 | BU15: =IF(V15>0,1,0) -> 0 | BV15: =IF(W15>0,1,0) -> 0 | BW15: =IF(X15>0,1,0) -> 0 | BX15: =IF(Y15>0,1,0) -> 1 | BY15: =IF(Z15>0,1,0) -> 0 | BZ15: =IF(AA15>0,1,0) -> 1 | CA15: =IF(AB15>0,1,0) -> 0 | CB15: =IF(AC15>0,1,0) -> 0 | CC15: =IF(AD15>0,1,0) -> 1 | CD15: =IF(AE15>0,1,0) -> 0 | CE15: =IF(AF15>0,1,0) -> 1 | CF15: =IF(AG15>0,1,0) -> 0 | CG15: =IF(AH15>0,1,0) -> 0 | CH15: =IF(AI15>0,1,0) -> 0 | CI15: =IF(AJ15>0,1,0) -> 0 | CJ15: =IF(AK15>0,1,0) -> 0 | CK15: =IF(AL15>0,1,0) -> 0 | CL15: =IF(AM15>0,1,0) -> 0 | CM15: =IF(AN15>0,1,0) -> 0 | CN15: =IF(AO15>0,1,0) -> 0 | CO15: =IF(AP15>0,1,0) -> 0 | CP15: =IF(AQ15>0,1,0) -> 0 | CQ15: =IF(AR15>0,1,0) -> 0 | CR15: =IF(AS15>0,1,0) -> 0 | CS15: =IF(AT15>0,1,0) -> 0 | CT15: =IF(AU15>0,1,0) -> 0 | CU15: =IF(AV15>0,1,0) -> 0 | CV15: =IF(AW15>0,1,0) -> 0 | CW15: =IF(AX15>0,1,0) -> 0 | CX15: =IF(AY15>0,1,0) -> 0 | CY15: =IF(AZ15>0,1,0) -> 0 | CZ15: =IF(BA15>0,1,0) -> 0 | DA15: =IF(BB15>0,1,0) -> 0 | DB15: =IF(BC15>0,1,0) -> 0 | DC15: =IF(BD15>0,1,0) -> 0 | DD15: =IF(BE15>0,1,0) -> 0 | DE15: =IF(BF15>0,1,0) -> 0 | DF15: =IF(BG15>0,1,0) -> 0 | DG15: 0
A16: 48 | B16: An | C16: vd | D16: Etten | E16: =COUNT(K16:BH16) -> 16 | F16: =SUM(BJ16:DG16) -> 5 | G16: =SUM(K16:BH16) -> -43 | H16: =IF(E16=0,-0.99,F16/E16) -> 0.3125 | I16: =IF(AND(E16>0,E16<0.5*$B$103),-0.01,H16) -> 0.3125 | J16: =IF(I16>=0,I16,IF(I16=-0.01,"<1/2","")) -> 0.3125 | K16: -6 | L16: -11 | M16: -2 | N16: 13 | Q16: -3 | R16: -8 | S16: 7 | T16: -6 | U16: 1 | V16: 3 | W16: 8 | X16: -5 | Y16: -12 | Z16: -13 | AC16: -1 | AD16: -8 | BJ16: =IF(K16>0,1,0) -> 0 | BK16: =IF(L16>0,1,0) -> 0 | BL16: =IF(M16>0,1,0) -> 0 | BM16: =IF(N16>0,1,0) -> 1 | BN16: =IF(O16>0,1,0) -> 0 | BO16: =IF(P16>0,1,0) -> 0 | BP16: =IF(Q16>0,1,0) -> 0 | BQ16: =IF(R16>0,1,0) -> 0 | BR16: =IF(S16>0,1,0) -> 1 | BS16: =IF(T16>0,1,0) -> 0 | BT16: =IF(U16>0,1,0) -> 1 | BU16: =IF(V16>0,1,0) -> 1 | BV16: =IF(W16>0,1,0) -> 1 | BW16: =IF(X16>0,1,0) -> 0 | BX16: =IF(Y16>0,1,0) -> 0 | BY16: =IF(Z16>0,1,0) -> 0 | BZ16: =IF(AA16>0,1,0) -> 0 | CA16: =IF(AB16>0,1,0) -> 0 | CB16: =IF(AC16>0,1,0) -> 0 | CC16: =IF(AD16>0,1,0) -> 0 | CD16: =IF(AE16>0,1,0) -> 0 | CE16: =IF(AF16>0,1,0) -> 0 | CF16: =IF(AG16>0,1,0) -> 0 | CG16: =IF(AH16>0,1,0) -> 0 | CH16: =IF(AI16>0,1,0) -> 0 | CI16: =IF(AJ16>0,1,0) -> 0 | CJ16: =IF(AK16>0,1,0) -> 0 | CK16: =IF(AL16>0,1,0) -> 0 | CL16: =IF(AM16>0,1,0) -> 0 | CM16: =IF(AN16>0,1,0) -> 0 | CN16: =IF(AO16>0,1,0) -> 0 | CO16: =IF(AP16>0,1,0) -> 0 | CP16: =IF(AQ16>0,1,0) -> 0 | CQ16: =IF(AR16>0,1,0) -> 0 | CR16: =IF(AS16>0,1,0) -> 0 | CS16: =IF(AT16>0,1,0) -> 0 | CT16: =IF(AU16>0,1,0) -> 0 | CU16: =IF(AV16>0,1,0) -> 0 | CV16: =IF(AW16>0,1,0) -> 0 | CW16: =IF(AX16>0,1,0) -> 0 | CX16: =IF(AY16>0,1,0) -> 0 | CY16: =IF(AZ16>0,1,0) -> 0 | CZ16: =IF(BA16>0,1,0) -> 0 | DA16: =IF(BB16>0,1,0) -> 0 | DB16: =IF(BC16>0,1,0) -> 0 | DC16: =IF(BD16>0,1,0) -> 0 | DD16: =IF(BE16>0,1,0) -> 0 | DE16: =IF(BF16>0,1,0) -> 0 | DF16: =IF(BG16>0,1,0) -> 0 | DG16: 0
A17: 49 | B17: Wil | D17: Gevers | E17: =COUNT(K17:BH17) -> 14 | F17: =SUM(BJ17:DG17) -> 4 | G17: =SUM(K17:BH17) -> -38 | H17: =IF(E17=0,-0.99,F17/E17) -> 0.2857142857 | I17: =IF(AND(E17>0,E17<0.5*$B$103),-0.01,H17) -> 0.2857142857 | J17: =IF(I17>=0,I17,IF(I17=-0.01,"<1/2","")) -> 0.2857142857 | O17: -13 | P17: -9 | Q17: 10 | R17: -5 | S17: 7 | T17: 8 | W17: -6 | X17: -9 | Y17: -1 | Z17: -10 | AA17: -8 | AB17: 3 | AE17: -3 | AF17: -2 | BJ17: =IF(K17>0,1,0) -> 0 | BK17: =IF(L17>0,1,0) -> 0 | BL17: =IF(M17>0,1,0) -> 0 | BM17: =IF(N17>0,1,0) -> 0 | BN17: =IF(O17>0,1,0) -> 0 | BO17: =IF(P17>0,1,0) -> 0 | BP17: =IF(Q17>0,1,0) -> 1 | BQ17: =IF(R17>0,1,0) -> 0 | BR17: =IF(S17>0,1,0) -> 1 | BS17: =IF(T17>0,1,0) -> 1 | BT17: =IF(U17>0,1,0) -> 0 | BU17: =IF(V17>0,1,0) -> 0 | BV17: =IF(W17>0,1,0) -> 0 | BW17: =IF(X17>0,1,0) -> 0 | BX17: =IF(Y17>0,1,0) -> 0 | BY17: =IF(Z17>0,1,0) -> 0 | BZ17: =IF(AA17>0,1,0) -> 0 | CA17: =IF(AB17>0,1,0) -> 1 | CB17: =IF(AC17>0,1,0) -> 0 | CC17: =IF(AD17>0,1,0) -> 0 | CD17: =IF(AE17>0,1,0) -> 0 | CE17: =IF(AF17>0,1,0) -> 0 | CF17: =IF(AG17>0,1,0) -> 0 | CG17: =IF(AH17>0,1,0) -> 0 | CH17: =IF(AI17>0,1,0) -> 0 | CI17: =IF(AJ17>0,1,0) -> 0 | CJ17: =IF(AK17>0,1,0) -> 0 | CK17: =IF(AL17>0,1,0) -> 0 | CL17: =IF(AM17>0,1,0) -> 0 | CM17: =IF(AN17>0,1,0) -> 0 | CN17: =IF(AO17>0,1,0) -> 0 | CO17: =IF(AP17>0,1,0) -> 0 | CP17: =IF(AQ17>0,1,0) -> 0 | CQ17: =IF(AR17>0,1,0) -> 0 | CR17: =IF(AS17>0,1,0) -> 0 | CS17: =IF(AT17>0,1,0) -> 0 | CT17: =IF(AU17>0,1,0) -> 0 | CU17: =IF(AV17>0,1,0) -> 0 | CV17: =IF(AW17>0,1,0) -> 0 | CW17: =IF(AX17>0,1,0) -> 0 | CX17: =IF(AY17>0,1,0) -> 0 | CY17: =IF(AZ17>0,1,0) -> 0 | CZ17: =IF(BA17>0,1,0) -> 0 | DA17: =IF(BB17>0,1,0) -> 0 | DB17: =IF(BC17>0,1,0) -> 0 | DC17: =IF(BD17>0,1,0) -> 0 | DD17: =IF(BE17>0,1,0) -> 0 | DE17: =IF(BF17>0,1,0) -> 0 | DF17: =IF(BG17>0,1,0) -> 0 | DG17: 0
A18: 61 | B18: Joke | D18: Goosens | E18: =COUNT(K18:BH18) -> 8 | F18: =SUM(BJ18:DG18) -> 4 | G18: =SUM(K18:BH18) -> -8 | H18: =IF(E18=0,-0.99,F18/E18) -> 0.5 | I18: =IF(AND(E18>0,E18<0.5*$B$103),-0.01,H18) -> -0.01 | J18: =IF(I18>=0,I18,IF(I18=-0.01,"<1/2","")) -> <1/2 | Y18: 13 | Z18: -13 | AA18: 4 | AB18: 5 | AC18: -9 | AD18: 2 | AE18: -8 | AF18: -2 | BJ18: =IF(K18>0,1,0) -> 0 | BK18: =IF(L18>0,1,0) -> 0 | BL18: =IF(M18>0,1,0) -> 0 | BM18: =IF(N18>0,1,0) -> 0 | BN18: =IF(O18>0,1,0) -> 0 | BO18: =IF(P18>0,1,0) -> 0 | BP18: =IF(Q18>0,1,0) -> 0 | BQ18: =IF(R18>0,1,0) -> 0 | BR18: =IF(S18>0,1,0) -> 0 | BS18: =IF(T18>0,1,0) -> 0 | BT18: =IF(U18>0,1,0) -> 0 | BU18: =IF(V18>0,1,0) -> 0 | BV18: =IF(W18>0,1,0) -> 0 | BW18: =IF(X18>0,1,0) -> 0 | BX18: =IF(Y18>0,1,0) -> 1 | BY18: =IF(Z18>0,1,0) -> 0 | BZ18: =IF(AA18>0,1,0) -> 1 | CA18: =IF(AB18>0,1,0) -> 1 | CB18: =IF(AC18>0,1,0) -> 0 | CC18: =IF(AD18>0,1,0) -> 1 | CD18: =IF(AE18>0,1,0) -> 0 | CE18: =IF(AF18>0,1,0) -> 0 | CF18: =IF(AG18>0,1,0) -> 0 | CG18: =IF(AH18>0,1,0) -> 0 | CH18: =IF(AI18>0,1,0) -> 0 | CI18: =IF(AJ18>0,1,0) -> 0 | CJ18: =IF(AK18>0,1,0) -> 0 | CK18: =IF(AL18>0,1,0) -> 0 | CL18: =IF(AM18>0,1,0) -> 0 | CM18: =IF(AN18>0,1,0) -> 0 | CN18: =IF(AO18>0,1,0) -> 0 | CO18: =IF(AP18>0,1,0) -> 0 | CP18: =IF(AQ18>0,1,0) -> 0 | CQ18: =IF(AR18>0,1,0) -> 0 | CR18: =IF(AS18>0,1,0) -> 0 | CS18: =IF(AT18>0,1,0) -> 0 | CT18: =IF(AU18>0,1,0) -> 0 | CU18: =IF(AV18>0,1,0) -> 0 | CV18: =IF(AW18>0,1,0) -> 0 | CW18: =IF(AX18>0,1,0) -> 0 | CX18: =IF(AY18>0,1,0) -> 0 | CY18: =IF(AZ18>0,1,0) -> 0 | CZ18: =IF(BA18>0,1,0) -> 0 | DA18: =IF(BB18>0,1,0) -> 0 | DB18: =IF(BC18>0,1,0) -> 0 | DC18: =IF(BD18>0,1,0) -> 0 | DD18: =IF(BE18>0,1,0) -> 0 | DE18: =IF(BF18>0,1,0) -> 0 | DF18: =IF(BG18>0,1,0) -> 0 | DG18: 0
A19: 18 | B19: Chris | D19: Govers | E19: =COUNT(K19:BH19) -> 14 | F19: =SUM(BJ19:DG19) -> 8 | G19: =SUM(K19:BH19) -> 38 | H19: =IF(E19=0,-0.99,F19/E19) -> 0.5714285714 | I19: =IF(AND(E19>0,E19<0.5*$B$103),-0.01,H19) -> 0.5714285714 | J19: =IF(I19>=0,I19,IF(I19=-0.01,"<1/2","")) -> 0.5714285714 | K19: 6 | L19: 13 | M19: 8 | N19: -7 | O19: -1 | P19: 3 | Q19: -5 | R19: -5 | W19: 8 | X19: -1 | AC19: 9 | AD19: 8 | AE19: 4 | AF19: -2 | BJ19: =IF(K19>0,1,0) -> 1 | BK19: =IF(L19>0,1,0) -> 1 | BL19: =IF(M19>0,1,0) -> 1 | BM19: =IF(N19>0,1,0) -> 0 | BN19: =IF(O19>0,1,0) -> 0 | BO19: =IF(P19>0,1,0) -> 1 | BP19: =IF(Q19>0,1,0) -> 0 | BQ19: =IF(R19>0,1,0) -> 0 | BR19: =IF(S19>0,1,0) -> 0 | BS19: =IF(T19>0,1,0) -> 0 | BT19: =IF(U19>0,1,0) -> 0 | BU19: =IF(V19>0,1,0) -> 0 | BV19: =IF(W19>0,1,0) -> 1 | BW19: =IF(X19>0,1,0) -> 0 | BX19: =IF(Y19>0,1,0) -> 0 | BY19: =IF(Z19>0,1,0) -> 0 | BZ19: =IF(AA19>0,1,0) -> 0 | CA19: =IF(AB19>0,1,0) -> 0 | CB19: =IF(AC19>0,1,0) -> 1 | CC19: =IF(AD19>0,1,0) -> 1 | CD19: =IF(AE19>0,1,0) -> 1 | CE19: =IF(AF19>0,1,0) -> 0 | CF19: =IF(AG19>0,1,0) -> 0 | CG19: =IF(AH19>0,1,0) -> 0 | CH19: =IF(AI19>0,1,0) -> 0 | CI19: =IF(AJ19>0,1,0) -> 0 | CJ19: =IF(AK19>0,1,0) -> 0 | CK19: =IF(AL19>0,1,0) -> 0 | CL19: =IF(AM19>0,1,0) -> 0 | CM19: =IF(AN19>0,1,0) -> 0 | CN19: =IF(AO19>0,1,0) -> 0 | CO19: =IF(AP19>0,1,0) -> 0 | CP19: =IF(AQ19>0,1,0) -> 0 | CQ19: =IF(AR19>0,1,0) -> 0 | CR19: =IF(AS19>0,1,0) -> 0 | CS19: =IF(AT19>0,1,0) -> 0 | CT19: =IF(AU19>0,1,0) -> 0 | CU19: =IF(AV19>0,1,0) -> 0 | CV19: =IF(AW19>0,1,0) -> 0 | CW19: =IF(AX19>0,1,0) -> 0 | CX19: =IF(AY19>0,1,0) -> 0 | CY19: =IF(AZ19>0,1,0) -> 0 | CZ19: =IF(BA19>0,1,0) -> 0 | DA19: =IF(BB19>0,1,0) -> 0 | DB19: =IF(BC19>0,1,0) -> 0 | DC19: =IF(BD19>0,1,0) -> 0 | DD19: =IF(BE19>0,1,0) -> 0 | DE19: =IF(BF19>0,1,0) -> 0 | DF19: =IF(BG19>0,1,0) -> 0 | DG19: 0
A20: 34 | B20: Frans | C20: v | D20: Graaf | E20: =COUNT(K20:BH20) -> 22 | F20: =SUM(BJ20:DG20) -> 10 | G20: =SUM(K20:BH20) -> -12 | H20: =IF(E20=0,-0.99,F20/E20) -> 0.4545454545 | I20: =IF(AND(E20>0,E20<0.5*$B$103),-0.01,H20) -> 0.4545454545 | J20: =IF(I20>=0,I20,IF(I20=-0.01,"<1/2","")) -> 0.4545454545 | K20: -6 | L20: -9 | M20: -2 | N20: -5 | O20: -11 | P20: -10 | Q20: -10 | R20: -2 | S20: -12 | T20: 10 | U20: -8 | V20: 7 | W20: -9 | X20: 12 | Y20: 9 | Z20: 13 | AA20: -10 | AB20: 7 | AC20: 7 | AD20: 12 | AE20: 3 | AF20: 2 | BJ20: =IF(K20>0,1,0) -> 0 | BK20: =IF(L20>0,1,0) -> 0 | BL20: =IF(M20>0,1,0) -> 0 | BM20: =IF(N20>0,1,0) -> 0 | BN20: =IF(O20>0,1,0) -> 0 | BO20: =IF(P20>0,1,0) -> 0 | BP20: =IF(Q20>0,1,0) -> 0 | BQ20: =IF(R20>0,1,0) -> 0 | BR20: =IF(S20>0,1,0) -> 0 | BS20: =IF(T20>0,1,0) -> 1 | BT20: =IF(U20>0,1,0) -> 0 | BU20: =IF(V20>0,1,0) -> 1 | BV20: =IF(W20>0,1,0) -> 0 | BW20: =IF(X20>0,1,0) -> 1 | BX20: =IF(Y20>0,1,0) -> 1 | BY20: =IF(Z20>0,1,0) -> 1 | BZ20: =IF(AA20>0,1,0) -> 0 | CA20: =IF(AB20>0,1,0) -> 1 | CB20: =IF(AC20>0,1,0) -> 1 | CC20: =IF(AD20>0,1,0) -> 1 | CD20: =IF(AE20>0,1,0) -> 1 | CE20: =IF(AF20>0,1,0) -> 1 | CF20: =IF(AG20>0,1,0) -> 0 | CG20: =IF(AH20>0,1,0) -> 0 | CH20: =IF(AI20>0,1,0) -> 0 | CI20: =IF(AJ20>0,1,0) -> 0 | CJ20: =IF(AK20>0,1,0) -> 0 | CK20: =IF(AL20>0,1,0) -> 0 | CL20: =IF(AM20>0,1,0) -> 0 | CM20: =IF(AN20>0,1,0) -> 0 | CN20: =IF(AO20>0,1,0) -> 0 | CO20: =IF(AP20>0,1,0) -> 0 | CP20: =IF(AQ20>0,1,0) -> 0 | CQ20: =IF(AR20>0,1,0) -> 0 | CR20: =IF(AS20>0,1,0) -> 0 | CS20: =IF(AT20>0,1,0) -> 0 | CT20: =IF(AU20>0,1,0) -> 0 | CU20: =IF(AV20>0,1,0) -> 0 | CV20: =IF(AW20>0,1,0) -> 0 | CW20: =IF(AX20>0,1,0) -> 0 | CX20: =IF(AY20>0,1,0) -> 0 | CY20: =IF(AZ20>0,1,0) -> 0 | CZ20: =IF(BA20>0,1,0) -> 0 | DA20: =IF(BB20>0,1,0) -> 0 | DB20: =IF(BC20>0,1,0) -> 0 | DC20: =IF(BD20>0,1,0) -> 0 | DD20: =IF(BE20>0,1,0) -> 0 | DE20: =IF(BF20>0,1,0) -> 0 | DF20: =IF(BG20>0,1,0) -> 0 | DG20: 0
A21: 51 | B21: Lies | D21: Hamelen | E21: =COUNT(K21:BH21) -> 12 | F21: =SUM(BJ21:DG21) -> 3 | G21: =SUM(K21:BH21) -> -17 | H21: =IF(E21=0,-0.99,F21/E21) -> 0.25 | I21: =IF(AND(E21>0,E21<0.5*$B$103),-0.01,H21) -> 0.25 | J21: =IF(I21>=0,I21,IF(I21=-0.01,"<1/2","")) -> 0.25 | Q21: 5 | R21: -5 | U21: 8 | V21: 13 | W21: -11 | X21: -1 | AA21: -1 | AB21: -3 | AC21: -3 | AD21: -7 | AE21: -5 | AF21: -7 | BJ21: =IF(K21>0,1,0) -> 0 | BK21: =IF(L21>0,1,0) -> 0 | BL21: =IF(M21>0,1,0) -> 0 | BM21: =IF(N21>0,1,0) -> 0 | BN21: =IF(O21>0,1,0) -> 0 | BO21: =IF(P21>0,1,0) -> 0 | BP21: =IF(Q21>0,1,0) -> 1 | BQ21: =IF(R21>0,1,0) -> 0 | BR21: =IF(S21>0,1,0) -> 0 | BS21: =IF(T21>0,1,0) -> 0 | BT21: =IF(U21>0,1,0) -> 1 | BU21: =IF(V21>0,1,0) -> 1 | BV21: =IF(W21>0,1,0) -> 0 | BW21: =IF(X21>0,1,0) -> 0 | BX21: =IF(Y21>0,1,0) -> 0 | BY21: =IF(Z21>0,1,0) -> 0 | BZ21: =IF(AA21>0,1,0) -> 0 | CA21: =IF(AB21>0,1,0) -> 0 | CB21: =IF(AC21>0,1,0) -> 0 | CC21: =IF(AD21>0,1,0) -> 0 | CD21: =IF(AE21>0,1,0) -> 0 | CE21: =IF(AF21>0,1,0) -> 0 | CF21: =IF(AG21>0,1,0) -> 0 | CG21: =IF(AH21>0,1,0) -> 0 | CH21: =IF(AI21>0,1,0) -> 0 | CI21: =IF(AJ21>0,1,0) -> 0 | CJ21: =IF(AK21>0,1,0) -> 0 | CK21: =IF(AL21>0,1,0) -> 0 | CL21: =IF(AM21>0,1,0) -> 0 | CM21: =IF(AN21>0,1,0) -> 0 | CN21: =IF(AO21>0,1,0) -> 0 | CO21: =IF(AP21>0,1,0) -> 0 | CP21: =IF(AQ21>0,1,0) -> 0 | CQ21: =IF(AR21>0,1,0) -> 0 | CR21: =IF(AS21>0,1,0) -> 0 | CS21: =IF(AT21>0,1,0) -> 0 | CT21: =IF(AU21>0,1,0) -> 0 | CU21: =IF(AV21>0,1,0) -> 0 | CV21: =IF(AW21>0,1,0) -> 0 | CW21: =IF(AX21>0,1,0) -> 0 | CX21: =IF(AY21>0,1,0) -> 0 | CY21: =IF(AZ21>0,1,0) -> 0 | CZ21: =IF(BA21>0,1,0) -> 0 | DA21: =IF(BB21>0,1,0) -> 0 | DB21: =IF(BC21>0,1,0) -> 0 | DC21: =IF(BD21>0,1,0) -> 0 | DD21: =IF(BE21>0,1,0) -> 0 | DE21: =IF(BF21>0,1,0) -> 0 | DF21: =IF(BG21>0,1,0) -> 0 | DG21: 0
A22: 64 | B22: Rien | D22: Havertong | E22: =COUNT(K22:BH22) -> 8 | F22: =SUM(BJ22:DG22) -> 2 | G22: =SUM(K22:BH22) -> -31 | H22: =IF(E22=0,-0.99,F22/E22) -> 0.25 | I22: =IF(AND(E22>0,E22<0.5*$B$103),-0.01,H22) -> -0.01 | J22: =IF(I22>=0,I22,IF(I22=-0.01,"<1/2","")) -> <1/2 | K22: -5 | L22: -10 | O22: -2 | P22: -3 | U22: -12 | V22: 2 | AA22: 7 | AB22: -8 | BJ22: =IF(K22>0,1,0) -> 0 | BK22: =IF(L22>0,1,0) -> 0 | BL22: =IF(M22>0,1,0) -> 0 | BM22: =IF(N22>0,1,0) -> 0 | BN22: =IF(O22>0,1,0) -> 0 | BO22: =IF(P22>0,1,0) -> 0 | BP22: =IF(Q22>0,1,0) -> 0 | BQ22: =IF(R22>0,1,0) -> 0 | BR22: =IF(S22>0,1,0) -> 0 | BS22: =IF(T22>0,1,0) -> 0 | BT22: =IF(U22>0,1,0) -> 0 | BU22: =IF(V22>0,1,0) -> 1 | BV22: =IF(W22>0,1,0) -> 0 | BW22: =IF(X22>0,1,0) -> 0 | BX22: =IF(Y22>0,1,0) -> 0 | BY22: =IF(Z22>0,1,0) -> 0 | BZ22: =IF(AA22>0,1,0) -> 1 | CA22: =IF(AB22>0,1,0) -> 0 | CB22: =IF(AC22>0,1,0) -> 0 | CC22: =IF(AD22>0,1,0) -> 0 | CD22: =IF(AE22>0,1,0) -> 0 | CE22: =IF(AF22>0,1,0) -> 0 | CF22: =IF(AG22>0,1,0) -> 0 | CG22: =IF(AH22>0,1,0) -> 0 | CH22: =IF(AI22>0,1,0) -> 0 | CI22: =IF(AJ22>0,1,0) -> 0 | CJ22: =IF(AK22>0,1,0) -> 0 | CK22: =IF(AL22>0,1,0) -> 0 | CL22: =IF(AM22>0,1,0) -> 0 | CM22: =IF(AN22>0,1,0) -> 0 | CN22: =IF(AO22>0,1,0) -> 0 | CO22: =IF(AP22>0,1,0) -> 0 | CP22: =IF(AQ22>0,1,0) -> 0 | CQ22: =IF(AR22>0,1,0) -> 0 | CR22: =IF(AS22>0,1,0) -> 0 | CS22: =IF(AT22>0,1,0) -> 0 | CT22: =IF(AU22>0,1,0) -> 0 | CU22: =IF(AV22>0,1,0) -> 0 | CV22: =IF(AW22>0,1,0) -> 0 | CW22: =IF(AX22>0,1,0) -> 0 | CX22: =IF(AY22>0,1,0) -> 0 | CY22: =IF(AZ22>0,1,0) -> 0 | CZ22: =IF(BA22>0,1,0) -> 0 | DA22: =IF(BB22>0,1,0) -> 0 | DB22: =IF(BC22>0,1,0) -> 0 | DC22: =IF(BD22>0,1,0) -> 0 | DD22: =IF(BE22>0,1,0) -> 0 | DE22: =IF(BF22>0,1,0) -> 0 | DF22: =IF(BG22>0,1,0) -> 0 | DG22: 0
A23: 21 | B23: Henk | C23: v | D23: Heijden | E23: =COUNT(K23:BH23) -> 20 | F23: =SUM(BJ23:DG23) -> 11 | G23: =SUM(K23:BH23) -> 33 | H23: =IF(E23=0,-0.99,F23/E23) -> 0.55 | I23: =IF(AND(E23>0,E23<0.5*$B$103),-0.01,H23) -> 0.55 | J23: =IF(I23>=0,I23,IF(I23=-0.01,"<1/2","")) -> 0.55 | K23: -2 | L23: 11 | M23: 2 | N23: 5 | Q23: -3 | R23: 3 | S23: 12 | T23: -7 | U23: -9 | V23: -7 | W23: 11 | X23: 9 | Y23: 9 | Z23: 6 | AA23: -4 | AB23: -9 | AC23: 3 | AD23: 12 | AE23: -3 | AF23: -6 | BJ23: =IF(K23>0,1,0) -> 0 | BK23: =IF(L23>0,1,0) -> 1 | BL23: =IF(M23>0,1,0) -> 1 | BM23: =IF(N23>0,1,0) -> 1 | BN23: =IF(O23>0,1,0) -> 0 | BO23: =IF(P23>0,1,0) -> 0 | BP23: =IF(Q23>0,1,0) -> 0 | BQ23: =IF(R23>0,1,0) -> 1 | BR23: =IF(S23>0,1,0) -> 1 | BS23: =IF(T23>0,1,0) -> 0 | BT23: =IF(U23>0,1,0) -> 0 | BU23: =IF(V23>0,1,0) -> 0 | BV23: =IF(W23>0,1,0) -> 1 | BW23: =IF(X23>0,1,0) -> 1 | BX23: =IF(Y23>0,1,0) -> 1 | BY23: =IF(Z23>0,1,0) -> 1 | BZ23: =IF(AA23>0,1,0) -> 0 | CA23: =IF(AB23>0,1,0) -> 0 | CB23: =IF(AC23>0,1,0) -> 1 | CC23: =IF(AD23>0,1,0) -> 1 | CD23: =IF(AE23>0,1,0) -> 0 | CE23: =IF(AF23>0,1,0) -> 0 | CF23: =IF(AG23>0,1,0) -> 0 | CG23: =IF(AH23>0,1,0) -> 0 | CH23: =IF(AI23>0,1,0) -> 0 | CI23: =IF(AJ23>0,1,0) -> 0 | CJ23: =IF(AK23>0,1,0) -> 0 | CK23: =IF(AL23>0,1,0) -> 0 | CL23: =IF(AM23>0,1,0) -> 0 | CM23: =IF(AN23>0,1,0) -> 0 | CN23: =IF(AO23>0,1,0) -> 0 | CO23: =IF(AP23>0,1,0) -> 0 | CP23: =IF(AQ23>0,1,0) -> 0 | CQ23: =IF(AR23>0,1,0) -> 0 | CR23: =IF(AS23>0,1,0) -> 0 | CS23: =IF(AT23>0,1,0) -> 0 | CT23: =IF(AU23>0,1,0) -> 0 | CU23: =IF(AV23>0,1,0) -> 0 | CV23: =IF(AW23>0,1,0) -> 0 | CW23: =IF(AX23>0,1,0) -> 0 | CX23: =IF(AY23>0,1,0) -> 0 | CY23: =IF(AZ23>0,1,0) -> 0 | CZ23: =IF(BA23>0,1,0) -> 0 | DA23: =IF(BB23>0,1,0) -> 0 | DB23: =IF(BC23>0,1,0) -> 0 | DC23: =IF(BD23>0,1,0) -> 0 | DD23: =IF(BE23>0,1,0) -> 0 | DE23: =IF(BF23>0,1,0) -> 0 | DF23: =IF(BG23>0,1,0) -> 0 | DG23: 0
A24: 3 | B24: Kees | C24: vd | D24: Huibers | E24: =COUNT(K24:BH24) -> 16 | F24: =SUM(BJ24:DG24) -> 12 | G24: =SUM(K24:BH24) -> 57 | H24: =IF(E24=0,-0.99,F24/E24) -> 0.75 | I24: =IF(AND(E24>0,E24<0.5*$B$103),-0.01,H24) -> 0.75 | J24: =IF(I24>=0,I24,IF(I24=-0.01,"<1/2","")) -> 0.75 | K24: -5 | L24: 9 | M24: 1 | N24: -4 | O24: 13 | P24: 3 | Q24: 5 | R24: 5 | S24: 2 | T24: 7 | U24: -2 | V24: 2 | AA24: 10 | AB24: -10 | AC24: 9 | AD24: 12 | BJ24: =IF(K24>0,1,0) -> 0 | BK24: =IF(L24>0,1,0) -> 1 | BL24: =IF(M24>0,1,0) -> 1 | BM24: =IF(N24>0,1,0) -> 0 | BN24: =IF(O24>0,1,0) -> 1 | BO24: =IF(P24>0,1,0) -> 1 | BP24: =IF(Q24>0,1,0) -> 1 | BQ24: =IF(R24>0,1,0) -> 1 | BR24: =IF(S24>0,1,0) -> 1 | BS24: =IF(T24>0,1,0) -> 1 | BT24: =IF(U24>0,1,0) -> 0 | BU24: =IF(V24>0,1,0) -> 1 | BV24: =IF(W24>0,1,0) -> 0 | BW24: =IF(X24>0,1,0) -> 0 | BX24: =IF(Y24>0,1,0) -> 0 | BY24: =IF(Z24>0,1,0) -> 0 | BZ24: =IF(AA24>0,1,0) -> 1 | CA24: =IF(AB24>0,1,0) -> 0 | CB24: =IF(AC24>0,1,0) -> 1 | CC24: =IF(AD24>0,1,0) -> 1 | CD24: =IF(AE24>0,1,0) -> 0 | CE24: =IF(AF24>0,1,0) -> 0 | CF24: =IF(AG24>0,1,0) -> 0 | CG24: =IF(AH24>0,1,0) -> 0 | CH24: =IF(AI24>0,1,0) -> 0 | CI24: =IF(AJ24>0,1,0) -> 0 | CJ24: =IF(AK24>0,1,0) -> 0 | CK24: =IF(AL24>0,1,0) -> 0 | CL24: =IF(AM24>0,1,0) -> 0 | CM24: =IF(AN24>0,1,0) -> 0 | CN24: =IF(AO24>0,1,0) -> 0 | CO24: =IF(AP24>0,1,0) -> 0 | CP24: =IF(AQ24>0,1,0) -> 0 | CQ24: =IF(AR24>0,1,0) -> 0 | CR24: =IF(AS24>0,1,0) -> 0 | CS24: =IF(AT24>0,1,0) -> 0 | CT24: =IF(AU24>0,1,0) -> 0 | CU24: =IF(AV24>0,1,0) -> 0 | CV24: =IF(AW24>0,1,0) -> 0 | CW24: =IF(AX24>0,1,0) -> 0 | CX24: =IF(AY24>0,1,0) -> 0 | CY24: =IF(AZ24>0,1,0) -> 0 | CZ24: =IF(BA24>0,1,0) -> 0 | DA24: =IF(BB24>0,1,0) -> 0 | DB24: =IF(BC24>0,1,0) -> 0 | DC24: =IF(BD24>0,1,0) -> 0 | DD24: =IF(BE24>0,1,0) -> 0 | DE24: =IF(BF24>0,1,0) -> 0 | DF24: =IF(BG24>0,1,0) -> 0 | DG24: 0
A25: 45 | B25: Ton | D25: Jansen | E25: =COUNT(K25:BH25) -> 14 | F25: =SUM(BJ25:DG25) -> 5 | G25: =SUM(K25:BH25) -> -35 | H25: =IF(E25=0,-0.99,F25/E25) -> 0.3571428571 | I25: =IF(AND(E25>0,E25<0.5*$B$103),-0.01,H25) -> 0.3571428571 | J25: =IF(I25>=0,I25,IF(I25=-0.01,"<1/2","")) -> 0.3571428571 | K25: 2 | L25: -11 | M25: 9 | N25: 3 | O25: -7 | P25: -9 | S25: -7 | T25: 2 | U25: -1 | V25: -7 | W25: 12 | X25: -4 | AA25: -8 | AB25: -9 | BJ25: =IF(K25>0,1,0) -> 1 | BK25: =IF(L25>0,1,0) -> 0 | BL25: =IF(M25>0,1,0) -> 1 | BM25: =IF(N25>0,1,0) -> 1 | BN25: =IF(O25>0,1,0) -> 0 | BO25: =IF(P25>0,1,0) -> 0 | BP25: =IF(Q25>0,1,0) -> 0 | BQ25: =IF(R25>0,1,0) -> 0 | BR25: =IF(S25>0,1,0) -> 0 | BS25: =IF(T25>0,1,0) -> 1 | BT25: =IF(U25>0,1,0) -> 0 | BU25: =IF(V25>0,1,0) -> 0 | BV25: =IF(W25>0,1,0) -> 1 | BW25: =IF(X25>0,1,0) -> 0 | BX25: =IF(Y25>0,1,0) -> 0 | BY25: =IF(Z25>0,1,0) -> 0 | BZ25: =IF(AA25>0,1,0) -> 0 | CA25: =IF(AB25>0,1,0) -> 0 | CB25: =IF(AC25>0,1,0) -> 0 | CC25: =IF(AD25>0,1,0) -> 0 | CD25: =IF(AE25>0,1,0) -> 0 | CE25: =IF(AF25>0,1,0) -> 0 | CF25: =IF(AG25>0,1,0) -> 0 | CG25: =IF(AH25>0,1,0) -> 0 | CH25: =IF(AI25>0,1,0) -> 0 | CI25: =IF(AJ25>0,1,0) -> 0 | CJ25: =IF(AK25>0,1,0) -> 0 | CK25: =IF(AL25>0,1,0) -> 0 | CL25: =IF(AM25>0,1,0) -> 0 | CM25: =IF(AN25>0,1,0) -> 0 | CN25: =IF(AO25>0,1,0) -> 0 | CO25: =IF(AP25>0,1,0) -> 0 | CP25: =IF(AQ25>0,1,0) -> 0 | CQ25: =IF(AR25>0,1,0) -> 0 | CR25: =IF(AS25>0,1,0) -> 0 | CS25: =IF(AT25>0,1,0) -> 0 | CT25: =IF(AU25>0,1,0) -> 0 | CU25: =IF(AV25>0,1,0) -> 0 | CV25: =IF(AW25>0,1,0) -> 0 | CW25: =IF(AX25>0,1,0) -> 0 | CX25: =IF(AY25>0,1,0) -> 0 | CY25: =IF(AZ25>0,1,0) -> 0 | CZ25: =IF(BA25>0,1,0) -> 0 | DA25: =IF(BB25>0,1,0) -> 0 | DB25: =IF(BC25>0,1,0) -> 0 | DC25: =IF(BD25>0,1,0) -> 0 | DD25: =IF(BE25>0,1,0) -> 0 | DE25: =IF(BF25>0,1,0) -> 0 | DF25: =IF(BG25>0,1,0) -> 0 | DG25: 0
A26: 17 | B26: Joke | D26: Kastelijn | E26: =COUNT(K26:BH26) -> 18 | F26: =SUM(BJ26:DG26) -> 11 | G26: =SUM(K26:BH26) -> 26 | H26: =IF(E26=0,-0.99,F26/E26) -> 0.6111111111 | I26: =IF(AND(E26>0,E26<0.5*$B$103),-0.01,H26) -> 0.6111111111 | J26: =IF(I26>=0,I26,IF(I26=-0.01,"<1/2","")) -> 0.6111111111 | K26: 5 | L26: 10 | M26: 4 | N26: -6 | Q26: 11 | R26: 3 | S26: 12 | T26: -10 | W26: -6 | X26: 1 | Y26: 2 | Z26: -10 | AA26: 8 | AB26: 5 | AC26: -8 | AD26: -1 | AE26: -1 | AF26: 7 | BJ26: =IF(K26>0,1,0) -> 1 | BK26: =IF(L26>0,1,0) -> 1 | BL26: =IF(M26>0,1,0) -> 1 | BM26: =IF(N26>0,1,0) -> 0 | BN26: =IF(O26>0,1,0) -> 0 | BO26: =IF(P26>0,1,0) -> 0 | BP26: =IF(Q26>0,1,0) -> 1 | BQ26: =IF(R26>0,1,0) -> 1 | BR26: =IF(S26>0,1,0) -> 1 | BS26: =IF(T26>0,1,0) -> 0 | BT26: =IF(U26>0,1,0) -> 0 | BU26: =IF(V26>0,1,0) -> 0 | BV26: =IF(W26>0,1,0) -> 0 | BW26: =IF(X26>0,1,0) -> 1 | BX26: =IF(Y26>0,1,0) -> 1 | BY26: =IF(Z26>0,1,0) -> 0 | BZ26: =IF(AA26>0,1,0) -> 1 | CA26: =IF(AB26>0,1,0) -> 1 | CB26: =IF(AC26>0,1,0) -> 0 | CC26: =IF(AD26>0,1,0) -> 0 | CD26: =IF(AE26>0,1,0) -> 0 | CE26: =IF(AF26>0,1,0) -> 1 | CF26: =IF(AG26>0,1,0) -> 0 | CG26: =IF(AH26>0,1,0) -> 0 | CH26: =IF(AI26>0,1,0) -> 0 | CI26: =IF(AJ26>0,1,0) -> 0 | CJ26: =IF(AK26>0,1,0) -> 0 | CK26: =IF(AL26>0,1,0) -> 0 | CL26: =IF(AM26>0,1,0) -> 0 | CM26: =IF(AN26>0,1,0) -> 0 | CN26: =IF(AO26>0,1,0) -> 0 | CO26: =IF(AP26>0,1,0) -> 0 | CP26: =IF(AQ26>0,1,0) -> 0 | CQ26: =IF(AR26>0,1,0) -> 0 | CR26: =IF(AS26>0,1,0) -> 0 | CS26: =IF(AT26>0,1,0) -> 0 | CT26: =IF(AU26>0,1,0) -> 0 | CU26: =IF(AV26>0,1,0) -> 0 | CV26: =IF(AW26>0,1,0) -> 0 | CW26: =IF(AX26>0,1,0) -> 0 | CX26: =IF(AY26>0,1,0) -> 0 | CY26: =IF(AZ26>0,1,0) -> 0 | CZ26: =IF(BA26>0,1,0) -> 0 | DA26: =IF(BB26>0,1,0) -> 0 | DB26: =IF(BC26>0,1,0) -> 0 | DC26: =IF(BD26>0,1,0) -> 0 | DD26: =IF(BE26>0,1,0) -> 0 | DE26: =IF(BF26>0,1,0) -> 0 | DF26: =IF(BG26>0,1,0) -> 0 | DG26: 0
A27: 20 | B27: Francien | C27: v | D27: Kessel | E27: =COUNT(K27:BH27) -> 18 | F27: =SUM(BJ27:DG27) -> 10 | G27: =SUM(K27:BH27) -> 7 | H27: =IF(E27=0,-0.99,F27/E27) -> 0.5555555556 | I27: =IF(AND(E27>0,E27<0.5*$B$103),-0.01,H27) -> 0.5555555556 | J27: =IF(I27>=0,I27,IF(I27=-0.01,"<1/2","")) -> 0.5555555556 | K27: -6 | L27: 11 | M27: 9 | N27: 4 | O27: 1 | P27: 9 | Q27: 1 | R27: 5 | S27: -9 | T27: -2 | U27: -5 | V27: -7 | W27: -4 | X27: 8 | Y27: -13 | Z27: 10 | AA27: 1 | AB27: -6 | BJ27: =IF(K27>0,1,0) -> 0 | BK27: =IF(L27>0,1,0) -> 1 | BL27: =IF(M27>0,1,0) -> 1 | BM27: =IF(N27>0,1,0) -> 1 | BN27: =IF(O27>0,1,0) -> 1 | BO27: =IF(P27>0,1,0) -> 1 | BP27: =IF(Q27>0,1,0) -> 1 | BQ27: =IF(R27>0,1,0) -> 1 | BR27: =IF(S27>0,1,0) -> 0 | BS27: =IF(T27>0,1,0) -> 0 | BT27: =IF(U27>0,1,0) -> 0 | BU27: =IF(V27>0,1,0) -> 0 | BV27: =IF(W27>0,1,0) -> 0 | BW27: =IF(X27>0,1,0) -> 1 | BX27: =IF(Y27>0,1,0) -> 0 | BY27: =IF(Z27>0,1,0) -> 1 | BZ27: =IF(AA27>0,1,0) -> 1 | CA27: =IF(AB27>0,1,0) -> 0 | CB27: =IF(AC27>0,1,0) -> 0 | CC27: =IF(AD27>0,1,0) -> 0 | CD27: =IF(AE27>0,1,0) -> 0 | CE27: =IF(AF27>0,1,0) -> 0 | CF27: =IF(AG27>0,1,0) -> 0 | CG27: =IF(AH27>0,1,0) -> 0 | CH27: =IF(AI27>0,1,0) -> 0 | CI27: =IF(AJ27>0,1,0) -> 0 | CJ27: =IF(AK27>0,1,0) -> 0 | CK27: =IF(AL27>0,1,0) -> 0 | CL27: =IF(AM27>0,1,0) -> 0 | CM27: =IF(AN27>0,1,0) -> 0 | CN27: =IF(AO27>0,1,0) -> 0 | CO27: =IF(AP27>0,1,0) -> 0 | CP27: =IF(AQ27>0,1,0) -> 0 | CQ27: =IF(AR27>0,1,0) -> 0 | CR27: =IF(AS27>0,1,0) -> 0 | CS27: =IF(AT27>0,1,0) -> 0 | CT27: =IF(AU27>0,1,0) -> 0 | CU27: =IF(AV27>0,1,0) -> 0 | CV27: =IF(AW27>0,1,0) -> 0 | CW27: =IF(AX27>0,1,0) -> 0 | CX27: =IF(AY27>0,1,0) -> 0 | CY27: =IF(AZ27>0,1,0) -> 0 | CZ27: =IF(BA27>0,1,0) -> 0 | DA27: =IF(BB27>0,1,0) -> 0 | DB27: =IF(BC27>0,1,0) -> 0 | DC27: =IF(BD27>0,1,0) -> 0 | DD27: =IF(BE27>0,1,0) -> 0 | DE27: =IF(BF27>0,1,0) -> 0 | DF27: =IF(BG27>0,1,0) -> 0 | DG27: 0
A28: 54 | B28: Lieve | C28: vd | D28: Klomp | E28: =COUNT(K28:BH28) -> 16 | F28: =SUM(BJ28:DG28) -> 2 | G28: =SUM(K28:BH28) -> -108 | H28: =IF(E28=0,-0.99,F28/E28) -> 0.125 | I28: =IF(AND(E28>0,E28<0.5*$B$103),-0.01,H28) -> 0.125 | J28: =IF(I28>=0,I28,IF(I28=-0.01,"<1/2","")) -> 0.125 | K28: -4 | L28: -7 | M28: -5 | N28: 3 | Q28: -2 | R28: -2 | S28: -12 | T28: -8 | U28: 4 | V28: -13 | W28: -10 | X28: -11 | Y28: -6 | Z28: -12 | AC28: -11 | AD28: -12 | BJ28: =IF(K28>0,1,0) -> 0 | BK28: =IF(L28>0,1,0) -> 0 | BL28: =IF(M28>0,1,0) -> 0 | BM28: =IF(N28>0,1,0) -> 1 | BN28: =IF(O28>0,1,0) -> 0 | BO28: =IF(P28>0,1,0) -> 0 | BP28: =IF(Q28>0,1,0) -> 0 | BQ28: =IF(R28>0,1,0) -> 0 | BR28: =IF(S28>0,1,0) -> 0 | BS28: =IF(T28>0,1,0) -> 0 | BT28: =IF(U28>0,1,0) -> 1 | BU28: =IF(V28>0,1,0) -> 0 | BV28: =IF(W28>0,1,0) -> 0 | BW28: =IF(X28>0,1,0) -> 0 | BX28: =IF(Y28>0,1,0) -> 0 | BY28: =IF(Z28>0,1,0) -> 0 | BZ28: =IF(AA28>0,1,0) -> 0 | CA28: =IF(AB28>0,1,0) -> 0 | CB28: =IF(AC28>0,1,0) -> 0 | CC28: =IF(AD28>0,1,0) -> 0 | CD28: =IF(AE28>0,1,0) -> 0 | CE28: =IF(AF28>0,1,0) -> 0 | CF28: =IF(AG28>0,1,0) -> 0 | CG28: =IF(AH28>0,1,0) -> 0 | CH28: =IF(AI28>0,1,0) -> 0 | CI28: =IF(AJ28>0,1,0) -> 0 | CJ28: =IF(AK28>0,1,0) -> 0 | CK28: =IF(AL28>0,1,0) -> 0 | CL28: =IF(AM28>0,1,0) -> 0 | CM28: =IF(AN28>0,1,0) -> 0 | CN28: =IF(AO28>0,1,0) -> 0 | CO28: =IF(AP28>0,1,0) -> 0 | CP28: =IF(AQ28>0,1,0) -> 0 | CQ28: =IF(AR28>0,1,0) -> 0 | CR28: =IF(AS28>0,1,0) -> 0 | CS28: =IF(AT28>0,1,0) -> 0 | CT28: =IF(AU28>0,1,0) -> 0 | CU28: =IF(AV28>0,1,0) -> 0 | CV28: =IF(AW28>0,1,0) -> 0 | CW28: =IF(AX28>0,1,0) -> 0 | CX28: =IF(AY28>0,1,0) -> 0 | CY28: =IF(AZ28>0,1,0) -> 0 | CZ28: =IF(BA28>0,1,0) -> 0 | DA28: =IF(BB28>0,1,0) -> 0 | DB28: =IF(BC28>0,1,0) -> 0 | DC28: =IF(BD28>0,1,0) -> 0 | DD28: =IF(BE28>0,1,0) -> 0 | DE28: =IF(BF28>0,1,0) -> 0 | DF28: =IF(BG28>0,1,0) -> 0 | DG28: 0
A29: 6 | B29: Jan | C29: v | D29: Laarhoven | E29: =COUNT(K29:BH29) -> 20 | F29: =SUM(BJ29:DG29) -> 14 | G29: =SUM(K29:BH29) -> 104 | H29: =IF(E29=0,-0.99,F29/E29) -> 0.7 | I29: =IF(AND(E29>0,E29<0.5*$B$103),-0.01,H29) -> 0.7 | J29: =IF(I29>=0,I29,IF(I29=-0.01,"<1/2","")) -> 0.7 | K29: 4 | L29: 9 | M29: -1 | N29: 13 | O29: -2 | P29: 3 | Q29: 10 | R29: -2 | U29: 12 | V29: -2 | W29: 1 | X29: 9 | Y29: 11 | Z29: 10 | AA29: 11 | AB29: -5 | AC29: 10 | AD29: -2 | AE29: 13 | AF29: 2 | BJ29: =IF(K29>0,1,0) -> 1 | BK29: =IF(L29>0,1,0) -> 1 | BL29: =IF(M29>0,1,0) -> 0 | BM29: =IF(N29>0,1,0) -> 1 | BN29: =IF(O29>0,1,0) -> 0 | BO29: =IF(P29>0,1,0) -> 1 | BP29: =IF(Q29>0,1,0) -> 1 | BQ29: =IF(R29>0,1,0) -> 0 | BR29: =IF(S29>0,1,0) -> 0 | BS29: =IF(T29>0,1,0) -> 0 | BT29: =IF(U29>0,1,0) -> 1 | BU29: =IF(V29>0,1,0) -> 0 | BV29: =IF(W29>0,1,0) -> 1 | BW29: =IF(X29>0,1,0) -> 1 | BX29: =IF(Y29>0,1,0) -> 1 | BY29: =IF(Z29>0,1,0) -> 1 | BZ29: =IF(AA29>0,1,0) -> 1 | CA29: =IF(AB29>0,1,0) -> 0 | CB29: =IF(AC29>0,1,0) -> 1 | CC29: =IF(AD29>0,1,0) -> 0 | CD29: =IF(AE29>0,1,0) -> 1 | CE29: =IF(AF29>0,1,0) -> 1 | CF29: =IF(AG29>0,1,0) -> 0 | CG29: =IF(AH29>0,1,0) -> 0 | CH29: =IF(AI29>0,1,0) -> 0 | CI29: =IF(AJ29>0,1,0) -> 0 | CJ29: =IF(AK29>0,1,0) -> 0 | CK29: =IF(AL29>0,1,0) -> 0 | CL29: =IF(AM29>0,1,0) -> 0 | CM29: =IF(AN29>0,1,0) -> 0 | CN29: =IF(AO29>0,1,0) -> 0 | CO29: =IF(AP29>0,1,0) -> 0 | CP29: =IF(AQ29>0,1,0) -> 0 | CQ29: =IF(AR29>0,1,0) -> 0 | CR29: =IF(AS29>0,1,0) -> 0 | CS29: =IF(AT29>0,1,0) -> 0 | CT29: =IF(AU29>0,1,0) -> 0 | CU29: =IF(AV29>0,1,0) -> 0 | CV29: =IF(AW29>0,1,0) -> 0 | CW29: =IF(AX29>0,1,0) -> 0 | CX29: =IF(AY29>0,1,0) -> 0 | CY29: =IF(AZ29>0,1,0) -> 0 | CZ29: =IF(BA29>0,1,0) -> 0 | DA29: =IF(BB29>0,1,0) -> 0 | DB29: =IF(BC29>0,1,0) -> 0 | DC29: =IF(BD29>0,1,0) -> 0 | DD29: =IF(BE29>0,1,0) -> 0 | DE29: =IF(BF29>0,1,0) -> 0 | DF29: =IF(BG29>0,1,0) -> 0 | DG29: 0
A30: 40 | B30: Cor | C30: v | D30: Latijn | E30: =COUNT(K30:BH30) -> 12 | F30: =SUM(BJ30:DG30) -> 5 | G30: =SUM(K30:BH30) -> -24 | H30: =IF(E30=0,-0.99,F30/E30) -> 0.4166666667 | I30: =IF(AND(E30>0,E30<0.5*$B$103),-0.01,H30) -> 0.4166666667 | J30: =IF(I30>=0,I30,IF(I30=-0.01,"<1/2","")) -> 0.4166666667 | M30: -8 | N30: -5 | O30: 2 | P30: -9 | S30: -1 | T30: 4 | AA30: -7 | AB30: 9 | AC30: -13 | AD30: 1 | AE30: -1 | AF30: 4 | BJ30: =IF(K30>0,1,0) -> 0 | BK30: =IF(L30>0,1,0) -> 0 | BL30: =IF(M30>0,1,0) -> 0 | BM30: =IF(N30>0,1,0) -> 0 | BN30: =IF(O30>0,1,0) -> 1 | BO30: =IF(P30>0,1,0) -> 0 | BP30: =IF(Q30>0,1,0) -> 0 | BQ30: =IF(R30>0,1,0) -> 0 | BR30: =IF(S30>0,1,0) -> 0 | BS30: =IF(T30>0,1,0) -> 1 | BT30: =IF(U30>0,1,0) -> 0 | BU30: =IF(V30>0,1,0) -> 0 | BV30: =IF(W30>0,1,0) -> 0 | BW30: =IF(X30>0,1,0) -> 0 | BX30: =IF(Y30>0,1,0) -> 0 | BY30: =IF(Z30>0,1,0) -> 0 | BZ30: =IF(AA30>0,1,0) -> 0 | CA30: =IF(AB30>0,1,0) -> 1 | CB30: =IF(AC30>0,1,0) -> 0 | CC30: =IF(AD30>0,1,0) -> 1 | CD30: =IF(AE30>0,1,0) -> 0 | CE30: =IF(AF30>0,1,0) -> 1 | CF30: =IF(AG30>0,1,0) -> 0 | CG30: =IF(AH30>0,1,0) -> 0 | CH30: =IF(AI30>0,1,0) -> 0 | CI30: =IF(AJ30>0,1,0) -> 0 | CJ30: =IF(AK30>0,1,0) -> 0 | CK30: =IF(AL30>0,1,0) -> 0 | CL30: =IF(AM30>0,1,0) -> 0 | CM30: =IF(AN30>0,1,0) -> 0 | CN30: =IF(AO30>0,1,0) -> 0 | CO30: =IF(AP30>0,1,0) -> 0 | CP30: =IF(AQ30>0,1,0) -> 0 | CQ30: =IF(AR30>0,1,0) -> 0 | CR30: =IF(AS30>0,1,0) -> 0 | CS30: =IF(AT30>0,1,0) -> 0 | CT30: =IF(AU30>0,1,0) -> 0 | CU30: =IF(AV30>0,1,0) -> 0 | CV30: =IF(AW30>0,1,0) -> 0 | CW30: =IF(AX30>0,1,0) -> 0 | CX30: =IF(AY30>0,1,0) -> 0 | CY30: =IF(AZ30>0,1,0) -> 0 | CZ30: =IF(BA30>0,1,0) -> 0 | DA30: =IF(BB30>0,1,0) -> 0 | DB30: =IF(BC30>0,1,0) -> 0 | DC30: =IF(BD30>0,1,0) -> 0 | DD30: =IF(BE30>0,1,0) -> 0 | DE30: =IF(BF30>0,1,0) -> 0 | DF30: =IF(BG30>0,1,0) -> 0 | DG30: 0
A31: 32 | B31: Jeanne | C31: vd | D31: Leenders | E31: =COUNT(K31:BH31) -> 14 | F31: =SUM(BJ31:DG31) -> 7 | G31: =SUM(K31:BH31) -> -1 | H31: =IF(E31=0,-0.99,F31/E31) -> 0.5 | I31: =IF(AND(E31>0,E31<0.5*$B$103),-0.01,H31) -> 0.5 | J31: =IF(I31>=0,I31,IF(I31=-0.01,"<1/2","")) -> 0.5 | K31: 6 | L31: 9 | O31: 6 | P31: -3 | Q31: -10 | R31: 7 | S31: -8 | T31: 2 | W31: -8 | X31: -8 | AA31: -9 | AB31: -5 | AE31: 13 | AF31: 7 | BJ31: =IF(K31>0,1,0) -> 1 | BK31: =IF(L31>0,1,0) -> 1 | BL31: =IF(M31>0,1,0) -> 0 | BM31: =IF(N31>0,1,0) -> 0 | BN31: =IF(O31>0,1,0) -> 1 | BO31: =IF(P31>0,1,0) -> 0 | BP31: =IF(Q31>0,1,0) -> 0 | BQ31: =IF(R31>0,1,0) -> 1 | BR31: =IF(S31>0,1,0) -> 0 | BS31: =IF(T31>0,1,0) -> 1 | BT31: =IF(U31>0,1,0) -> 0 | BU31: =IF(V31>0,1,0) -> 0 | BV31: =IF(W31>0,1,0) -> 0 | BW31: =IF(X31>0,1,0) -> 0 | BX31: =IF(Y31>0,1,0) -> 0 | BY31: =IF(Z31>0,1,0) -> 0 | BZ31: =IF(AA31>0,1,0) -> 0 | CA31: =IF(AB31>0,1,0) -> 0 | CB31: =IF(AC31>0,1,0) -> 0 | CC31: =IF(AD31>0,1,0) -> 0 | CD31: =IF(AE31>0,1,0) -> 1 | CE31: =IF(AF31>0,1,0) -> 1 | CF31: =IF(AG31>0,1,0) -> 0 | CG31: =IF(AH31>0,1,0) -> 0 | CH31: =IF(AI31>0,1,0) -> 0 | CI31: =IF(AJ31>0,1,0) -> 0 | CJ31: =IF(AK31>0,1,0) -> 0 | CK31: =IF(AL31>0,1,0) -> 0 | CL31: =IF(AM31>0,1,0) -> 0 | CM31: =IF(AN31>0,1,0) -> 0 | CN31: =IF(AO31>0,1,0) -> 0 | CO31: =IF(AP31>0,1,0) -> 0 | CP31: =IF(AQ31>0,1,0) -> 0 | CQ31: =IF(AR31>0,1,0) -> 0 | CR31: =IF(AS31>0,1,0) -> 0 | CS31: =IF(AT31>0,1,0) -> 0 | CT31: =IF(AU31>0,1,0) -> 0 | CU31: =IF(AV31>0,1,0) -> 0 | CV31: =IF(AW31>0,1,0) -> 0 | CW31: =IF(AX31>0,1,0) -> 0 | CX31: =IF(AY31>0,1,0) -> 0 | CY31: =IF(AZ31>0,1,0) -> 0 | CZ31: =IF(BA31>0,1,0) -> 0 | DA31: =IF(BB31>0,1,0) -> 0 | DB31: =IF(BC31>0,1,0) -> 0 | DC31: =IF(BD31>0,1,0) -> 0 | DD31: =IF(BE31>0,1,0) -> 0 | DE31: =IF(BF31>0,1,0) -> 0 | DF31: =IF(BG31>0,1,0) -> 0 | DG31: 0
A32: 5 | B32: Toon | D32: Liempde | E32: =COUNT(K32:BH32) -> 18 | F32: =SUM(BJ32:DG32) -> 13 | G32: =SUM(K32:BH32) -> 69 | H32: =IF(E32=0,-0.99,F32/E32) -> 0.7222222222 | I32: =IF(AND(E32>0,E32<0.5*$B$103),-0.01,H32) -> 0.7222222222 | J32: =IF(I32>=0,I32,IF(I32=-0.01,"<1/2","")) -> 0.7222222222 | K32: 11 | L32: -6 | O32: 2 | P32: 3 | Q32: -5 | R32: 4 | S32: 12 | T32: 12 | U32: 5 | V32: 2 | W32: 9 | X32: 9 | Y32: -9 | Z32: -1 | AC32: 10 | AD32: 7 | AE32: 11 | AF32: -7 | BJ32: =IF(K32>0,1,0) -> 1 | BK32: =IF(L32>0,1,0) -> 0 | BL32: =IF(M32>0,1,0) -> 0 | BM32: =IF(N32>0,1,0) -> 0 | BN32: =IF(O32>0,1,0) -> 1 | BO32: =IF(P32>0,1,0) -> 1 | BP32: =IF(Q32>0,1,0) -> 0 | BQ32: =IF(R32>0,1,0) -> 1 | BR32: =IF(S32>0,1,0) -> 1 | BS32: =IF(T32>0,1,0) -> 1 | BT32: =IF(U32>0,1,0) -> 1 | BU32: =IF(V32>0,1,0) -> 1 | BV32: =IF(W32>0,1,0) -> 1 | BW32: =IF(X32>0,1,0) -> 1 | BX32: =IF(Y32>0,1,0) -> 0 | BY32: =IF(Z32>0,1,0) -> 0 | BZ32: =IF(AA32>0,1,0) -> 0 | CA32: =IF(AB32>0,1,0) -> 0 | CB32: =IF(AC32>0,1,0) -> 1 | CC32: =IF(AD32>0,1,0) -> 1 | CD32: =IF(AE32>0,1,0) -> 1 | CE32: =IF(AF32>0,1,0) -> 0 | CF32: =IF(AG32>0,1,0) -> 0 | CG32: =IF(AH32>0,1,0) -> 0 | CH32: =IF(AI32>0,1,0) -> 0 | CI32: =IF(AJ32>0,1,0) -> 0 | CJ32: =IF(AK32>0,1,0) -> 0 | CK32: =IF(AL32>0,1,0) -> 0 | CL32: =IF(AM32>0,1,0) -> 0 | CM32: =IF(AN32>0,1,0) -> 0 | CN32: =IF(AO32>0,1,0) -> 0 | CO32: =IF(AP32>0,1,0) -> 0 | CP32: =IF(AQ32>0,1,0) -> 0 | CQ32: =IF(AR32>0,1,0) -> 0 | CR32: =IF(AS32>0,1,0) -> 0 | CS32: =IF(AT32>0,1,0) -> 0 | CT32: =IF(AU32>0,1,0) -> 0 | CU32: =IF(AV32>0,1,0) -> 0 | CV32: =IF(AW32>0,1,0) -> 0 | CW32: =IF(AX32>0,1,0) -> 0 | CX32: =IF(AY32>0,1,0) -> 0 | CY32: =IF(AZ32>0,1,0) -> 0 | CZ32: =IF(BA32>0,1,0) -> 0 | DA32: =IF(BB32>0,1,0) -> 0 | DB32: =IF(BC32>0,1,0) -> 0 | DC32: =IF(BD32>0,1,0) -> 0 | DD32: =IF(BE32>0,1,0) -> 0 | DE32: =IF(BF32>0,1,0) -> 0 | DF32: =IF(BG32>0,1,0) -> 0 | DG32: 0
A33: 53 | B33: Tiny | C33: v | D33: Lille | E33: =COUNT(K33:BH33) -> 16 | F33: =SUM(BJ33:DG33) -> 4 | G33: =SUM(K33:BH33) -> -79 | H33: =IF(E33=0,-0.99,F33/E33) -> 0.25 | I33: =IF(AND(E33>0,E33<0.5*$B$103),-0.01,H33) -> 0.25 | J33: =IF(I33>=0,I33,IF(I33=-0.01,"<1/2","")) -> 0.25 | K33: 3 | L33: -9 | M33: -2 | N33: -13 | O33: 7 | P33: -3 | Q33: 1 | R33: -11 | S33: -7 | T33: -10 | U33: -1 | V33: -5 | Y33: -11 | Z33: -12 | AC33: 1 | AD33: -7 | BJ33: =IF(K33>0,1,0) -> 1 | BK33: =IF(L33>0,1,0) -> 0 | BL33: =IF(M33>0,1,0) -> 0 | BM33: =IF(N33>0,1,0) -> 0 | BN33: =IF(O33>0,1,0) -> 1 | BO33: =IF(P33>0,1,0) -> 0 | BP33: =IF(Q33>0,1,0) -> 1 | BQ33: =IF(R33>0,1,0) -> 0 | BR33: =IF(S33>0,1,0) -> 0 | BS33: =IF(T33>0,1,0) -> 0 | BT33: =IF(U33>0,1,0) -> 0 | BU33: =IF(V33>0,1,0) -> 0 | BV33: =IF(W33>0,1,0) -> 0 | BW33: =IF(X33>0,1,0) -> 0 | BX33: =IF(Y33>0,1,0) -> 0 | BY33: =IF(Z33>0,1,0) -> 0 | BZ33: =IF(AA33>0,1,0) -> 0 | CA33: =IF(AB33>0,1,0) -> 0 | CB33: =IF(AC33>0,1,0) -> 1 | CC33: =IF(AD33>0,1,0) -> 0 | CD33: =IF(AE33>0,1,0) -> 0 | CE33: =IF(AF33>0,1,0) -> 0 | CF33: =IF(AG33>0,1,0) -> 0 | CG33: =IF(AH33>0,1,0) -> 0 | CH33: =IF(AI33>0,1,0) -> 0 | CI33: =IF(AJ33>0,1,0) -> 0 | CJ33: =IF(AK33>0,1,0) -> 0 | CK33: =IF(AL33>0,1,0) -> 0 | CL33: =IF(AM33>0,1,0) -> 0 | CM33: =IF(AN33>0,1,0) -> 0 | CN33: =IF(AO33>0,1,0) -> 0 | CO33: =IF(AP33>0,1,0) -> 0 | CP33: =IF(AQ33>0,1,0) -> 0 | CQ33: =IF(AR33>0,1,0) -> 0 | CR33: =IF(AS33>0,1,0) -> 0 | CS33: =IF(AT33>0,1,0) -> 0 | CT33: =IF(AU33>0,1,0) -> 0 | CU33: =IF(AV33>0,1,0) -> 0 | CV33: =IF(AW33>0,1,0) -> 0 | CW33: =IF(AX33>0,1,0) -> 0 | CX33: =IF(AY33>0,1,0) -> 0 | CY33: =IF(AZ33>0,1,0) -> 0 | CZ33: =IF(BA33>0,1,0) -> 0 | DA33: =IF(BB33>0,1,0) -> 0 | DB33: =IF(BC33>0,1,0) -> 0 | DC33: =IF(BD33>0,1,0) -> 0 | DD33: =IF(BE33>0,1,0) -> 0 | DE33: =IF(BF33>0,1,0) -> 0 | DF33: =IF(BG33>0,1,0) -> 0 | DG33: 0
A34: 16 | B34: Jo | D34: Linders | E34: =COUNT(K34:BH34) -> 16 | F34: =SUM(BJ34:DG34) -> 10 | G34: =SUM(K34:BH34) -> 11 | H34: =IF(E34=0,-0.99,F34/E34) -> 0.625 | I34: =IF(AND(E34>0,E34<0.5*$B$103),-0.01,H34) -> 0.625 | J34: =IF(I34>=0,I34,IF(I34=-0.01,"<1/2","")) -> 0.625 | K34: 3 | L34: 10 | O34: 2 | P34: 2 | S34: 7 | T34: 7 | U34: -5 | V34: 2 | W34: -1 | X34: 9 | Y34: 2 | Z34: -6 | AA34: -10 | AB34: 6 | AC34: -9 | AD34: -8 | BJ34: =IF(K34>0,1,0) -> 1 | BK34: =IF(L34>0,1,0) -> 1 | BL34: =IF(M34>0,1,0) -> 0 | BM34: =IF(N34>0,1,0) -> 0 | BN34: =IF(O34>0,1,0) -> 1 | BO34: =IF(P34>0,1,0) -> 1 | BP34: =IF(Q34>0,1,0) -> 0 | BQ34: =IF(R34>0,1,0) -> 0 | BR34: =IF(S34>0,1,0) -> 1 | BS34: =IF(T34>0,1,0) -> 1 | BT34: =IF(U34>0,1,0) -> 0 | BU34: =IF(V34>0,1,0) -> 1 | BV34: =IF(W34>0,1,0) -> 0 | BW34: =IF(X34>0,1,0) -> 1 | BX34: =IF(Y34>0,1,0) -> 1 | BY34: =IF(Z34>0,1,0) -> 0 | BZ34: =IF(AA34>0,1,0) -> 0 | CA34: =IF(AB34>0,1,0) -> 1 | CB34: =IF(AC34>0,1,0) -> 0 | CC34: =IF(AD34>0,1,0) -> 0 | CD34: =IF(AE34>0,1,0) -> 0 | CE34: =IF(AF34>0,1,0) -> 0 | CF34: =IF(AG34>0,1,0) -> 0 | CG34: =IF(AH34>0,1,0) -> 0 | CH34: =IF(AI34>0,1,0) -> 0 | CI34: =IF(AJ34>0,1,0) -> 0 | CJ34: =IF(AK34>0,1,0) -> 0 | CK34: =IF(AL34>0,1,0) -> 0 | CL34: =IF(AM34>0,1,0) -> 0 | CM34: =IF(AN34>0,1,0) -> 0 | CN34: =IF(AO34>0,1,0) -> 0 | CO34: =IF(AP34>0,1,0) -> 0 | CP34: =IF(AQ34>0,1,0) -> 0 | CQ34: =IF(AR34>0,1,0) -> 0 | CR34: =IF(AS34>0,1,0) -> 0 | CS34: =IF(AT34>0,1,0) -> 0 | CT34: =IF(AU34>0,1,0) -> 0 | CU34: =IF(AV34>0,1,0) -> 0 | CV34: =IF(AW34>0,1,0) -> 0 | CW34: =IF(AX34>0,1,0) -> 0 | CX34: =IF(AY34>0,1,0) -> 0 | CY34: =IF(AZ34>0,1,0) -> 0 | CZ34: =IF(BA34>0,1,0) -> 0 | DA34: =IF(BB34>0,1,0) -> 0 | DB34: =IF(BC34>0,1,0) -> 0 | DC34: =IF(BD34>0,1,0) -> 0 | DD34: =IF(BE34>0,1,0) -> 0 | DE34: =IF(BF34>0,1,0) -> 0 | DF34: =IF(BG34>0,1,0) -> 0 | DG34: 0
A35: 13 | B35: Piet | D35: Luub | E35: =COUNT(K35:BH35) -> 14 | F35: =SUM(BJ35:DG35) -> 9 | G35: =SUM(K35:BH35) -> 29 | H35: =IF(E35=0,-0.99,F35/E35) -> 0.6428571429 | I35: =IF(AND(E35>0,E35<0.5*$B$103),-0.01,H35) -> 0.6428571429 | J35: =IF(I35>=0,I35,IF(I35=-0.01,"<1/2","")) -> 0.6428571429 | Q35: -5 | R35: 2 | U35: 2 | V35: 6 | W35: -12 | X35: 13 | Y35: 13 | Z35: 6 | AA35: 9 | AB35: -5 | AC35: 7 | AD35: 8 | AE35: -11 | AF35: -4 | BJ35: =IF(K35>0,1,0) -> 0 | BK35: =IF(L35>0,1,0) -> 0 | BL35: =IF(M35>0,1,0) -> 0 | BM35: =IF(N35>0,1,0) -> 0 | BN35: =IF(O35>0,1,0) -> 0 | BO35: =IF(P35>0,1,0) -> 0 | BP35: =IF(Q35>0,1,0) -> 0 | BQ35: =IF(R35>0,1,0) -> 1 | BR35: =IF(S35>0,1,0) -> 0 | BS35: =IF(T35>0,1,0) -> 0 | BT35: =IF(U35>0,1,0) -> 1 | BU35: =IF(V35>0,1,0) -> 1 | BV35: =IF(W35>0,1,0) -> 0 | BW35: =IF(X35>0,1,0) -> 1 | BX35: =IF(Y35>0,1,0) -> 1 | BY35: =IF(Z35>0,1,0) -> 1 | BZ35: =IF(AA35>0,1,0) -> 1 | CA35: =IF(AB35>0,1,0) -> 0 | CB35: =IF(AC35>0,1,0) -> 1 | CC35: =IF(AD35>0,1,0) -> 1 | CD35: =IF(AE35>0,1,0) -> 0 | CE35: =IF(AF35>0,1,0) -> 0 | CF35: =IF(AG35>0,1,0) -> 0 | CG35: =IF(AH35>0,1,0) -> 0 | CH35: =IF(AI35>0,1,0) -> 0 | CI35: =IF(AJ35>0,1,0) -> 0 | CJ35: =IF(AK35>0,1,0) -> 0 | CK35: =IF(AL35>0,1,0) -> 0 | CL35: =IF(AM35>0,1,0) -> 0 | CM35: =IF(AN35>0,1,0) -> 0 | CN35: =IF(AO35>0,1,0) -> 0 | CO35: =IF(AP35>0,1,0) -> 0 | CP35: =IF(AQ35>0,1,0) -> 0 | CQ35: =IF(AR35>0,1,0) -> 0 | CR35: =IF(AS35>0,1,0) -> 0 | CS35: =IF(AT35>0,1,0) -> 0 | CT35: =IF(AU35>0,1,0) -> 0 | CU35: =IF(AV35>0,1,0) -> 0 | CV35: =IF(AW35>0,1,0) -> 0 | CW35: =IF(AX35>0,1,0) -> 0 | CX35: =IF(AY35>0,1,0) -> 0 | CY35: =IF(AZ35>0,1,0) -> 0 | CZ35: =IF(BA35>0,1,0) -> 0 | DA35: =IF(BB35>0,1,0) -> 0 | DB35: =IF(BC35>0,1,0) -> 0 | DC35: =IF(BD35>0,1,0) -> 0 | DD35: =IF(BE35>0,1,0) -> 0 | DE35: =IF(BF35>0,1,0) -> 0 | DF35: =IF(BG35>0,1,0) -> 0 | DG35: 0
A36: 26 | B36: Stef | C36: vd | D36: Maat | E36: =COUNT(K36:BH36) -> 16 | F36: =SUM(BJ36:DG36) -> 8 | G36: =SUM(K36:BH36) -> 18 | H36: =IF(E36=0,-0.99,F36/E36) -> 0.5 | I36: =IF(AND(E36>0,E36<0.5*$B$103),-0.01,H36) -> 0.5 | J36: =IF(I36>=0,I36,IF(I36=-0.01,"<1/2","")) -> 0.5 | K36: -2 | L36: -9 | M36: -6 | N36: 7 | O36: 11 | P36: 3 | Q36: 2 | R36: -7 | S36: -2 | T36: 6 | W36: -6 | X36: 10 | Y36: -1 | Z36: -5 | AA36: 7 | AB36: 10 | BJ36: =IF(K36>0,1,0) -> 0 | BK36: =IF(L36>0,1,0) -> 0 | BL36: =IF(M36>0,1,0) -> 0 | BM36: =IF(N36>0,1,0) -> 1 | BN36: =IF(O36>0,1,0) -> 1 | BO36: =IF(P36>0,1,0) -> 1 | BP36: =IF(Q36>0,1,0) -> 1 | BQ36: =IF(R36>0,1,0) -> 0 | BR36: =IF(S36>0,1,0) -> 0 | BS36: =IF(T36>0,1,0) -> 1 | BT36: =IF(U36>0,1,0) -> 0 | BU36: =IF(V36>0,1,0) -> 0 | BV36: =IF(W36>0,1,0) -> 0 | BW36: =IF(X36>0,1,0) -> 1 | BX36: =IF(Y36>0,1,0) -> 0 | BY36: =IF(Z36>0,1,0) -> 0 | BZ36: =IF(AA36>0,1,0) -> 1 | CA36: =IF(AB36>0,1,0) -> 1 | CB36: =IF(AC36>0,1,0) -> 0 | CC36: =IF(AD36>0,1,0) -> 0 | CD36: =IF(AE36>0,1,0) -> 0 | CE36: =IF(AF36>0,1,0) -> 0 | CF36: =IF(AG36>0,1,0) -> 0 | CG36: =IF(AH36>0,1,0) -> 0 | CH36: =IF(AI36>0,1,0) -> 0 | CI36: =IF(AJ36>0,1,0) -> 0 | CJ36: =IF(AK36>0,1,0) -> 0 | CK36: =IF(AL36>0,1,0) -> 0 | CL36: =IF(AM36>0,1,0) -> 0 | CM36: =IF(AN36>0,1,0) -> 0 | CN36: =IF(AO36>0,1,0) -> 0 | CO36: =IF(AP36>0,1,0) -> 0 | CP36: =IF(AQ36>0,1,0) -> 0 | CQ36: =IF(AR36>0,1,0) -> 0 | CR36: =IF(AS36>0,1,0) -> 0 | CS36: =IF(AT36>0,1,0) -> 0 | CT36: =IF(AU36>0,1,0) -> 0 | CU36: =IF(AV36>0,1,0) -> 0 | CV36: =IF(AW36>0,1,0) -> 0 | CW36: =IF(AX36>0,1,0) -> 0 | CX36: =IF(AY36>0,1,0) -> 0 | CY36: =IF(AZ36>0,1,0) -> 0 | CZ36: =IF(BA36>0,1,0) -> 0 | DA36: =IF(BB36>0,1,0) -> 0 | DB36: =IF(BC36>0,1,0) -> 0 | DC36: =IF(BD36>0,1,0) -> 0 | DD36: =IF(BE36>0,1,0) -> 0 | DE36: =IF(BF36>0,1,0) -> 0 | DF36: =IF(BG36>0,1,0) -> 0 | DG36: =IF(BH36>0,1,0) -> 0
A37: 41 | B37: Anton | C37: v | D37: Meeuwsen | E37: =COUNT(K37:BH37) -> 22 | F37: =SUM(BJ37:DG37) -> 9 | G37: =SUM(K37:BH37) -> -13 | H37: =IF(E37=0,-0.99,F37/E37) -> 0.4090909091 | I37: =IF(AND(E37>0,E37<0.5*$B$103),-0.01,H37) -> 0.4090909091 | J37: =IF(I37>=0,I37,IF(I37=-0.01,"<1/2","")) -> 0.4090909091 | K37: -8 | L37: -11 | M37: 10 | N37: -3 | O37: -2 | P37: 8 | Q37: -11 | R37: -3 | S37: 8 | T37: -4 | U37: -1 | V37: -13 | W37: 6 | X37: 11 | Y37: 6 | Z37: 5 | AA37: -7 | AB37: 7 | AC37: -7 | AD37: -8 | AE37: 8 | AF37: -4 | BJ37: =IF(K37>0,1,0) -> 0 | BK37: =IF(L37>0,1,0) -> 0 | BL37: =IF(M37>0,1,0) -> 1 | BM37: =IF(N37>0,1,0) -> 0 | BN37: =IF(O37>0,1,0) -> 0 | BO37: =IF(P37>0,1,0) -> 1 | BP37: =IF(Q37>0,1,0) -> 0 | BQ37: =IF(R37>0,1,0) -> 0 | BR37: =IF(S37>0,1,0) -> 1 | BS37: =IF(T37>0,1,0) -> 0 | BT37: =IF(U37>0,1,0) -> 0 | BU37: =IF(V37>0,1,0) -> 0 | BV37: =IF(W37>0,1,0) -> 1 | BW37: =IF(X37>0,1,0) -> 1 | BX37: =IF(Y37>0,1,0) -> 1 | BY37: =IF(Z37>0,1,0) -> 1 | BZ37: =IF(AA37>0,1,0) -> 0 | CA37: =IF(AB37>0,1,0) -> 1 | CB37: =IF(AC37>0,1,0) -> 0 | CC37: =IF(AD37>0,1,0) -> 0 | CD37: =IF(AE37>0,1,0) -> 1 | CE37: =IF(AF37>0,1,0) -> 0 | CF37: =IF(AG37>0,1,0) -> 0 | CG37: =IF(AH37>0,1,0) -> 0 | CH37: =IF(AI37>0,1,0) -> 0 | CI37: =IF(AJ37>0,1,0) -> 0 | CJ37: =IF(AK37>0,1,0) -> 0 | CK37: =IF(AL37>0,1,0) -> 0 | CL37: =IF(AM37>0,1,0) -> 0 | CM37: =IF(AN37>0,1,0) -> 0 | CN37: =IF(AO37>0,1,0) -> 0 | CO37: =IF(AP37>0,1,0) -> 0 | CP37: =IF(AQ37>0,1,0) -> 0 | CQ37: =IF(AR37>0,1,0) -> 0 | CR37: =IF(AS37>0,1,0) -> 0 | CS37: =IF(AT37>0,1,0) -> 0 | CT37: =IF(AU37>0,1,0) -> 0 | CU37: =IF(AV37>0,1,0) -> 0 | CV37: =IF(AW37>0,1,0) -> 0 | CW37: =IF(AX37>0,1,0) -> 0 | CX37: =IF(AY37>0,1,0) -> 0 | CY37: =IF(AZ37>0,1,0) -> 0 | CZ37: =IF(BA37>0,1,0) -> 0 | DA37: =IF(BB37>0,1,0) -> 0 | DB37: =IF(BC37>0,1,0) -> 0 | DC37: =IF(BD37>0,1,0) -> 0 | DD37: =IF(BE37>0,1,0) -> 0 | DE37: =IF(BF37>0,1,0) -> 0 | DF37: =IF(BG37>0,1,0) -> 0 | DG37: 0
A38: 27 | B38: Rinie | C38: v | D38: Meijden | E38: =COUNT(K38:BH38) -> 12 | F38: =SUM(BJ38:DG38) -> 6 | G38: =SUM(K38:BH38) -> 18 | H38: =IF(E38=0,-0.99,F38/E38) -> 0.5 | I38: =IF(AND(E38>0,E38<0.5*$B$103),-0.01,H38) -> 0.5 | J38: =IF(I38>=0,I38,IF(I38=-0.01,"<1/2","")) -> 0.5 | K38: 6 | L38: -10 | O38: -1 | P38: -10 | Q38: 11 | R38: -4 | S38: -2 | T38: 11 | U38: 8 | V38: -2 | Y38: 9 | Z38: 2 | BJ38: =IF(K38>0,1,0) -> 1 | BK38: =IF(L38>0,1,0) -> 0 | BL38: =IF(M38>0,1,0) -> 0 | BM38: =IF(N38>0,1,0) -> 0 | BN38: =IF(O38>0,1,0) -> 0 | BO38: =IF(P38>0,1,0) -> 0 | BP38: =IF(Q38>0,1,0) -> 1 | BQ38: =IF(R38>0,1,0) -> 0 | BR38: =IF(S38>0,1,0) -> 0 | BS38: =IF(T38>0,1,0) -> 1 | BT38: =IF(U38>0,1,0) -> 1 | BU38: =IF(V38>0,1,0) -> 0 | BV38: =IF(W38>0,1,0) -> 0 | BW38: =IF(X38>0,1,0) -> 0 | BX38: =IF(Y38>0,1,0) -> 1 | BY38: =IF(Z38>0,1,0) -> 1 | BZ38: =IF(AA38>0,1,0) -> 0 | CA38: =IF(AB38>0,1,0) -> 0 | CB38: =IF(AC38>0,1,0) -> 0 | CC38: =IF(AD38>0,1,0) -> 0 | CD38: =IF(AE38>0,1,0) -> 0 | CE38: =IF(AF38>0,1,0) -> 0 | CF38: =IF(AG38>0,1,0) -> 0 | CG38: =IF(AH38>0,1,0) -> 0 | CH38: =IF(AI38>0,1,0) -> 0 | CI38: =IF(AJ38>0,1,0) -> 0 | CJ38: =IF(AK38>0,1,0) -> 0 | CK38: =IF(AL38>0,1,0) -> 0 | CL38: =IF(AM38>0,1,0) -> 0 | CM38: =IF(AN38>0,1,0) -> 0 | CN38: =IF(AO38>0,1,0) -> 0 | CO38: =IF(AP38>0,1,0) -> 0 | CP38: =IF(AQ38>0,1,0) -> 0 | CQ38: =IF(AR38>0,1,0) -> 0 | CR38: =IF(AS38>0,1,0) -> 0 | CS38: =IF(AT38>0,1,0) -> 0 | CT38: =IF(AU38>0,1,0) -> 0 | CU38: =IF(AV38>0,1,0) -> 0 | CV38: =IF(AW38>0,1,0) -> 0 | CW38: =IF(AX38>0,1,0) -> 0 | CX38: =IF(AY38>0,1,0) -> 0 | CY38: =IF(AZ38>0,1,0) -> 0 | CZ38: =IF(BA38>0,1,0) -> 0 | DA38: =IF(BB38>0,1,0) -> 0 | DB38: =IF(BC38>0,1,0) -> 0 | DC38: =IF(BD38>0,1,0) -> 0 | DD38: =IF(BE38>0,1,0) -> 0 | DE38: =IF(BF38>0,1,0) -> 0 | DF38: =IF(BG38>0,1,0) -> 0 | DG38: 0
A39: 37 | B39: Jeanne | D39: Oosterhout | E39: =COUNT(K39:BH39) -> 16 | F39: =SUM(BJ39:DG39) -> 7 | G39: =SUM(K39:BH39) -> -3 | H39: =IF(E39=0,-0.99,F39/E39) -> 0.4375 | I39: =IF(AND(E39>0,E39<0.5*$B$103),-0.01,H39) -> 0.4375 | J39: =IF(I39>=0,I39,IF(I39=-0.01,"<1/2","")) -> 0.4375 | K39: -3 | L39: 13 | M39: -1 | N39: -5 | O39: -9 | P39: 6 | Q39: -10 | R39: -3 | U39: 4 | V39: -7 | Y39: 6 | Z39: 5 | AA39: 9 | AB39: -5 | AE39: 1 | AF39: -4 | BJ39: =IF(K39>0,1,0) -> 0 | BK39: =IF(L39>0,1,0) -> 1 | BL39: =IF(M39>0,1,0) -> 0 | BM39: =IF(N39>0,1,0) -> 0 | BN39: =IF(O39>0,1,0) -> 0 | BO39: =IF(P39>0,1,0) -> 1 | BP39: =IF(Q39>0,1,0) -> 0 | BQ39: =IF(R39>0,1,0) -> 0 | BR39: =IF(S39>0,1,0) -> 0 | BS39: =IF(T39>0,1,0) -> 0 | BT39: =IF(U39>0,1,0) -> 1 | BU39: =IF(V39>0,1,0) -> 0 | BV39: =IF(W39>0,1,0) -> 0 | BW39: =IF(X39>0,1,0) -> 0 | BX39: =IF(Y39>0,1,0) -> 1 | BY39: =IF(Z39>0,1,0) -> 1 | BZ39: =IF(AA39>0,1,0) -> 1 | CA39: =IF(AB39>0,1,0) -> 0 | CB39: =IF(AC39>0,1,0) -> 0 | CC39: =IF(AD39>0,1,0) -> 0 | CD39: =IF(AE39>0,1,0) -> 1 | CE39: =IF(AF39>0,1,0) -> 0 | CF39: =IF(AG39>0,1,0) -> 0 | CG39: =IF(AH39>0,1,0) -> 0 | CH39: =IF(AI39>0,1,0) -> 0 | CI39: =IF(AJ39>0,1,0) -> 0 | CJ39: =IF(AK39>0,1,0) -> 0 | CK39: =IF(AL39>0,1,0) -> 0 | CL39: =IF(AM39>0,1,0) -> 0 | CM39: =IF(AN39>0,1,0) -> 0 | CN39: =IF(AO39>0,1,0) -> 0 | CO39: =IF(AP39>0,1,0) -> 0 | CP39: =IF(AQ39>0,1,0) -> 0 | CQ39: =IF(AR39>0,1,0) -> 0 | CR39: =IF(AS39>0,1,0) -> 0 | CS39: =IF(AT39>0,1,0) -> 0 | CT39: =IF(AU39>0,1,0) -> 0 | CU39: =IF(AV39>0,1,0) -> 0 | CV39: =IF(AW39>0,1,0) -> 0 | CW39: =IF(AX39>0,1,0) -> 0 | CX39: =IF(AY39>0,1,0) -> 0 | CY39: =IF(AZ39>0,1,0) -> 0 | CZ39: =IF(BA39>0,1,0) -> 0 | DA39: =IF(BB39>0,1,0) -> 0 | DB39: =IF(BC39>0,1,0) -> 0 | DC39: =IF(BD39>0,1,0) -> 0 | DD39: =IF(BE39>0,1,0) -> 0 | DE39: =IF(BF39>0,1,0) -> 0 | DF39: =IF(BG39>0,1,0) -> 0 | DG39: 0
A40: 4 | B40: Jan | C40: v | D40: Pas | E40: =COUNT(K40:BH40) -> 12 | F40: =SUM(BJ40:DG40) -> 9 | G40: =SUM(K40:BH40) -> 48 | H40: =IF(E40=0,-0.99,F40/E40) -> 0.75 | I40: =IF(AND(E40>0,E40<0.5*$B$103),-0.01,H40) -> 0.75 | J40: =IF(I40>=0,I40,IF(I40=-0.01,"<1/2","")) -> 0.75 | K40: 1 | L40: 11 | O40: 4 | P40: 9 | U40: -2 | V40: -9 | W40: 10 | X40: 5 | Y40: -4 | Z40: 13 | AE40: 1 | AF40: 9 | BJ40: =IF(K40>0,1,0) -> 1 | BK40: =IF(L40>0,1,0) -> 1 | BL40: =IF(M40>0,1,0) -> 0 | BM40: =IF(N40>0,1,0) -> 0 | BN40: =IF(O40>0,1,0) -> 1 | BO40: =IF(P40>0,1,0) -> 1 | BP40: =IF(Q40>0,1,0) -> 0 | BQ40: =IF(R40>0,1,0) -> 0 | BR40: =IF(S40>0,1,0) -> 0 | BS40: =IF(T40>0,1,0) -> 0 | BT40: =IF(U40>0,1,0) -> 0 | BU40: =IF(V40>0,1,0) -> 0 | BV40: =IF(W40>0,1,0) -> 1 | BW40: =IF(X40>0,1,0) -> 1 | BX40: =IF(Y40>0,1,0) -> 0 | BY40: =IF(Z40>0,1,0) -> 1 | BZ40: =IF(AA40>0,1,0) -> 0 | CA40: =IF(AB40>0,1,0) -> 0 | CB40: =IF(AC40>0,1,0) -> 0 | CC40: =IF(AD40>0,1,0) -> 0 | CD40: =IF(AE40>0,1,0) -> 1 | CE40: =IF(AF40>0,1,0) -> 1 | CF40: =IF(AG40>0,1,0) -> 0 | CG40: =IF(AH40>0,1,0) -> 0 | CH40: =IF(AI40>0,1,0) -> 0 | CI40: =IF(AJ40>0,1,0) -> 0 | CJ40: =IF(AK40>0,1,0) -> 0 | CK40: =IF(AL40>0,1,0) -> 0 | CL40: =IF(AM40>0,1,0) -> 0 | CM40: =IF(AN40>0,1,0) -> 0 | CN40: =IF(AO40>0,1,0) -> 0 | CO40: =IF(AP40>0,1,0) -> 0 | CP40: =IF(AQ40>0,1,0) -> 0 | CQ40: =IF(AR40>0,1,0) -> 0 | CR40: =IF(AS40>0,1,0) -> 0 | CS40: =IF(AT40>0,1,0) -> 0 | CT40: =IF(AU40>0,1,0) -> 0 | CU40: =IF(AV40>0,1,0) -> 0 | CV40: =IF(AW40>0,1,0) -> 0 | CW40: =IF(AX40>0,1,0) -> 0 | CX40: =IF(AY40>0,1,0) -> 0 | CY40: =IF(AZ40>0,1,0) -> 0 | CZ40: =IF(BA40>0,1,0) -> 0 | DA40: =IF(BB40>0,1,0) -> 0 | DB40: =IF(BC40>0,1,0) -> 0 | DC40: =IF(BD40>0,1,0) -> 0 | DD40: =IF(BE40>0,1,0) -> 0 | DE40: =IF(BF40>0,1,0) -> 0 | DF40: =IF(BG40>0,1,0) -> 0 | DG40: 0
A41: 44 | B41: Joke | C41: de | D41: Peters | E41: =COUNT(K41:BH41) -> 18 | F41: =SUM(BJ41:DG41) -> 7 | G41: =SUM(K41:BH41) -> -55 | H41: =IF(E41=0,-0.99,F41/E41) -> 0.3888888889 | I41: =IF(AND(E41>0,E41<0.5*$B$103),-0.01,H41) -> 0.3888888889 | J41: =IF(I41>=0,I41,IF(I41=-0.01,"<1/2","")) -> 0.3888888889 | K41: -5 | L41: 1 | M41: -9 | N41: 5 | O41: -11 | P41: -13 | Q41: -10 | R41: -4 | U41: 1 | V41: 7 | W41: -4 | X41: 1 | AA41: -4 | AB41: -5 | AC41: 7 | AD41: -12 | AE41: 3 | AF41: -3 | BJ41: =IF(K41>0,1,0) -> 0 | BK41: =IF(L41>0,1,0) -> 1 | BL41: =IF(M41>0,1,0) -> 0 | BM41: =IF(N41>0,1,0) -> 1 | BN41: =IF(O41>0,1,0) -> 0 | BO41: =IF(P41>0,1,0) -> 0 | BP41: =IF(Q41>0,1,0) -> 0 | BQ41: =IF(R41>0,1,0) -> 0 | BR41: =IF(S41>0,1,0) -> 0 | BS41: =IF(T41>0,1,0) -> 0 | BT41: =IF(U41>0,1,0) -> 1 | BU41: =IF(V41>0,1,0) -> 1 | BV41: =IF(W41>0,1,0) -> 0 | BW41: =IF(X41>0,1,0) -> 1 | BX41: =IF(Y41>0,1,0) -> 0 | BY41: =IF(Z41>0,1,0) -> 0 | BZ41: =IF(AA41>0,1,0) -> 0 | CA41: =IF(AB41>0,1,0) -> 0 | CB41: =IF(AC41>0,1,0) -> 1 | CC41: =IF(AD41>0,1,0) -> 0 | CD41: =IF(AE41>0,1,0) -> 1 | CE41: =IF(AF41>0,1,0) -> 0 | CF41: =IF(AG41>0,1,0) -> 0 | CG41: =IF(AH41>0,1,0) -> 0 | CH41: =IF(AI41>0,1,0) -> 0 | CI41: =IF(AJ41>0,1,0) -> 0 | CJ41: =IF(AK41>0,1,0) -> 0 | CK41: =IF(AL41>0,1,0) -> 0 | CL41: =IF(AM41>0,1,0) -> 0 | CM41: =IF(AN41>0,1,0) -> 0 | CN41: =IF(AO41>0,1,0) -> 0 | CO41: =IF(AP41>0,1,0) -> 0 | CP41: =IF(AQ41>0,1,0) -> 0 | CQ41: =IF(AR41>0,1,0) -> 0 | CR41: =IF(AS41>0,1,0) -> 0 | CS41: =IF(AT41>0,1,0) -> 0 | CT41: =IF(AU41>0,1,0) -> 0 | CU41: =IF(AV41>0,1,0) -> 0 | CV41: =IF(AW41>0,1,0) -> 0 | CW41: =IF(AX41>0,1,0) -> 0 | CX41: =IF(AY41>0,1,0) -> 0 | CY41: =IF(AZ41>0,1,0) -> 0 | CZ41: =IF(BA41>0,1,0) -> 0 | DA41: =IF(BB41>0,1,0) -> 0 | DB41: =IF(BC41>0,1,0) -> 0 | DC41: =IF(BD41>0,1,0) -> 0 | DD41: =IF(BE41>0,1,0) -> 0 | DE41: =IF(BF41>0,1,0) -> 0 | DF41: =IF(BG41>0,1,0) -> 0 | DG41: 0
A42: 24 | B42: Cor | C42: v | D42: Ploem | E42: =COUNT(K42:BH42) -> 20 | F42: =SUM(BJ42:DG42) -> 11 | G42: =SUM(K42:BH42) -> -3 | H42: =IF(E42=0,-0.99,F42/E42) -> 0.55 | I42: =IF(AND(E42>0,E42<0.5*$B$103),-0.01,H42) -> 0.55 | J42: =IF(I42>=0,I42,IF(I42=-0.01,"<1/2","")) -> 0.55 | M42: 6 | N42: 3 | O42: 4 | P42: -8 | Q42: -5 | R42: 3 | S42: -13 | T42: 4 | U42: -11 | V42: -2 | W42: 3 | X42: 12 | Y42: 2 | Z42: 10 | AA42: 1 | AB42: -3 | AC42: -1 | AD42: 2 | AE42: -3 | AF42: -7 | BJ42: =IF(K42>0,1,0) -> 0 | BK42: =IF(L42>0,1,0) -> 0 | BL42: =IF(M42>0,1,0) -> 1 | BM42: =IF(N42>0,1,0) -> 1 | BN42: =IF(O42>0,1,0) -> 1 | BO42: =IF(P42>0,1,0) -> 0 | BP42: =IF(Q42>0,1,0) -> 0 | BQ42: =IF(R42>0,1,0) -> 1 | BR42: =IF(S42>0,1,0) -> 0 | BS42: =IF(T42>0,1,0) -> 1 | BT42: =IF(U42>0,1,0) -> 0 | BU42: =IF(V42>0,1,0) -> 0 | BV42: =IF(W42>0,1,0) -> 1 | BW42: =IF(X42>0,1,0) -> 1 | BX42: =IF(Y42>0,1,0) -> 1 | BY42: =IF(Z42>0,1,0) -> 1 | BZ42: =IF(AA42>0,1,0) -> 1 | CA42: =IF(AB42>0,1,0) -> 0 | CB42: =IF(AC42>0,1,0) -> 0 | CC42: =IF(AD42>0,1,0) -> 1 | CD42: =IF(AE42>0,1,0) -> 0 | CE42: =IF(AF42>0,1,0) -> 0 | CF42: =IF(AG42>0,1,0) -> 0 | CG42: =IF(AH42>0,1,0) -> 0 | CH42: =IF(AI42>0,1,0) -> 0 | CI42: =IF(AJ42>0,1,0) -> 0 | CJ42: =IF(AK42>0,1,0) -> 0 | CK42: =IF(AL42>0,1,0) -> 0 | CL42: =IF(AM42>0,1,0) -> 0 | CM42: =IF(AN42>0,1,0) -> 0 | CN42: =IF(AO42>0,1,0) -> 0 | CO42: =IF(AP42>0,1,0) -> 0 | CP42: =IF(AQ42>0,1,0) -> 0 | CQ42: =IF(AR42>0,1,0) -> 0 | CR42: =IF(AS42>0,1,0) -> 0 | CS42: =IF(AT42>0,1,0) -> 0 | CT42: =IF(AU42>0,1,0) -> 0 | CU42: =IF(AV42>0,1,0) -> 0 | CV42: =IF(AW42>0,1,0) -> 0 | CW42: =IF(AX42>0,1,0) -> 0 | CX42: =IF(AY42>0,1,0) -> 0 | CY42: =IF(AZ42>0,1,0) -> 0 | CZ42: =IF(BA42>0,1,0) -> 0 | DA42: =IF(BB42>0,1,0) -> 0 | DB42: =IF(BC42>0,1,0) -> 0 | DC42: =IF(BD42>0,1,0) -> 0 | DD42: =IF(BE42>0,1,0) -> 0 | DE42: =IF(BF42>0,1,0) -> 0 | DF42: =IF(BG42>0,1,0) -> 0 | DG42: 0
A43: 50 | B43: Joke | D43: Pruisen | E43: =COUNT(K43:BH43) -> 18 | F43: =SUM(BJ43:DG43) -> 5 | G43: =SUM(K43:BH43) -> -57 | H43: =IF(E43=0,-0.99,F43/E43) -> 0.2777777778 | I43: =IF(AND(E43>0,E43<0.5*$B$103),-0.01,H43) -> 0.2777777778 | J43: =IF(I43>=0,I43,IF(I43=-0.01,"<1/2","")) -> 0.2777777778 | K43: -7 | L43: -6 | M43: 9 | N43: 3 | O43: -11 | P43: 9 | Q43: -11 | R43: -2 | U43: -8 | V43: 2 | W43: -8 | X43: -9 | Y43: -11 | Z43: -1 | AC43: -7 | AD43: -1 | AE43: 5 | AF43: -3 | BJ43: =IF(K43>0,1,0) -> 0 | BK43: =IF(L43>0,1,0) -> 0 | BL43: =IF(M43>0,1,0) -> 1 | BM43: =IF(N43>0,1,0) -> 1 | BN43: =IF(O43>0,1,0) -> 0 | BO43: =IF(P43>0,1,0) -> 1 | BP43: =IF(Q43>0,1,0) -> 0 | BQ43: =IF(R43>0,1,0) -> 0 | BR43: =IF(S43>0,1,0) -> 0 | BS43: =IF(T43>0,1,0) -> 0 | BT43: =IF(U43>0,1,0) -> 0 | BU43: =IF(V43>0,1,0) -> 1 | BV43: =IF(W43>0,1,0) -> 0 | BW43: =IF(X43>0,1,0) -> 0 | BX43: =IF(Y43>0,1,0) -> 0 | BY43: =IF(Z43>0,1,0) -> 0 | BZ43: =IF(AA43>0,1,0) -> 0 | CA43: =IF(AB43>0,1,0) -> 0 | CB43: =IF(AC43>0,1,0) -> 0 | CC43: =IF(AD43>0,1,0) -> 0 | CD43: =IF(AE43>0,1,0) -> 1 | CE43: =IF(AF43>0,1,0) -> 0 | CF43: =IF(AG43>0,1,0) -> 0 | CG43: =IF(AH43>0,1,0) -> 0 | CH43: =IF(AI43>0,1,0) -> 0 | CI43: =IF(AJ43>0,1,0) -> 0 | CJ43: =IF(AK43>0,1,0) -> 0 | CK43: =IF(AL43>0,1,0) -> 0 | CL43: =IF(AM43>0,1,0) -> 0 | CM43: =IF(AN43>0,1,0) -> 0 | CN43: =IF(AO43>0,1,0) -> 0 | CO43: =IF(AP43>0,1,0) -> 0 | CP43: =IF(AQ43>0,1,0) -> 0 | CQ43: =IF(AR43>0,1,0) -> 0 | CR43: =IF(AS43>0,1,0) -> 0 | CS43: =IF(AT43>0,1,0) -> 0 | CT43: =IF(AU43>0,1,0) -> 0 | CU43: =IF(AV43>0,1,0) -> 0 | CV43: =IF(AW43>0,1,0) -> 0 | CW43: =IF(AX43>0,1,0) -> 0 | CX43: =IF(AY43>0,1,0) -> 0 | CY43: =IF(AZ43>0,1,0) -> 0 | CZ43: =IF(BA43>0,1,0) -> 0 | DA43: =IF(BB43>0,1,0) -> 0 | DB43: =IF(BC43>0,1,0) -> 0 | DC43: =IF(BD43>0,1,0) -> 0 | DD43: =IF(BE43>0,1,0) -> 0 | DE43: =IF(BF43>0,1,0) -> 0 | DF43: =IF(BG43>0,1,0) -> 0 | DG43: 0
A44: 25 | B44: Mart | C44: vd | D44: Roché | E44: =COUNT(K44:BH44) -> 18 | F44: =SUM(BJ44:DG44) -> 9 | G44: =SUM(K44:BH44) -> 28 | H44: =IF(E44=0,-0.99,F44/E44) -> 0.5 | I44: =IF(AND(E44>0,E44<0.5*$B$103),-0.01,H44) -> 0.5 | J44: =IF(I44>=0,I44,IF(I44=-0.01,"<1/2","")) -> 0.5 | M44: 4 | N44: -5 | O44: -4 | P44: -2 | Q44: 11 | R44: 2 | S44: -7 | T44: 4 | U44: -1 | V44: -3 | W44: 6 | X44: -8 | AA44: 10 | AB44: 8 | AC44: -3 | AD44: 12 | AE44: -3 | AF44: 7 | BJ44: =IF(K44>0,1,0) -> 0 | BK44: =IF(L44>0,1,0) -> 0 | BL44: =IF(M44>0,1,0) -> 1 | BM44: =IF(N44>0,1,0) -> 0 | BN44: =IF(O44>0,1,0) -> 0 | BO44: =IF(P44>0,1,0) -> 0 | BP44: =IF(Q44>0,1,0) -> 1 | BQ44: =IF(R44>0,1,0) -> 1 | BR44: =IF(S44>0,1,0) -> 0 | BS44: =IF(T44>0,1,0) -> 1 | BT44: =IF(U44>0,1,0) -> 0 | BU44: =IF(V44>0,1,0) -> 0 | BV44: =IF(W44>0,1,0) -> 1 | BW44: =IF(X44>0,1,0) -> 0 | BX44: =IF(Y44>0,1,0) -> 0 | BY44: =IF(Z44>0,1,0) -> 0 | BZ44: =IF(AA44>0,1,0) -> 1 | CA44: =IF(AB44>0,1,0) -> 1 | CB44: =IF(AC44>0,1,0) -> 0 | CC44: =IF(AD44>0,1,0) -> 1 | CD44: =IF(AE44>0,1,0) -> 0 | CE44: =IF(AF44>0,1,0) -> 1 | CF44: =IF(AG44>0,1,0) -> 0 | CG44: =IF(AH44>0,1,0) -> 0 | CH44: =IF(AI44>0,1,0) -> 0 | CI44: =IF(AJ44>0,1,0) -> 0 | CJ44: =IF(AK44>0,1,0) -> 0 | CK44: =IF(AL44>0,1,0) -> 0 | CL44: =IF(AM44>0,1,0) -> 0 | CM44: =IF(AN44>0,1,0) -> 0 | CN44: =IF(AO44>0,1,0) -> 0 | CO44: =IF(AP44>0,1,0) -> 0 | CP44: =IF(AQ44>0,1,0) -> 0 | CQ44: =IF(AR44>0,1,0) -> 0 | CR44: =IF(AS44>0,1,0) -> 0 | CS44: =IF(AT44>0,1,0) -> 0 | CT44: =IF(AU44>0,1,0) -> 0 | CU44: =IF(AV44>0,1,0) -> 0 | CV44: =IF(AW44>0,1,0) -> 0 | CW44: =IF(AX44>0,1,0) -> 0 | CX44: =IF(AY44>0,1,0) -> 0 | CY44: =IF(AZ44>0,1,0) -> 0 | CZ44: =IF(BA44>0,1,0) -> 0 | DA44: =IF(BB44>0,1,0) -> 0 | DB44: =IF(BC44>0,1,0) -> 0 | DC44: =IF(BD44>0,1,0) -> 0 | DD44: =IF(BE44>0,1,0) -> 0 | DE44: =IF(BF44>0,1,0) -> 0 | DF44: =IF(BG44>0,1,0) -> 0 | DG44: 0
A45: 22 | B45: Frans | C45: vd | D45: Rosmalen | E45: =COUNT(K45:BH45) -> 20 | F45: =SUM(BJ45:DG45) -> 11 | G45: =SUM(K45:BH45) -> 33 | H45: =IF(E45=0,-0.99,F45/E45) -> 0.55 | I45: =IF(AND(E45>0,E45<0.5*$B$103),-0.01,H45) -> 0.55 | J45: =IF(I45>=0,I45,IF(I45=-0.01,"<1/2","")) -> 0.55 | K45: 4 | L45: -1 | O45: 13 | P45: 3 | Q45: 10 | R45: 8 | S45: -1 | T45: 8 | U45: 8 | V45: -6 | W45: 4 | X45: -9 | Y45: 1 | Z45: -10 | AA45: 9 | AB45: -5 | AC45: 3 | AD45: -2 | AE45: -3 | AF45: -1 | BJ45: =IF(K45>0,1,0) -> 1 | BK45: =IF(L45>0,1,0) -> 0 | BL45: =IF(M45>0,1,0) -> 0 | BM45: =IF(N45>0,1,0) -> 0 | BN45: =IF(O45>0,1,0) -> 1 | BO45: =IF(P45>0,1,0) -> 1 | BP45: =IF(Q45>0,1,0) -> 1 | BQ45: =IF(R45>0,1,0) -> 1 | BR45: =IF(S45>0,1,0) -> 0 | BS45: =IF(T45>0,1,0) -> 1 | BT45: =IF(U45>0,1,0) -> 1 | BU45: =IF(V45>0,1,0) -> 0 | BV45: =IF(W45>0,1,0) -> 1 | BW45: =IF(X45>0,1,0) -> 0 | BX45: =IF(Y45>0,1,0) -> 1 | BY45: =IF(Z45>0,1,0) -> 0 | BZ45: =IF(AA45>0,1,0) -> 1 | CA45: =IF(AB45>0,1,0) -> 0 | CB45: =IF(AC45>0,1,0) -> 1 | CC45: =IF(AD45>0,1,0) -> 0 | CD45: =IF(AE45>0,1,0) -> 0 | CE45: =IF(AF45>0,1,0) -> 0 | CF45: =IF(AG45>0,1,0) -> 0 | CG45: =IF(AH45>0,1,0) -> 0 | CH45: =IF(AI45>0,1,0) -> 0 | CI45: =IF(AJ45>0,1,0) -> 0 | CJ45: =IF(AK45>0,1,0) -> 0 | CK45: =IF(AL45>0,1,0) -> 0 | CL45: =IF(AM45>0,1,0) -> 0 | CM45: =IF(AN45>0,1,0) -> 0 | CN45: =IF(AO45>0,1,0) -> 0 | CO45: =IF(AP45>0,1,0) -> 0 | CP45: =IF(AQ45>0,1,0) -> 0 | CQ45: =IF(AR45>0,1,0) -> 0 | CR45: =IF(AS45>0,1,0) -> 0 | CS45: =IF(AT45>0,1,0) -> 0 | CT45: =IF(AU45>0,1,0) -> 0 | CU45: =IF(AV45>0,1,0) -> 0 | CV45: =IF(AW45>0,1,0) -> 0 | CW45: =IF(AX45>0,1,0) -> 0 | CX45: =IF(AY45>0,1,0) -> 0 | CY45: =IF(AZ45>0,1,0) -> 0 | CZ45: =IF(BA45>0,1,0) -> 0 | DA45: =IF(BB45>0,1,0) -> 0 | DB45: =IF(BC45>0,1,0) -> 0 | DC45: =IF(BD45>0,1,0) -> 0 | DD45: =IF(BE45>0,1,0) -> 0 | DE45: =IF(BF45>0,1,0) -> 0 | DF45: =IF(BG45>0,1,0) -> 0 | DG45: 0
A46: 58 | B46: Annie | C46: v | D46: Rovers | E46: =COUNT(K46:BH46) -> 2 | F46: =SUM(BJ46:DG46) -> 1 | G46: =SUM(K46:BH46) -> 2 | H46: =IF(E46=0,-0.99,F46/E46) -> 0.5 | I46: =IF(AND(E46>0,E46<0.5*$B$103),-0.01,H46) -> -0.01 | J46: =IF(I46>=0,I46,IF(I46=-0.01,"<1/2","")) -> <1/2 | AA46: -1 | AB46: 3 | BJ46: =IF(K46>0,1,0) -> 0 | BK46: =IF(L46>0,1,0) -> 0 | BL46: =IF(M46>0,1,0) -> 0 | BM46: =IF(N46>0,1,0) -> 0 | BN46: =IF(O46>0,1,0) -> 0 | BO46: =IF(P46>0,1,0) -> 0 | BP46: =IF(Q46>0,1,0) -> 0 | BQ46: =IF(R46>0,1,0) -> 0 | BR46: =IF(S46>0,1,0) -> 0 | BS46: =IF(T46>0,1,0) -> 0 | BT46: =IF(U46>0,1,0) -> 0 | BU46: =IF(V46>0,1,0) -> 0 | BV46: =IF(W46>0,1,0) -> 0 | BW46: =IF(X46>0,1,0) -> 0 | BX46: =IF(Y46>0,1,0) -> 0 | BY46: =IF(Z46>0,1,0) -> 0 | BZ46: =IF(AA46>0,1,0) -> 0 | CA46: =IF(AB46>0,1,0) -> 1 | CB46: =IF(AC46>0,1,0) -> 0 | CC46: =IF(AD46>0,1,0) -> 0 | CD46: =IF(AE46>0,1,0) -> 0 | CE46: =IF(AF46>0,1,0) -> 0 | CF46: =IF(AG46>0,1,0) -> 0 | CG46: =IF(AH46>0,1,0) -> 0 | CH46: =IF(AI46>0,1,0) -> 0 | CI46: =IF(AJ46>0,1,0) -> 0 | CJ46: =IF(AK46>0,1,0) -> 0 | CK46: =IF(AL46>0,1,0) -> 0 | CL46: =IF(AM46>0,1,0) -> 0 | CM46: =IF(AN46>0,1,0) -> 0 | CN46: =IF(AO46>0,1,0) -> 0 | CO46: =IF(AP46>0,1,0) -> 0 | CP46: =IF(AQ46>0,1,0) -> 0 | CQ46: =IF(AR46>0,1,0) -> 0 | CR46: =IF(AS46>0,1,0) -> 0 | CS46: =IF(AT46>0,1,0) -> 0 | CT46: =IF(AU46>0,1,0) -> 0 | CU46: =IF(AV46>0,1,0) -> 0 | CV46: =IF(AW46>0,1,0) -> 0 | CW46: =IF(AX46>0,1,0) -> 0 | CX46: =IF(AY46>0,1,0) -> 0 | CY46: =IF(AZ46>0,1,0) -> 0 | CZ46: =IF(BA46>0,1,0) -> 0 | DA46: =IF(BB46>0,1,0) -> 0 | DB46: =IF(BC46>0,1,0) -> 0 | DC46: =IF(BD46>0,1,0) -> 0 | DD46: =IF(BE46>0,1,0) -> 0 | DE46: =IF(BF46>0,1,0) -> 0 | DF46: =IF(BG46>0,1,0) -> 0 | DG46: 0
A47: 8 | B47: Kees | C47: v | D47: Ruisel | E47: =COUNT(K47:BH47) -> 22 | F47: =SUM(BJ47:DG47) -> 15 | G47: =SUM(K47:BH47) -> 65 | H47: =IF(E47=0,-0.99,F47/E47) -> 0.6818181818 | I47: =IF(AND(E47>0,E47<0.5*$B$103),-0.01,H47) -> 0.6818181818 | J47: =IF(I47>=0,I47,IF(I47=-0.01,"<1/2","")) -> 0.6818181818 | K47: 7 | L47: 13 | M47: -9 | N47: -3 | O47: 7 | P47: -6 | Q47: 3 | R47: 2 | S47: 12 | T47: 4 | U47: -1 | V47: 2 | W47: -6 | X47: 10 | Y47: 12 | Z47: 8 | AA47: 8 | AB47: 6 | AC47: -1 | AD47: -12 | AE47: 5 | AF47: 4 | BJ47: =IF(K47>0,1,0) -> 1 | BK47: =IF(L47>0,1,0) -> 1 | BL47: =IF(M47>0,1,0) -> 0 | BM47: =IF(N47>0,1,0) -> 0 | BN47: =IF(O47>0,1,0) -> 1 | BO47: =IF(P47>0,1,0) -> 0 | BP47: =IF(Q47>0,1,0) -> 1 | BQ47: =IF(R47>0,1,0) -> 1 | BR47: =IF(S47>0,1,0) -> 1 | BS47: =IF(T47>0,1,0) -> 1 | BT47: =IF(U47>0,1,0) -> 0 | BU47: =IF(V47>0,1,0) -> 1 | BV47: =IF(W47>0,1,0) -> 0 | BW47: =IF(X47>0,1,0) -> 1 | BX47: =IF(Y47>0,1,0) -> 1 | BY47: =IF(Z47>0,1,0) -> 1 | BZ47: =IF(AA47>0,1,0) -> 1 | CA47: =IF(AB47>0,1,0) -> 1 | CB47: =IF(AC47>0,1,0) -> 0 | CC47: =IF(AD47>0,1,0) -> 0 | CD47: =IF(AE47>0,1,0) -> 1 | CE47: =IF(AF47>0,1,0) -> 1 | CF47: =IF(AG47>0,1,0) -> 0 | CG47: =IF(AH47>0,1,0) -> 0 | CH47: =IF(AI47>0,1,0) -> 0 | CI47: =IF(AJ47>0,1,0) -> 0 | CJ47: =IF(AK47>0,1,0) -> 0 | CK47: =IF(AL47>0,1,0) -> 0 | CL47: =IF(AM47>0,1,0) -> 0 | CM47: =IF(AN47>0,1,0) -> 0 | CN47: =IF(AO47>0,1,0) -> 0 | CO47: =IF(AP47>0,1,0) -> 0 | CP47: =IF(AQ47>0,1,0) -> 0 | CQ47: =IF(AR47>0,1,0) -> 0 | CR47: =IF(AS47>0,1,0) -> 0 | CS47: =IF(AT47>0,1,0) -> 0 | CT47: =IF(AU47>0,1,0) -> 0 | CU47: =IF(AV47>0,1,0) -> 0 | CV47: =IF(AW47>0,1,0) -> 0 | CW47: =IF(AX47>0,1,0) -> 0 | CX47: =IF(AY47>0,1,0) -> 0 | CY47: =IF(AZ47>0,1,0) -> 0 | CZ47: =IF(BA47>0,1,0) -> 0 | DA47: =IF(BB47>0,1,0) -> 0 | DB47: =IF(BC47>0,1,0) -> 0 | DC47: =IF(BD47>0,1,0) -> 0 | DD47: =IF(BE47>0,1,0) -> 0 | DE47: =IF(BF47>0,1,0) -> 0 | DF47: =IF(BG47>0,1,0) -> 0 | DG47: 0
A48: 28 | B48: Elly | C48: v | D48: Sanders | E48: =COUNT(K48:BH48) -> 12 | F48: =SUM(BJ48:DG48) -> 6 | G48: =SUM(K48:BH48) -> 6 | H48: =IF(E48=0,-0.99,F48/E48) -> 0.5 | I48: =IF(AND(E48>0,E48<0.5*$B$103),-0.01,H48) -> 0.5 | J48: =IF(I48>=0,I48,IF(I48=-0.01,"<1/2","")) -> 0.5 | M48: 9 | N48: 5 | O48: -4 | P48: -9 | S48: -12 | T48: 10 | AA48: 10 | AB48: 5 | AC48: 11 | AD48: -8 | AE48: -4 | AF48: -7 | BJ48: =IF(K48>0,1,0) -> 0 | BK48: =IF(L48>0,1,0) -> 0 | BL48: =IF(M48>0,1,0) -> 1 | BM48: =IF(N48>0,1,0) -> 1 | BN48: =IF(O48>0,1,0) -> 0 | BO48: =IF(P48>0,1,0) -> 0 | BP48: =IF(Q48>0,1,0) -> 0 | BQ48: =IF(R48>0,1,0) -> 0 | BR48: =IF(S48>0,1,0) -> 0 | BS48: =IF(T48>0,1,0) -> 1 | BT48: =IF(U48>0,1,0) -> 0 | BU48: =IF(V48>0,1,0) -> 0 | BV48: =IF(W48>0,1,0) -> 0 | BW48: =IF(X48>0,1,0) -> 0 | BX48: =IF(Y48>0,1,0) -> 0 | BY48: =IF(Z48>0,1,0) -> 0 | BZ48: =IF(AA48>0,1,0) -> 1 | CA48: =IF(AB48>0,1,0) -> 1 | CB48: =IF(AC48>0,1,0) -> 1 | CC48: =IF(AD48>0,1,0) -> 0 | CD48: =IF(AE48>0,1,0) -> 0 | CE48: =IF(AF48>0,1,0) -> 0 | CF48: =IF(AG48>0,1,0) -> 0 | CG48: =IF(AH48>0,1,0) -> 0 | CH48: =IF(AI48>0,1,0) -> 0 | CI48: =IF(AJ48>0,1,0) -> 0 | CJ48: =IF(AK48>0,1,0) -> 0 | CK48: =IF(AL48>0,1,0) -> 0 | CL48: =IF(AM48>0,1,0) -> 0 | CM48: =IF(AN48>0,1,0) -> 0 | CN48: =IF(AO48>0,1,0) -> 0 | CO48: =IF(AP48>0,1,0) -> 0 | CP48: =IF(AQ48>0,1,0) -> 0 | CQ48: =IF(AR48>0,1,0) -> 0 | CR48: =IF(AS48>0,1,0) -> 0 | CS48: =IF(AT48>0,1,0) -> 0 | CT48: =IF(AU48>0,1,0) -> 0 | CU48: =IF(AV48>0,1,0) -> 0 | CV48: =IF(AW48>0,1,0) -> 0 | CW48: =IF(AX48>0,1,0) -> 0 | CX48: =IF(AY48>0,1,0) -> 0 | CY48: =IF(AZ48>0,1,0) -> 0 | CZ48: =IF(BA48>0,1,0) -> 0 | DA48: =IF(BB48>0,1,0) -> 0 | DB48: =IF(BC48>0,1,0) -> 0 | DC48: =IF(BD48>0,1,0) -> 0 | DD48: =IF(BE48>0,1,0) -> 0 | DE48: =IF(BF48>0,1,0) -> 0 | DF48: =IF(BG48>0,1,0) -> 0 | DG48: 0
A49: 63 | B49: Leny | C49: v | D49: Sepink | E49: =COUNT(K49:BH49) -> 10 | F49: =SUM(BJ49:DG49) -> 3 | G49: =SUM(K49:BH49) -> -39 | H49: =IF(E49=0,-0.99,F49/E49) -> 0.3 | I49: =IF(AND(E49>0,E49<0.5*$B$103),-0.01,H49) -> -0.01 | J49: =IF(I49>=0,I49,IF(I49=-0.01,"<1/2","")) -> <1/2 | K49: -6 | L49: -13 | M49: -10 | N49: -3 | O49: -13 | P49: 10 | U49: -8 | V49: 5 | AA49: 4 | AB49: -5 | BJ49: =IF(K49>0,1,0) -> 0 | BK49: =IF(L49>0,1,0) -> 0 | BL49: =IF(M49>0,1,0) -> 0 | BM49: =IF(N49>0,1,0) -> 0 | BN49: =IF(O49>0,1,0) -> 0 | BO49: =IF(P49>0,1,0) -> 1 | BP49: =IF(Q49>0,1,0) -> 0 | BQ49: =IF(R49>0,1,0) -> 0 | BR49: =IF(S49>0,1,0) -> 0 | BS49: =IF(T49>0,1,0) -> 0 | BT49: =IF(U49>0,1,0) -> 0 | BU49: =IF(V49>0,1,0) -> 1 | BV49: =IF(W49>0,1,0) -> 0 | BW49: =IF(X49>0,1,0) -> 0 | BX49: =IF(Y49>0,1,0) -> 0 | BY49: =IF(Z49>0,1,0) -> 0 | BZ49: =IF(AA49>0,1,0) -> 1 | CA49: =IF(AB49>0,1,0) -> 0 | CB49: =IF(AC49>0,1,0) -> 0 | CC49: =IF(AD49>0,1,0) -> 0 | CD49: =IF(AE49>0,1,0) -> 0 | CE49: =IF(AF49>0,1,0) -> 0 | CF49: =IF(AG49>0,1,0) -> 0 | CG49: =IF(AH49>0,1,0) -> 0 | CH49: =IF(AI49>0,1,0) -> 0 | CI49: =IF(AJ49>0,1,0) -> 0 | CJ49: =IF(AK49>0,1,0) -> 0 | CK49: =IF(AL49>0,1,0) -> 0 | CL49: =IF(AM49>0,1,0) -> 0 | CM49: =IF(AN49>0,1,0) -> 0 | CN49: =IF(AO49>0,1,0) -> 0 | CO49: =IF(AP49>0,1,0) -> 0 | CP49: =IF(AQ49>0,1,0) -> 0 | CQ49: =IF(AR49>0,1,0) -> 0 | CR49: =IF(AS49>0,1,0) -> 0 | CS49: =IF(AT49>0,1,0) -> 0 | CT49: =IF(AU49>0,1,0) -> 0 | CU49: =IF(AV49>0,1,0) -> 0 | CV49: =IF(AW49>0,1,0) -> 0 | CW49: =IF(AX49>0,1,0) -> 0 | CX49: =IF(AY49>0,1,0) -> 0 | CY49: =IF(AZ49>0,1,0) -> 0 | CZ49: =IF(BA49>0,1,0) -> 0 | DA49: =IF(BB49>0,1,0) -> 0 | DB49: =IF(BC49>0,1,0) -> 0 | DC49: =IF(BD49>0,1,0) -> 0 | DD49: =IF(BE49>0,1,0) -> 0 | DE49: =IF(BF49>0,1,0) -> 0 | DF49: =IF(BG49>0,1,0) -> 0 | DG49: 0
A50: 42 | B50: Frans | D50: Siebers | E50: =COUNT(K50:BH50) -> 20 | F50: =SUM(BJ50:DG50) -> 8 | G50: =SUM(K50:BH50) -> -13 | H50: =IF(E50=0,-0.99,F50/E50) -> 0.4 | I50: =IF(AND(E50>0,E50<0.5*$B$103),-0.01,H50) -> 0.4 | J50: =IF(I50>=0,I50,IF(I50=-0.01,"<1/2","")) -> 0.4 | K50: -11 | L50: 7 | M50: -10 | N50: 5 | O50: 2 | P50: -13 | Q50: -5 | R50: -3 | S50: 13 | T50: -2 | U50: -4 | V50: 6 | Y50: 12 | Z50: -2 | AA50: -7 | AB50: -8 | AC50: 11 | AD50: -2 | AE50: -5 | AF50: 3 | BJ50: =IF(K50>0,1,0) -> 0 | BK50: =IF(L50>0,1,0) -> 1 | BL50: =IF(M50>0,1,0) -> 0 | BM50: =IF(N50>0,1,0) -> 1 | BN50: =IF(O50>0,1,0) -> 1 | BO50: =IF(P50>0,1,0) -> 0 | BP50: =IF(Q50>0,1,0) -> 0 | BQ50: =IF(R50>0,1,0) -> 0 | BR50: =IF(S50>0,1,0) -> 1 | BS50: =IF(T50>0,1,0) -> 0 | BT50: =IF(U50>0,1,0) -> 0 | BU50: =IF(V50>0,1,0) -> 1 | BV50: =IF(W50>0,1,0) -> 0 | BW50: =IF(X50>0,1,0) -> 0 | BX50: =IF(Y50>0,1,0) -> 1 | BY50: =IF(Z50>0,1,0) -> 0 | BZ50: =IF(AA50>0,1,0) -> 0 | CA50: =IF(AB50>0,1,0) -> 0 | CB50: =IF(AC50>0,1,0) -> 1 | CC50: =IF(AD50>0,1,0) -> 0 | CD50: =IF(AE50>0,1,0) -> 0 | CE50: =IF(AF50>0,1,0) -> 1 | CF50: =IF(AG50>0,1,0) -> 0 | CG50: =IF(AH50>0,1,0) -> 0 | CH50: =IF(AI50>0,1,0) -> 0 | CI50: =IF(AJ50>0,1,0) -> 0 | CJ50: =IF(AK50>0,1,0) -> 0 | CK50: =IF(AL50>0,1,0) -> 0 | CL50: =IF(AM50>0,1,0) -> 0 | CM50: =IF(AN50>0,1,0) -> 0 | CN50: =IF(AO50>0,1,0) -> 0 | CO50: =IF(AP50>0,1,0) -> 0 | CP50: =IF(AQ50>0,1,0) -> 0 | CQ50: =IF(AR50>0,1,0) -> 0 | CR50: =IF(AS50>0,1,0) -> 0 | CS50: =IF(AT50>0,1,0) -> 0 | CT50: =IF(AU50>0,1,0) -> 0 | CU50: =IF(AV50>0,1,0) -> 0 | CV50: =IF(AW50>0,1,0) -> 0 | CW50: =IF(AX50>0,1,0) -> 0 | CX50: =IF(AY50>0,1,0) -> 0 | CY50: =IF(AZ50>0,1,0) -> 0 | CZ50: =IF(BA50>0,1,0) -> 0 | DA50: =IF(BB50>0,1,0) -> 0 | DB50: =IF(BC50>0,1,0) -> 0 | DC50: =IF(BD50>0,1,0) -> 0 | DD50: =IF(BE50>0,1,0) -> 0 | DE50: =IF(BF50>0,1,0) -> 0 | DF50: =IF(BG50>0,1,0) -> 0 | DG50: 0
A51: 10 | B51: Paula | C51: v | D51: Smetsers | E51: =COUNT(K51:BH51) -> 18 | F51: =SUM(BJ51:DG51) -> 12 | G51: =SUM(K51:BH51) -> 32 | H51: =IF(E51=0,-0.99,F51/E51) -> 0.6666666667 | I51: =IF(AND(E51>0,E51<0.5*$B$103),-0.01,H51) -> 0.6666666667 | J51: =IF(I51>=0,I51,IF(I51=-0.01,"<1/2","")) -> 0.6666666667 | K51: -7 | L51: 12 | M51: 5 | N51: 7 | O51: 6 | P51: 2 | Q51: -11 | R51: 4 | U51: 9 | V51: -6 | W51: -3 | X51: 5 | Y51: -13 | Z51: 2 | AA51: 10 | AB51: 8 | AC51: -10 | AD51: 12 | BJ51: =IF(K51>0,1,0) -> 0 | BK51: =IF(L51>0,1,0) -> 1 | BL51: =IF(M51>0,1,0) -> 1 | BM51: =IF(N51>0,1,0) -> 1 | BN51: =IF(O51>0,1,0) -> 1 | BO51: =IF(P51>0,1,0) -> 1 | BP51: =IF(Q51>0,1,0) -> 0 | BQ51: =IF(R51>0,1,0) -> 1 | BR51: =IF(S51>0,1,0) -> 0 | BS51: =IF(T51>0,1,0) -> 0 | BT51: =IF(U51>0,1,0) -> 1 | BU51: =IF(V51>0,1,0) -> 0 | BV51: =IF(W51>0,1,0) -> 0 | BW51: =IF(X51>0,1,0) -> 1 | BX51: =IF(Y51>0,1,0) -> 0 | BY51: =IF(Z51>0,1,0) -> 1 | BZ51: =IF(AA51>0,1,0) -> 1 | CA51: =IF(AB51>0,1,0) -> 1 | CB51: =IF(AC51>0,1,0) -> 0 | CC51: =IF(AD51>0,1,0) -> 1 | CD51: =IF(AE51>0,1,0) -> 0 | CE51: =IF(AF51>0,1,0) -> 0 | CF51: =IF(AG51>0,1,0) -> 0 | CG51: =IF(AH51>0,1,0) -> 0 | CH51: =IF(AI51>0,1,0) -> 0 | CI51: =IF(AJ51>0,1,0) -> 0 | CJ51: =IF(AK51>0,1,0) -> 0 | CK51: =IF(AL51>0,1,0) -> 0 | CL51: =IF(AM51>0,1,0) -> 0 | CM51: =IF(AN51>0,1,0) -> 0 | CN51: =IF(AO51>0,1,0) -> 0 | CO51: =IF(AP51>0,1,0) -> 0 | CP51: =IF(AQ51>0,1,0) -> 0 | CQ51: =IF(AR51>0,1,0) -> 0 | CR51: =IF(AS51>0,1,0) -> 0 | CS51: =IF(AT51>0,1,0) -> 0 | CT51: =IF(AU51>0,1,0) -> 0 | CU51: =IF(AV51>0,1,0) -> 0 | CV51: =IF(AW51>0,1,0) -> 0 | CW51: =IF(AX51>0,1,0) -> 0 | CX51: =IF(AY51>0,1,0) -> 0 | CY51: =IF(AZ51>0,1,0) -> 0 | CZ51: =IF(BA51>0,1,0) -> 0 | DA51: =IF(BB51>0,1,0) -> 0 | DB51: =IF(BC51>0,1,0) -> 0 | DC51: =IF(BD51>0,1,0) -> 0 | DD51: =IF(BE51>0,1,0) -> 0 | DE51: =IF(BF51>0,1,0) -> 0 | DF51: =IF(BG51>0,1,0) -> 0 | DG51: 0
A52: 14 | B52: Theo | C52: v | D52: Smulders | E52: =COUNT(K52:BH52) -> 14 | F52: =SUM(BJ52:DG52) -> 9 | G52: =SUM(K52:BH52) -> -17 | H52: =IF(E52=0,-0.99,F52/E52) -> 0.6428571429 | I52: =IF(AND(E52>0,E52<0.5*$B$103),-0.01,H52) -> 0.6428571429 | J52: =IF(I52>=0,I52,IF(I52=-0.01,"<1/2","")) -> 0.6428571429 | K52: 8 | L52: -12 | M52: -4 | N52: -11 | Q52: 3 | R52: 2 | W52: 6 | X52: 4 | Y52: -12 | Z52: 1 | AC52: 1 | AD52: -8 | AE52: 3 | AF52: 2 | BJ52: =IF(K52>0,1,0) -> 1 | BK52: =IF(L52>0,1,0) -> 0 | BL52: =IF(M52>0,1,0) -> 0 | BM52: =IF(N52>0,1,0) -> 0 | BN52: =IF(O52>0,1,0) -> 0 | BO52: =IF(P52>0,1,0) -> 0 | BP52: =IF(Q52>0,1,0) -> 1 | BQ52: =IF(R52>0,1,0) -> 1 | BR52: =IF(S52>0,1,0) -> 0 | BS52: =IF(T52>0,1,0) -> 0 | BT52: =IF(U52>0,1,0) -> 0 | BU52: =IF(V52>0,1,0) -> 0 | BV52: =IF(W52>0,1,0) -> 1 | BW52: =IF(X52>0,1,0) -> 1 | BX52: =IF(Y52>0,1,0) -> 0 | BY52: =IF(Z52>0,1,0) -> 1 | BZ52: =IF(AA52>0,1,0) -> 0 | CA52: =IF(AB52>0,1,0) -> 0 | CB52: =IF(AC52>0,1,0) -> 1 | CC52: =IF(AD52>0,1,0) -> 0 | CD52: =IF(AE52>0,1,0) -> 1 | CE52: =IF(AF52>0,1,0) -> 1 | CF52: =IF(AG52>0,1,0) -> 0 | CG52: =IF(AH52>0,1,0) -> 0 | CH52: =IF(AI52>0,1,0) -> 0 | CI52: =IF(AJ52>0,1,0) -> 0 | CJ52: =IF(AK52>0,1,0) -> 0 | CK52: =IF(AL52>0,1,0) -> 0 | CL52: =IF(AM52>0,1,0) -> 0 | CM52: =IF(AN52>0,1,0) -> 0 | CN52: =IF(AO52>0,1,0) -> 0 | CO52: =IF(AP52>0,1,0) -> 0 | CP52: =IF(AQ52>0,1,0) -> 0 | CQ52: =IF(AR52>0,1,0) -> 0 | CR52: =IF(AS52>0,1,0) -> 0 | CS52: =IF(AT52>0,1,0) -> 0 | CT52: =IF(AU52>0,1,0) -> 0 | CU52: =IF(AV52>0,1,0) -> 0 | CV52: =IF(AW52>0,1,0) -> 0 | CW52: =IF(AX52>0,1,0) -> 0 | CX52: =IF(AY52>0,1,0) -> 0 | CY52: =IF(AZ52>0,1,0) -> 0 | CZ52: =IF(BA52>0,1,0) -> 0 | DA52: =IF(BB52>0,1,0) -> 0 | DB52: =IF(BC52>0,1,0) -> 0 | DC52: =IF(BD52>0,1,0) -> 0 | DD52: =IF(BE52>0,1,0) -> 0 | DE52: =IF(BF52>0,1,0) -> 0 | DF52: =IF(BG52>0,1,0) -> 0 | DG52: 0
A53: 19 | B53: Anny | D53: Son | E53: =COUNT(K53:BH53) -> 18 | F53: =SUM(BJ53:DG53) -> 10 | G53: =SUM(K53:BH53) -> 19 | H53: =IF(E53=0,-0.99,F53/E53) -> 0.5555555556 | I53: =IF(AND(E53>0,E53<0.5*$B$103),-0.01,H53) -> 0.5555555556 | J53: =IF(I53>=0,I53,IF(I53=-0.01,"<1/2","")) -> 0.5555555556 | K53: -5 | L53: 6 | M53: 5 | N53: 5 | O53: 9 | P53: -3 | Q53: 8 | R53: -2 | S53: -12 | T53: 9 | U53: -11 | V53: 7 | Y53: -4 | Z53: 13 | AC53: -10 | AD53: 8 | AE53: 5 | AF53: -9 | BJ53: =IF(K53>0,1,0) -> 0 | BK53: =IF(L53>0,1,0) -> 1 | BL53: =IF(M53>0,1,0) -> 1 | BM53: =IF(N53>0,1,0) -> 1 | BN53: =IF(O53>0,1,0) -> 1 | BO53: =IF(P53>0,1,0) -> 0 | BP53: =IF(Q53>0,1,0) -> 1 | BQ53: =IF(R53>0,1,0) -> 0 | BR53: =IF(S53>0,1,0) -> 0 | BS53: =IF(T53>0,1,0) -> 1 | BT53: =IF(U53>0,1,0) -> 0 | BU53: =IF(V53>0,1,0) -> 1 | BV53: =IF(W53>0,1,0) -> 0 | BW53: =IF(X53>0,1,0) -> 0 | BX53: =IF(Y53>0,1,0) -> 0 | BY53: =IF(Z53>0,1,0) -> 1 | BZ53: =IF(AA53>0,1,0) -> 0 | CA53: =IF(AB53>0,1,0) -> 0 | CB53: =IF(AC53>0,1,0) -> 0 | CC53: =IF(AD53>0,1,0) -> 1 | CD53: =IF(AE53>0,1,0) -> 1 | CE53: =IF(AF53>0,1,0) -> 0 | CF53: =IF(AG53>0,1,0) -> 0 | CG53: =IF(AH53>0,1,0) -> 0 | CH53: =IF(AI53>0,1,0) -> 0 | CI53: =IF(AJ53>0,1,0) -> 0 | CJ53: =IF(AK53>0,1,0) -> 0 | CK53: =IF(AL53>0,1,0) -> 0 | CL53: =IF(AM53>0,1,0) -> 0 | CM53: =IF(AN53>0,1,0) -> 0 | CN53: =IF(AO53>0,1,0) -> 0 | CO53: =IF(AP53>0,1,0) -> 0 | CP53: =IF(AQ53>0,1,0) -> 0 | CQ53: =IF(AR53>0,1,0) -> 0 | CR53: =IF(AS53>0,1,0) -> 0 | CS53: =IF(AT53>0,1,0) -> 0 | CT53: =IF(AU53>0,1,0) -> 0 | CU53: =IF(AV53>0,1,0) -> 0 | CV53: =IF(AW53>0,1,0) -> 0 | CW53: =IF(AX53>0,1,0) -> 0 | CX53: =IF(AY53>0,1,0) -> 0 | CY53: =IF(AZ53>0,1,0) -> 0 | CZ53: =IF(BA53>0,1,0) -> 0 | DA53: =IF(BB53>0,1,0) -> 0 | DB53: =IF(BC53>0,1,0) -> 0 | DC53: =IF(BD53>0,1,0) -> 0 | DD53: =IF(BE53>0,1,0) -> 0 | DE53: =IF(BF53>0,1,0) -> 0 | DF53: =IF(BG53>0,1,0) -> 0 | DG53: 0
A54: 7 | B54: Sjaan | D54: Terhorst | E54: =COUNT(K54:BH54) -> 16 | F54: =SUM(BJ54:DG54) -> 11 | G54: =SUM(K54:BH54) -> 37 | H54: =IF(E54=0,-0.99,F54/E54) -> 0.6875 | I54: =IF(AND(E54>0,E54<0.5*$B$103),-0.01,H54) -> 0.6875 | J54: =IF(I54>=0,I54,IF(I54=-0.01,"<1/2","")) -> 0.6875 | K54: 5 | L54: 1 | O54: 11 | P54: -3 | U54: 1 | V54: 9 | W54: 12 | X54: 8 | Y54: 4 | Z54: 6 | AA54: -9 | AB54: -7 | AC54: 8 | AD54: 8 | AE54: -13 | AF54: -4 | BJ54: =IF(K54>0,1,0) -> 1 | BK54: =IF(L54>0,1,0) -> 1 | BL54: =IF(M54>0,1,0) -> 0 | BM54: =IF(N54>0,1,0) -> 0 | BN54: =IF(O54>0,1,0) -> 1 | BO54: =IF(P54>0,1,0) -> 0 | BP54: =IF(Q54>0,1,0) -> 0 | BQ54: =IF(R54>0,1,0) -> 0 | BR54: =IF(S54>0,1,0) -> 0 | BS54: =IF(T54>0,1,0) -> 0 | BT54: =IF(U54>0,1,0) -> 1 | BU54: =IF(V54>0,1,0) -> 1 | BV54: =IF(W54>0,1,0) -> 1 | BW54: =IF(X54>0,1,0) -> 1 | BX54: =IF(Y54>0,1,0) -> 1 | BY54: =IF(Z54>0,1,0) -> 1 | BZ54: =IF(AA54>0,1,0) -> 0 | CA54: =IF(AB54>0,1,0) -> 0 | CB54: =IF(AC54>0,1,0) -> 1 | CC54: =IF(AD54>0,1,0) -> 1 | CD54: =IF(AE54>0,1,0) -> 0 | CE54: =IF(AF54>0,1,0) -> 0 | CF54: =IF(AG54>0,1,0) -> 0 | CG54: =IF(AH54>0,1,0) -> 0 | CH54: =IF(AI54>0,1,0) -> 0 | CI54: =IF(AJ54>0,1,0) -> 0 | CJ54: =IF(AK54>0,1,0) -> 0 | CK54: =IF(AL54>0,1,0) -> 0 | CL54: =IF(AM54>0,1,0) -> 0 | CM54: =IF(AN54>0,1,0) -> 0 | CN54: =IF(AO54>0,1,0) -> 0 | CO54: =IF(AP54>0,1,0) -> 0 | CP54: =IF(AQ54>0,1,0) -> 0 | CQ54: =IF(AR54>0,1,0) -> 0 | CR54: =IF(AS54>0,1,0) -> 0 | CS54: =IF(AT54>0,1,0) -> 0 | CT54: =IF(AU54>0,1,0) -> 0 | CU54: =IF(AV54>0,1,0) -> 0 | CV54: =IF(AW54>0,1,0) -> 0 | CW54: =IF(AX54>0,1,0) -> 0 | CX54: =IF(AY54>0,1,0) -> 0 | CY54: =IF(AZ54>0,1,0) -> 0 | CZ54: =IF(BA54>0,1,0) -> 0 | DA54: =IF(BB54>0,1,0) -> 0 | DB54: =IF(BC54>0,1,0) -> 0 | DC54: =IF(BD54>0,1,0) -> 0 | DD54: =IF(BE54>0,1,0) -> 0 | DE54: =IF(BF54>0,1,0) -> 0 | DF54: =IF(BG54>0,1,0) -> 0 | DG54: 0
A55: 43 | B55: Wout | D55: Thijssen | E55: =COUNT(K55:BH55) -> 18 | F55: =SUM(BJ55:DG55) -> 7 | G55: =SUM(K55:BH55) -> -24 | H55: =IF(E55=0,-0.99,F55/E55) -> 0.3888888889 | I55: =IF(AND(E55>0,E55<0.5*$B$103),-0.01,H55) -> 0.3888888889 | J55: =IF(I55>=0,I55,IF(I55=-0.01,"<1/2","")) -> 0.3888888889 | K55: 11 | L55: -9 | M55: -5 | N55: -13 | O55: -9 | P55: 10 | Q55: -5 | R55: -5 | U55: -4 | V55: 2 | W55: 11 | X55: -13 | Y55: 6 | Z55: -13 | AC55: 7 | AD55: -2 | AE55: -2 | AF55: 9 | BJ55: =IF(K55>0,1,0) -> 1 | BK55: =IF(L55>0,1,0) -> 0 | BL55: =IF(M55>0,1,0) -> 0 | BM55: =IF(N55>0,1,0) -> 0 | BN55: =IF(O55>0,1,0) -> 0 | BO55: =IF(P55>0,1,0) -> 1 | BP55: =IF(Q55>0,1,0) -> 0 | BQ55: =IF(R55>0,1,0) -> 0 | BR55: =IF(S55>0,1,0) -> 0 | BS55: =IF(T55>0,1,0) -> 0 | BT55: =IF(U55>0,1,0) -> 0 | BU55: =IF(V55>0,1,0) -> 1 | BV55: =IF(W55>0,1,0) -> 1 | BW55: =IF(X55>0,1,0) -> 0 | BX55: =IF(Y55>0,1,0) -> 1 | BY55: =IF(Z55>0,1,0) -> 0 | BZ55: =IF(AA55>0,1,0) -> 0 | CA55: =IF(AB55>0,1,0) -> 0 | CB55: =IF(AC55>0,1,0) -> 1 | CC55: =IF(AD55>0,1,0) -> 0 | CD55: =IF(AE55>0,1,0) -> 0 | CE55: =IF(AF55>0,1,0) -> 1 | CF55: =IF(AG55>0,1,0) -> 0 | CG55: =IF(AH55>0,1,0) -> 0 | CH55: =IF(AI55>0,1,0) -> 0 | CI55: =IF(AJ55>0,1,0) -> 0 | CJ55: =IF(AK55>0,1,0) -> 0 | CK55: =IF(AL55>0,1,0) -> 0 | CL55: =IF(AM55>0,1,0) -> 0 | CM55: =IF(AN55>0,1,0) -> 0 | CN55: =IF(AO55>0,1,0) -> 0 | CO55: =IF(AP55>0,1,0) -> 0 | CP55: =IF(AQ55>0,1,0) -> 0 | CQ55: =IF(AR55>0,1,0) -> 0 | CR55: =IF(AS55>0,1,0) -> 0 | CS55: =IF(AT55>0,1,0) -> 0 | CT55: =IF(AU55>0,1,0) -> 0 | CU55: =IF(AV55>0,1,0) -> 0 | CV55: =IF(AW55>0,1,0) -> 0 | CW55: =IF(AX55>0,1,0) -> 0 | CX55: =IF(AY55>0,1,0) -> 0 | CY55: =IF(AZ55>0,1,0) -> 0 | CZ55: =IF(BA55>0,1,0) -> 0 | DA55: =IF(BB55>0,1,0) -> 0 | DB55: =IF(BC55>0,1,0) -> 0 | DC55: =IF(BD55>0,1,0) -> 0 | DD55: =IF(BE55>0,1,0) -> 0 | DE55: =IF(BF55>0,1,0) -> 0 | DF55: =IF(BG55>0,1,0) -> 0 | DG55: 0
A56: 23 | B56: Henk | C56: de | D56: Toelen | E56: =COUNT(K56:BH56) -> 20 | F56: =SUM(BJ56:DG56) -> 11 | G56: =SUM(K56:BH56) -> 8 | H56: =IF(E56=0,-0.99,F56/E56) -> 0.55 | I56: =IF(AND(E56>0,E56<0.5*$B$103),-0.01,H56) -> 0.55 | J56: =IF(I56>=0,I56,IF(I56=-0.01,"<1/2","")) -> 0.55 | K56: 5 | L56: -11 | M56: 8 | N56: -11 | O56: 11 | P56: -3 | Q56: 10 | R56: -3 | S56: 1 | T56: -12 | U56: 1 | V56: -5 | W56: -3 | X56: 13 | AA56: -11 | AB56: 5 | AC56: 13 | AD56: 6 | AE56: 3 | AF56: -9 | BJ56: =IF(K56>0,1,0) -> 1 | BK56: =IF(L56>0,1,0) -> 0 | BL56: =IF(M56>0,1,0) -> 1 | BM56: =IF(N56>0,1,0) -> 0 | BN56: =IF(O56>0,1,0) -> 1 | BO56: =IF(P56>0,1,0) -> 0 | BP56: =IF(Q56>0,1,0) -> 1 | BQ56: =IF(R56>0,1,0) -> 0 | BR56: =IF(S56>0,1,0) -> 1 | BS56: =IF(T56>0,1,0) -> 0 | BT56: =IF(U56>0,1,0) -> 1 | BU56: =IF(V56>0,1,0) -> 0 | BV56: =IF(W56>0,1,0) -> 0 | BW56: =IF(X56>0,1,0) -> 1 | BX56: =IF(Y56>0,1,0) -> 0 | BY56: =IF(Z56>0,1,0) -> 0 | BZ56: =IF(AA56>0,1,0) -> 0 | CA56: =IF(AB56>0,1,0) -> 1 | CB56: =IF(AC56>0,1,0) -> 1 | CC56: =IF(AD56>0,1,0) -> 1 | CD56: =IF(AE56>0,1,0) -> 1 | CE56: =IF(AF56>0,1,0) -> 0 | CF56: =IF(AG56>0,1,0) -> 0 | CG56: =IF(AH56>0,1,0) -> 0 | CH56: =IF(AI56>0,1,0) -> 0 | CI56: =IF(AJ56>0,1,0) -> 0 | CJ56: =IF(AK56>0,1,0) -> 0 | CK56: =IF(AL56>0,1,0) -> 0 | CL56: =IF(AM56>0,1,0) -> 0 | CM56: =IF(AN56>0,1,0) -> 0 | CN56: =IF(AO56>0,1,0) -> 0 | CO56: =IF(AP56>0,1,0) -> 0 | CP56: =IF(AQ56>0,1,0) -> 0 | CQ56: =IF(AR56>0,1,0) -> 0 | CR56: =IF(AS56>0,1,0) -> 0 | CS56: =IF(AT56>0,1,0) -> 0 | CT56: =IF(AU56>0,1,0) -> 0 | CU56: =IF(AV56>0,1,0) -> 0 | CV56: =IF(AW56>0,1,0) -> 0 | CW56: =IF(AX56>0,1,0) -> 0 | CX56: =IF(AY56>0,1,0) -> 0 | CY56: =IF(AZ56>0,1,0) -> 0 | CZ56: =IF(BA56>0,1,0) -> 0 | DA56: =IF(BB56>0,1,0) -> 0 | DB56: =IF(BC56>0,1,0) -> 0 | DC56: =IF(BD56>0,1,0) -> 0 | DD56: =IF(BE56>0,1,0) -> 0 | DE56: =IF(BF56>0,1,0) -> 0 | DF56: =IF(BG56>0,1,0) -> 0 | DG56: 0
A57: 11 | B57: Wim | C57: v | D57: Verboort | E57: =COUNT(K57:BH57) -> 20 | F57: =SUM(BJ57:DG57) -> 13 | G57: =SUM(K57:BH57) -> 28 | H57: =IF(E57=0,-0.99,F57/E57) -> 0.65 | I57: =IF(AND(E57>0,E57<0.5*$B$103),-0.01,H57) -> 0.65 | J57: =IF(I57>=0,I57,IF(I57=-0.01,"<1/2","")) -> 0.65 | K57: 6 | L57: 11 | M57: 9 | N57: 4 | O57: -7 | P57: -8 | Q57: -10 | R57: 3 | S57: 12 | T57: 11 | U57: 2 | V57: 5 | W57: -11 | X57: -10 | Y57: 6 | Z57: 10 | AA57: -11 | AB57: 5 | AE57: -5 | AF57: 6 | BJ57: =IF(K57>0,1,0) -> 1 | BK57: =IF(L57>0,1,0) -> 1 | BL57: =IF(M57>0,1,0) -> 1 | BM57: =IF(N57>0,1,0) -> 1 | BN57: =IF(O57>0,1,0) -> 0 | BO57: =IF(P57>0,1,0) -> 0 | BP57: =IF(Q57>0,1,0) -> 0 | BQ57: =IF(R57>0,1,0) -> 1 | BR57: =IF(S57>0,1,0) -> 1 | BS57: =IF(T57>0,1,0) -> 1 | BT57: =IF(U57>0,1,0) -> 1 | BU57: =IF(V57>0,1,0) -> 1 | BV57: =IF(W57>0,1,0) -> 0 | BW57: =IF(X57>0,1,0) -> 0 | BX57: =IF(Y57>0,1,0) -> 1 | BY57: =IF(Z57>0,1,0) -> 1 | BZ57: =IF(AA57>0,1,0) -> 0 | CA57: =IF(AB57>0,1,0) -> 1 | CB57: =IF(AC57>0,1,0) -> 0 | CC57: =IF(AD57>0,1,0) -> 0 | CD57: =IF(AE57>0,1,0) -> 0 | CE57: =IF(AF57>0,1,0) -> 1 | CF57: =IF(AG57>0,1,0) -> 0 | CG57: =IF(AH57>0,1,0) -> 0 | CH57: =IF(AI57>0,1,0) -> 0 | CI57: =IF(AJ57>0,1,0) -> 0 | CJ57: =IF(AK57>0,1,0) -> 0 | CK57: =IF(AL57>0,1,0) -> 0 | CL57: =IF(AM57>0,1,0) -> 0 | CM57: =IF(AN57>0,1,0) -> 0 | CN57: =IF(AO57>0,1,0) -> 0 | CO57: =IF(AP57>0,1,0) -> 0 | CP57: =IF(AQ57>0,1,0) -> 0 | CQ57: =IF(AR57>0,1,0) -> 0 | CR57: =IF(AS57>0,1,0) -> 0 | CS57: =IF(AT57>0,1,0) -> 0 | CT57: =IF(AU57>0,1,0) -> 0 | CU57: =IF(AV57>0,1,0) -> 0 | CV57: =IF(AW57>0,1,0) -> 0 | CW57: =IF(AX57>0,1,0) -> 0 | CX57: =IF(AY57>0,1,0) -> 0 | CY57: =IF(AZ57>0,1,0) -> 0 | CZ57: =IF(BA57>0,1,0) -> 0 | DA57: =IF(BB57>0,1,0) -> 0 | DB57: =IF(BC57>0,1,0) -> 0 | DC57: =IF(BD57>0,1,0) -> 0 | DD57: =IF(BE57>0,1,0) -> 0 | DE57: =IF(BF57>0,1,0) -> 0 | DF57: =IF(BG57>0,1,0) -> 0 | DG57: 0
A58: 52 | B58: Henk | C58: v | D58: Vergeer | E58: =COUNT(K58:BH58) -> 16 | F58: =SUM(BJ58:DG58) -> 4 | G58: =SUM(K58:BH58) -> -74 | H58: =IF(E58=0,-0.99,F58/E58) -> 0.25 | I58: =IF(AND(E58>0,E58<0.5*$B$103),-0.01,H58) -> 0.25 | J58: =IF(I58>=0,I58,IF(I58=-0.01,"<1/2","")) -> 0.25 | M58: -4 | N58: -5 | Q58: 2 | R58: -8 | S58: -7 | T58: -11 | W58: -1 | X58: -12 | Y58: 1 | Z58: -6 | AA58: 1 | AB58: -10 | AC58: 8 | AD58: -12 | AE58: -4 | AF58: -6 | BJ58: =IF(K58>0,1,0) -> 0 | BK58: =IF(L58>0,1,0) -> 0 | BL58: =IF(M58>0,1,0) -> 0 | BM58: =IF(N58>0,1,0) -> 0 | BN58: =IF(O58>0,1,0) -> 0 | BO58: =IF(P58>0,1,0) -> 0 | BP58: =IF(Q58>0,1,0) -> 1 | BQ58: =IF(R58>0,1,0) -> 0 | BR58: =IF(S58>0,1,0) -> 0 | BS58: =IF(T58>0,1,0) -> 0 | BT58: =IF(U58>0,1,0) -> 0 | BU58: =IF(V58>0,1,0) -> 0 | BV58: =IF(W58>0,1,0) -> 0 | BW58: =IF(X58>0,1,0) -> 0 | BX58: =IF(Y58>0,1,0) -> 1 | BY58: =IF(Z58>0,1,0) -> 0 | BZ58: =IF(AA58>0,1,0) -> 1 | CA58: =IF(AB58>0,1,0) -> 0 | CB58: =IF(AC58>0,1,0) -> 1 | CC58: =IF(AD58>0,1,0) -> 0 | CD58: =IF(AE58>0,1,0) -> 0 | CE58: =IF(AF58>0,1,0) -> 0 | CF58: =IF(AG58>0,1,0) -> 0 | CG58: =IF(AH58>0,1,0) -> 0 | CH58: =IF(AI58>0,1,0) -> 0 | CI58: =IF(AJ58>0,1,0) -> 0 | CJ58: =IF(AK58>0,1,0) -> 0 | CK58: =IF(AL58>0,1,0) -> 0 | CL58: =IF(AM58>0,1,0) -> 0 | CM58: =IF(AN58>0,1,0) -> 0 | CN58: =IF(AO58>0,1,0) -> 0 | CO58: =IF(AP58>0,1,0) -> 0 | CP58: =IF(AQ58>0,1,0) -> 0 | CQ58: =IF(AR58>0,1,0) -> 0 | CR58: =IF(AS58>0,1,0) -> 0 | CS58: =IF(AT58>0,1,0) -> 0 | CT58: =IF(AU58>0,1,0) -> 0 | CU58: =IF(AV58>0,1,0) -> 0 | CV58: =IF(AW58>0,1,0) -> 0 | CW58: =IF(AX58>0,1,0) -> 0 | CX58: =IF(AY58>0,1,0) -> 0 | CY58: =IF(AZ58>0,1,0) -> 0 | CZ58: =IF(BA58>0,1,0) -> 0 | DA58: =IF(BB58>0,1,0) -> 0 | DB58: =IF(BC58>0,1,0) -> 0 | DC58: =IF(BD58>0,1,0) -> 0 | DD58: =IF(BE58>0,1,0) -> 0 | DE58: =IF(BF58>0,1,0) -> 0 | DF58: =IF(BG58>0,1,0) -> 0 | DG58: 0
A59: 1 | B59: Jo | C59: v | D59: Verhagen | E59: =COUNT(K59:BH59) -> 18 | F59: =SUM(BJ59:DG59) -> 14 | G59: =SUM(K59:BH59) -> 60 | H59: =IF(E59=0,-0.99,F59/E59) -> 0.7777777778 | I59: =IF(AND(E59>0,E59<0.5*$B$103),-0.01,H59) -> 0.7777777778 | J59: =IF(I59>=0,I59,IF(I59=-0.01,"<1/2","")) -> 0.7777777778 | O59: 7 | P59: 9 | Q59: 5 | R59: 2 | S59: 9 | T59: -6 | U59: -1 | V59: -2 | W59: 1 | X59: -13 | Y59: 9 | Z59: 6 | AA59: 11 | AB59: 10 | AC59: 1 | AD59: 2 | AE59: 8 | AF59: 2 | BJ59: =IF(K59>0,1,0) -> 0 | BK59: =IF(L59>0,1,0) -> 0 | BL59: =IF(M59>0,1,0) -> 0 | BM59: =IF(N59>0,1,0) -> 0 | BN59: =IF(O59>0,1,0) -> 1 | BO59: =IF(P59>0,1,0) -> 1 | BP59: =IF(Q59>0,1,0) -> 1 | BQ59: =IF(R59>0,1,0) -> 1 | BR59: =IF(S59>0,1,0) -> 1 | BS59: =IF(T59>0,1,0) -> 0 | BT59: =IF(U59>0,1,0) -> 0 | BU59: =IF(V59>0,1,0) -> 0 | BV59: =IF(W59>0,1,0) -> 1 | BW59: =IF(X59>0,1,0) -> 0 | BX59: =IF(Y59>0,1,0) -> 1 | BY59: =IF(Z59>0,1,0) -> 1 | BZ59: =IF(AA59>0,1,0) -> 1 | CA59: =IF(AB59>0,1,0) -> 1 | CB59: =IF(AC59>0,1,0) -> 1 | CC59: =IF(AD59>0,1,0) -> 1 | CD59: =IF(AE59>0,1,0) -> 1 | CE59: =IF(AF59>0,1,0) -> 1 | CF59: =IF(AG59>0,1,0) -> 0 | CG59: =IF(AH59>0,1,0) -> 0 | CH59: =IF(AI59>0,1,0) -> 0 | CI59: =IF(AJ59>0,1,0) -> 0 | CJ59: =IF(AK59>0,1,0) -> 0 | CK59: =IF(AL59>0,1,0) -> 0 | CL59: =IF(AM59>0,1,0) -> 0 | CM59: =IF(AN59>0,1,0) -> 0 | CN59: =IF(AO59>0,1,0) -> 0 | CO59: =IF(AP59>0,1,0) -> 0 | CP59: =IF(AQ59>0,1,0) -> 0 | CQ59: =IF(AR59>0,1,0) -> 0 | CR59: =IF(AS59>0,1,0) -> 0 | CS59: =IF(AT59>0,1,0) -> 0 | CT59: =IF(AU59>0,1,0) -> 0 | CU59: =IF(AV59>0,1,0) -> 0 | CV59: =IF(AW59>0,1,0) -> 0 | CW59: =IF(AX59>0,1,0) -> 0 | CX59: =IF(AY59>0,1,0) -> 0 | CY59: =IF(AZ59>0,1,0) -> 0 | CZ59: =IF(BA59>0,1,0) -> 0 | DA59: =IF(BB59>0,1,0) -> 0 | DB59: =IF(BC59>0,1,0) -> 0 | DC59: =IF(BD59>0,1,0) -> 0 | DD59: =IF(BE59>0,1,0) -> 0 | DE59: =IF(BF59>0,1,0) -> 0 | DF59: =IF(BG59>0,1,0) -> 0 | DG59: 0
A60: 30 | B60: Riek | C60: vd | D60: Verhoeven | E60: =COUNT(K60:BH60) -> 20 | F60: =SUM(BJ60:DG60) -> 10 | G60: =SUM(K60:BH60) -> 2 | H60: =IF(E60=0,-0.99,F60/E60) -> 0.5 | I60: =IF(AND(E60>0,E60<0.5*$B$103),-0.01,H60) -> 0.5 | J60: =IF(I60>=0,I60,IF(I60=-0.01,"<1/2","")) -> 0.5 | K60: -8 | L60: -7 | M60: 1 | N60: -3 | O60: 6 | P60: -3 | Q60: 10 | R60: 5 | S60: 1 | T60: -4 | W60: 6 | X60: -9 | Y60: -6 | Z60: 12 | AA60: -1 | AB60: -6 | AC60: -7 | AD60: 8 | AE60: 3 | AF60: 4 | BJ60: =IF(K60>0,1,0) -> 0 | BK60: =IF(L60>0,1,0) -> 0 | BL60: =IF(M60>0,1,0) -> 1 | BM60: =IF(N60>0,1,0) -> 0 | BN60: =IF(O60>0,1,0) -> 1 | BO60: =IF(P60>0,1,0) -> 0 | BP60: =IF(Q60>0,1,0) -> 1 | BQ60: =IF(R60>0,1,0) -> 1 | BR60: =IF(S60>0,1,0) -> 1 | BS60: =IF(T60>0,1,0) -> 0 | BT60: =IF(U60>0,1,0) -> 0 | BU60: =IF(V60>0,1,0) -> 0 | BV60: =IF(W60>0,1,0) -> 1 | BW60: =IF(X60>0,1,0) -> 0 | BX60: =IF(Y60>0,1,0) -> 0 | BY60: =IF(Z60>0,1,0) -> 1 | BZ60: =IF(AA60>0,1,0) -> 0 | CA60: =IF(AB60>0,1,0) -> 0 | CB60: =IF(AC60>0,1,0) -> 0 | CC60: =IF(AD60>0,1,0) -> 1 | CD60: =IF(AE60>0,1,0) -> 1 | CE60: =IF(AF60>0,1,0) -> 1 | CF60: =IF(AG60>0,1,0) -> 0 | CG60: =IF(AH60>0,1,0) -> 0 | CH60: =IF(AI60>0,1,0) -> 0 | CI60: =IF(AJ60>0,1,0) -> 0 | CJ60: =IF(AK60>0,1,0) -> 0 | CK60: =IF(AL60>0,1,0) -> 0 | CL60: =IF(AM60>0,1,0) -> 0 | CM60: =IF(AN60>0,1,0) -> 0 | CN60: =IF(AO60>0,1,0) -> 0 | CO60: =IF(AP60>0,1,0) -> 0 | CP60: =IF(AQ60>0,1,0) -> 0 | CQ60: =IF(AR60>0,1,0) -> 0 | CR60: =IF(AS60>0,1,0) -> 0 | CS60: =IF(AT60>0,1,0) -> 0 | CT60: =IF(AU60>0,1,0) -> 0 | CU60: =IF(AV60>0,1,0) -> 0 | CV60: =IF(AW60>0,1,0) -> 0 | CW60: =IF(AX60>0,1,0) -> 0 | CX60: =IF(AY60>0,1,0) -> 0 | CY60: =IF(AZ60>0,1,0) -> 0 | CZ60: =IF(BA60>0,1,0) -> 0 | DA60: =IF(BB60>0,1,0) -> 0 | DB60: =IF(BC60>0,1,0) -> 0 | DC60: =IF(BD60>0,1,0) -> 0 | DD60: =IF(BE60>0,1,0) -> 0 | DE60: =IF(BF60>0,1,0) -> 0 | DF60: =IF(BG60>0,1,0) -> 0 | DG60: 0
A61: 55 | B61: Kees | C61: vd | D61: Verouden | E61: =COUNT(K61:BH61) -> 6 | F61: =SUM(BJ61:DG61) -> 5 | G61: =SUM(K61:BH61) -> 26 | H61: =IF(E61=0,-0.99,F61/E61) -> 0.8333333333 | I61: =IF(AND(E61>0,E61<0.5*$B$103),-0.01,H61) -> -0.01 | J61: =IF(I61>=0,I61,IF(I61=-0.01,"<1/2","")) -> <1/2 | Q61: -11 | R61: 5 | S61: 13 | T61: 7 | U61: 9 | V61: 3 | BJ61: =IF(K61>0,1,0) -> 0 | BK61: =IF(L61>0,1,0) -> 0 | BL61: =IF(M61>0,1,0) -> 0 | BM61: =IF(N61>0,1,0) -> 0 | BN61: =IF(O61>0,1,0) -> 0 | BO61: =IF(P61>0,1,0) -> 0 | BP61: =IF(Q61>0,1,0) -> 0 | BQ61: =IF(R61>0,1,0) -> 1 | BR61: =IF(S61>0,1,0) -> 1 | BS61: =IF(T61>0,1,0) -> 1 | BT61: =IF(U61>0,1,0) -> 1 | BU61: =IF(V61>0,1,0) -> 1 | BV61: =IF(W61>0,1,0) -> 0 | BW61: =IF(X61>0,1,0) -> 0 | BX61: =IF(Y61>0,1,0) -> 0 | BY61: =IF(Z61>0,1,0) -> 0 | BZ61: =IF(AA61>0,1,0) -> 0 | CA61: =IF(AB61>0,1,0) -> 0 | CB61: =IF(AC61>0,1,0) -> 0 | CC61: =IF(AD61>0,1,0) -> 0 | CD61: =IF(AE61>0,1,0) -> 0 | CE61: =IF(AF61>0,1,0) -> 0 | CF61: =IF(AG61>0,1,0) -> 0 | CG61: =IF(AH61>0,1,0) -> 0 | CH61: =IF(AI61>0,1,0) -> 0 | CI61: =IF(AJ61>0,1,0) -> 0 | CJ61: =IF(AK61>0,1,0) -> 0 | CK61: =IF(AL61>0,1,0) -> 0 | CL61: =IF(AM61>0,1,0) -> 0 | CM61: =IF(AN61>0,1,0) -> 0 | CN61: =IF(AO61>0,1,0) -> 0 | CO61: =IF(AP61>0,1,0) -> 0 | CP61: =IF(AQ61>0,1,0) -> 0 | CQ61: =IF(AR61>0,1,0) -> 0 | CR61: =IF(AS61>0,1,0) -> 0 | CS61: =IF(AT61>0,1,0) -> 0 | CT61: =IF(AU61>0,1,0) -> 0 | CU61: =IF(AV61>0,1,0) -> 0 | CV61: =IF(AW61>0,1,0) -> 0 | CW61: =IF(AX61>0,1,0) -> 0 | CX61: =IF(AY61>0,1,0) -> 0 | CY61: =IF(AZ61>0,1,0) -> 0 | CZ61: =IF(BA61>0,1,0) -> 0 | DA61: =IF(BB61>0,1,0) -> 0 | DB61: =IF(BC61>0,1,0) -> 0 | DC61: =IF(BD61>0,1,0) -> 0 | DD61: =IF(BE61>0,1,0) -> 0 | DE61: =IF(BF61>0,1,0) -> 0 | DF61: =IF(BG61>0,1,0) -> 0 | DG61: 0
A62: 66 | B62: Gon | C62: v | D62: Vliegen | E62: =COUNT(K62:BH62) -> 10 | F62: =SUM(BJ62:DG62) -> 2 | G62: =SUM(K62:BH62) -> -62 | H62: =IF(E62=0,-0.99,F62/E62) -> 0.2 | I62: =IF(AND(E62>0,E62<0.5*$B$103),-0.01,H62) -> -0.01 | J62: =IF(I62>=0,I62,IF(I62=-0.01,"<1/2","")) -> <1/2 | K62: 1 | L62: -13 | M62: -8 | N62: -5 | O62: -11 | P62: -6 | Q62: -1 | R62: -9 | S62: 2 | T62: -12 | BJ62: =IF(K62>0,1,0) -> 1 | BK62: =IF(L62>0,1,0) -> 0 | BL62: =IF(M62>0,1,0) -> 0 | BM62: =IF(N62>0,1,0) -> 0 | BN62: =IF(O62>0,1,0) -> 0 | BO62: =IF(P62>0,1,0) -> 0 | BP62: =IF(Q62>0,1,0) -> 0 | BQ62: =IF(R62>0,1,0) -> 0 | BR62: =IF(S62>0,1,0) -> 1 | BS62: =IF(T62>0,1,0) -> 0 | BT62: =IF(U62>0,1,0) -> 0 | BU62: =IF(V62>0,1,0) -> 0 | BV62: =IF(W62>0,1,0) -> 0 | BW62: =IF(X62>0,1,0) -> 0 | BX62: =IF(Y62>0,1,0) -> 0 | BY62: =IF(Z62>0,1,0) -> 0 | BZ62: =IF(AA62>0,1,0) -> 0 | CA62: =IF(AB62>0,1,0) -> 0 | CB62: =IF(AC62>0,1,0) -> 0 | CC62: =IF(AD62>0,1,0) -> 0 | CD62: =IF(AE62>0,1,0) -> 0 | CE62: =IF(AF62>0,1,0) -> 0 | CF62: =IF(AG62>0,1,0) -> 0 | CG62: =IF(AH62>0,1,0) -> 0 | CH62: =IF(AI62>0,1,0) -> 0 | CI62: =IF(AJ62>0,1,0) -> 0 | CJ62: =IF(AK62>0,1,0) -> 0 | CK62: =IF(AL62>0,1,0) -> 0 | CL62: =IF(AM62>0,1,0) -> 0 | CM62: =IF(AN62>0,1,0) -> 0 | CN62: =IF(AO62>0,1,0) -> 0 | CO62: =IF(AP62>0,1,0) -> 0 | CP62: =IF(AQ62>0,1,0) -> 0 | CQ62: =IF(AR62>0,1,0) -> 0 | CR62: =IF(AS62>0,1,0) -> 0 | CS62: =IF(AT62>0,1,0) -> 0 | CT62: =IF(AU62>0,1,0) -> 0 | CU62: =IF(AV62>0,1,0) -> 0 | CV62: =IF(AW62>0,1,0) -> 0 | CW62: =IF(AX62>0,1,0) -> 0 | CX62: =IF(AY62>0,1,0) -> 0 | CY62: =IF(AZ62>0,1,0) -> 0 | CZ62: =IF(BA62>0,1,0) -> 0 | DA62: =IF(BB62>0,1,0) -> 0 | DB62: =IF(BC62>0,1,0) -> 0 | DC62: =IF(BD62>0,1,0) -> 0 | DD62: =IF(BE62>0,1,0) -> 0 | DE62: =IF(BF62>0,1,0) -> 0 | DF62: =IF(BG62>0,1,0) -> 0 | DG62: 0
A63: 65 | B63: Ad | D63: Vogels | E63: =COUNT(K63:BH63) -> 10 | F63: =SUM(BJ63:DG63) -> 2 | G63: =SUM(K63:BH63) -> -54 | H63: =IF(E63=0,-0.99,F63/E63) -> 0.2 | I63: =IF(AND(E63>0,E63<0.5*$B$103),-0.01,H63) -> -0.01 | J63: =IF(I63>=0,I63,IF(I63=-0.01,"<1/2","")) -> <1/2 | O63: -6 | P63: -3 | S63: -13 | T63: -7 | W63: -6 | X63: -9 | AA63: -9 | AB63: 9 | AE63: -11 | AF63: 1 | BJ63: =IF(K63>0,1,0) -> 0 | BK63: =IF(L63>0,1,0) -> 0 | BL63: =IF(M63>0,1,0) -> 0 | BM63: =IF(N63>0,1,0) -> 0 | BN63: =IF(O63>0,1,0) -> 0 | BO63: =IF(P63>0,1,0) -> 0 | BP63: =IF(Q63>0,1,0) -> 0 | BQ63: =IF(R63>0,1,0) -> 0 | BR63: =IF(S63>0,1,0) -> 0 | BS63: =IF(T63>0,1,0) -> 0 | BT63: =IF(U63>0,1,0) -> 0 | BU63: =IF(V63>0,1,0) -> 0 | BV63: =IF(W63>0,1,0) -> 0 | BW63: =IF(X63>0,1,0) -> 0 | BX63: =IF(Y63>0,1,0) -> 0 | BY63: =IF(Z63>0,1,0) -> 0 | BZ63: =IF(AA63>0,1,0) -> 0 | CA63: =IF(AB63>0,1,0) -> 1 | CB63: =IF(AC63>0,1,0) -> 0 | CC63: =IF(AD63>0,1,0) -> 0 | CD63: =IF(AE63>0,1,0) -> 0 | CE63: =IF(AF63>0,1,0) -> 1 | CF63: =IF(AG63>0,1,0) -> 0 | CG63: =IF(AH63>0,1,0) -> 0 | CH63: =IF(AI63>0,1,0) -> 0 | CI63: =IF(AJ63>0,1,0) -> 0 | CJ63: =IF(AK63>0,1,0) -> 0 | CK63: =IF(AL63>0,1,0) -> 0 | CL63: =IF(AM63>0,1,0) -> 0 | CM63: =IF(AN63>0,1,0) -> 0 | CN63: =IF(AO63>0,1,0) -> 0 | CO63: =IF(AP63>0,1,0) -> 0 | CP63: =IF(AQ63>0,1,0) -> 0 | CQ63: =IF(AR63>0,1,0) -> 0 | CR63: =IF(AS63>0,1,0) -> 0 | CS63: =IF(AT63>0,1,0) -> 0 | CT63: =IF(AU63>0,1,0) -> 0 | CU63: =IF(AV63>0,1,0) -> 0 | CV63: =IF(AW63>0,1,0) -> 0 | CW63: =IF(AX63>0,1,0) -> 0 | CX63: =IF(AY63>0,1,0) -> 0 | CY63: =IF(AZ63>0,1,0) -> 0 | CZ63: =IF(BA63>0,1,0) -> 0 | DA63: =IF(BB63>0,1,0) -> 0 | DB63: =IF(BC63>0,1,0) -> 0 | DC63: =IF(BD63>0,1,0) -> 0 | DD63: =IF(BE63>0,1,0) -> 0 | DE63: =IF(BF63>0,1,0) -> 0 | DF63: =IF(BG63>0,1,0) -> 0 | DG63: 0
A64: 15 | B64: Cor | D64: Weijdeven | E64: =COUNT(K64:BH64) -> 16 | F64: =SUM(BJ64:DG64) -> 10 | G64: =SUM(K64:BH64) -> 15 | H64: =IF(E64=0,-0.99,F64/E64) -> 0.625 | I64: =IF(AND(E64>0,E64<0.5*$B$103),-0.01,H64) -> 0.625 | J64: =IF(I64>=0,I64,IF(I64=-0.01,"<1/2","")) -> 0.625 | K64: -1 | L64: 7 | O64: 9 | P64: 3 | S64: -8 | T64: -11 | U64: 11 | V64: 13 | W64: 3 | X64: 4 | Y64: -9 | Z64: -8 | AA64: -10 | AB64: 3 | AC64: 1 | AD64: 8 | BJ64: =IF(K64>0,1,0) -> 0 | BK64: =IF(L64>0,1,0) -> 1 | BL64: =IF(M64>0,1,0) -> 0 | BM64: =IF(N64>0,1,0) -> 0 | BN64: =IF(O64>0,1,0) -> 1 | BO64: =IF(P64>0,1,0) -> 1 | BP64: =IF(Q64>0,1,0) -> 0 | BQ64: =IF(R64>0,1,0) -> 0 | BR64: =IF(S64>0,1,0) -> 0 | BS64: =IF(T64>0,1,0) -> 0 | BT64: =IF(U64>0,1,0) -> 1 | BU64: =IF(V64>0,1,0) -> 1 | BV64: =IF(W64>0,1,0) -> 1 | BW64: =IF(X64>0,1,0) -> 1 | BX64: =IF(Y64>0,1,0) -> 0 | BY64: =IF(Z64>0,1,0) -> 0 | BZ64: =IF(AA64>0,1,0) -> 0 | CA64: =IF(AB64>0,1,0) -> 1 | CB64: =IF(AC64>0,1,0) -> 1 | CC64: =IF(AD64>0,1,0) -> 1 | CD64: =IF(AE64>0,1,0) -> 0 | CE64: =IF(AF64>0,1,0) -> 0 | CF64: =IF(AG64>0,1,0) -> 0 | CG64: =IF(AH64>0,1,0) -> 0 | CH64: =IF(AI64>0,1,0) -> 0 | CI64: =IF(AJ64>0,1,0) -> 0 | CJ64: =IF(AK64>0,1,0) -> 0 | CK64: =IF(AL64>0,1,0) -> 0 | CL64: =IF(AM64>0,1,0) -> 0 | CM64: =IF(AN64>0,1,0) -> 0 | CN64: =IF(AO64>0,1,0) -> 0 | CO64: =IF(AP64>0,1,0) -> 0 | CP64: =IF(AQ64>0,1,0) -> 0 | CQ64: =IF(AR64>0,1,0) -> 0 | CR64: =IF(AS64>0,1,0) -> 0 | CS64: =IF(AT64>0,1,0) -> 0 | CT64: =IF(AU64>0,1,0) -> 0 | CU64: =IF(AV64>0,1,0) -> 0 | CV64: =IF(AW64>0,1,0) -> 0 | CW64: =IF(AX64>0,1,0) -> 0 | CX64: =IF(AY64>0,1,0) -> 0 | CY64: =IF(AZ64>0,1,0) -> 0 | CZ64: =IF(BA64>0,1,0) -> 0 | DA64: =IF(BB64>0,1,0) -> 0 | DB64: =IF(BC64>0,1,0) -> 0 | DC64: =IF(BD64>0,1,0) -> 0 | DD64: =IF(BE64>0,1,0) -> 0 | DE64: =IF(BF64>0,1,0) -> 0 | DF64: =IF(BG64>0,1,0) -> 0 | DG64: 0
A65: 12 | B65: Jozef | C65: vd | D65: Weijers | E65: =COUNT(K65:BH65) -> 20 | F65: =SUM(BJ65:DG65) -> 13 | G65: =SUM(K65:BH65) -> 12 | H65: =IF(E65=0,-0.99,F65/E65) -> 0.65 | I65: =IF(AND(E65>0,E65<0.5*$B$103),-0.01,H65) -> 0.65 | J65: =IF(I65>=0,I65,IF(I65=-0.01,"<1/2","")) -> 0.65 | K65: 7 | L65: 9 | M65: -9 | N65: 6 | O65: 1 | P65: 3 | Q65: 8 | R65: -9 | S65: -12 | T65: 7 | U65: 1 | V65: 7 | W65: 6 | X65: 9 | Y65: 4 | Z65: -10 | AC65: -6 | AD65: -12 | AE65: 4 | AF65: -2 | BJ65: =IF(K65>0,1,0) -> 1 | BK65: =IF(L65>0,1,0) -> 1 | BL65: =IF(M65>0,1,0) -> 0 | BM65: =IF(N65>0,1,0) -> 1 | BN65: =IF(O65>0,1,0) -> 1 | BO65: =IF(P65>0,1,0) -> 1 | BP65: =IF(Q65>0,1,0) -> 1 | BQ65: =IF(R65>0,1,0) -> 0 | BR65: =IF(S65>0,1,0) -> 0 | BS65: =IF(T65>0,1,0) -> 1 | BT65: =IF(U65>0,1,0) -> 1 | BU65: =IF(V65>0,1,0) -> 1 | BV65: =IF(W65>0,1,0) -> 1 | BW65: =IF(X65>0,1,0) -> 1 | BX65: =IF(Y65>0,1,0) -> 1 | BY65: =IF(Z65>0,1,0) -> 0 | BZ65: =IF(AA65>0,1,0) -> 0 | CA65: =IF(AB65>0,1,0) -> 0 | CB65: =IF(AC65>0,1,0) -> 0 | CC65: =IF(AD65>0,1,0) -> 0 | CD65: =IF(AE65>0,1,0) -> 1 | CE65: =IF(AF65>0,1,0) -> 0 | CF65: =IF(AG65>0,1,0) -> 0 | CG65: =IF(AH65>0,1,0) -> 0 | CH65: =IF(AI65>0,1,0) -> 0 | CI65: =IF(AJ65>0,1,0) -> 0 | CJ65: =IF(AK65>0,1,0) -> 0 | CK65: =IF(AL65>0,1,0) -> 0 | CL65: =IF(AM65>0,1,0) -> 0 | CM65: =IF(AN65>0,1,0) -> 0 | CN65: =IF(AO65>0,1,0) -> 0 | CO65: =IF(AP65>0,1,0) -> 0 | CP65: =IF(AQ65>0,1,0) -> 0 | CQ65: =IF(AR65>0,1,0) -> 0 | CR65: =IF(AS65>0,1,0) -> 0 | CS65: =IF(AT65>0,1,0) -> 0 | CT65: =IF(AU65>0,1,0) -> 0 | CU65: =IF(AV65>0,1,0) -> 0 | CV65: =IF(AW65>0,1,0) -> 0 | CW65: =IF(AX65>0,1,0) -> 0 | CX65: =IF(AY65>0,1,0) -> 0 | CY65: =IF(AZ65>0,1,0) -> 0 | CZ65: =IF(BA65>0,1,0) -> 0 | DA65: =IF(BB65>0,1,0) -> 0 | DB65: =IF(BC65>0,1,0) -> 0 | DC65: =IF(BD65>0,1,0) -> 0 | DD65: =IF(BE65>0,1,0) -> 0 | DE65: =IF(BF65>0,1,0) -> 0 | DF65: =IF(BG65>0,1,0) -> 0 | DG65: 0
A66: 39 | B66: Ans | C66: v | D66: Werd | E66: =COUNT(K66:BH66) -> 14 | F66: =SUM(BJ66:DG66) -> 6 | G66: =SUM(K66:BH66) -> -4 | H66: =IF(E66=0,-0.99,F66/E66) -> 0.4285714286 | I66: =IF(AND(E66>0,E66<0.5*$B$103),-0.01,H66) -> 0.4285714286 | J66: =IF(I66>=0,I66,IF(I66=-0.01,"<1/2","")) -> 0.4285714286 | O66: -7 | P66: -2 | Q66: 10 | R66: 11 | U66: 1 | V66: -2 | W66: 9 | X66: -9 | Y66: 2 | Z66: -2 | AA66: -7 | AB66: 5 | AC66: -7 | AD66: -6 | BJ66: =IF(K66>0,1,0) -> 0 | BK66: =IF(L66>0,1,0) -> 0 | BL66: =IF(M66>0,1,0) -> 0 | BM66: =IF(N66>0,1,0) -> 0 | BN66: =IF(O66>0,1,0) -> 0 | BO66: =IF(P66>0,1,0) -> 0 | BP66: =IF(Q66>0,1,0) -> 1 | BQ66: =IF(R66>0,1,0) -> 1 | BR66: =IF(S66>0,1,0) -> 0 | BS66: =IF(T66>0,1,0) -> 0 | BT66: =IF(U66>0,1,0) -> 1 | BU66: =IF(V66>0,1,0) -> 0 | BV66: =IF(W66>0,1,0) -> 1 | BW66: =IF(X66>0,1,0) -> 0 | BX66: =IF(Y66>0,1,0) -> 1 | BY66: =IF(Z66>0,1,0) -> 0 | BZ66: =IF(AA66>0,1,0) -> 0 | CA66: =IF(AB66>0,1,0) -> 1 | CB66: =IF(AC66>0,1,0) -> 0 | CC66: =IF(AD66>0,1,0) -> 0 | CD66: =IF(AE66>0,1,0) -> 0 | CE66: =IF(AF66>0,1,0) -> 0 | CF66: =IF(AG66>0,1,0) -> 0 | CG66: =IF(AH66>0,1,0) -> 0 | CH66: =IF(AI66>0,1,0) -> 0 | CI66: =IF(AJ66>0,1,0) -> 0 | CJ66: =IF(AK66>0,1,0) -> 0 | CK66: =IF(AL66>0,1,0) -> 0 | CL66: =IF(AM66>0,1,0) -> 0 | CM66: =IF(AN66>0,1,0) -> 0 | CN66: =IF(AO66>0,1,0) -> 0 | CO66: =IF(AP66>0,1,0) -> 0 | CP66: =IF(AQ66>0,1,0) -> 0 | CQ66: =IF(AR66>0,1,0) -> 0 | CR66: =IF(AS66>0,1,0) -> 0 | CS66: =IF(AT66>0,1,0) -> 0 | CT66: =IF(AU66>0,1,0) -> 0 | CU66: =IF(AV66>0,1,0) -> 0 | CV66: =IF(AW66>0,1,0) -> 0 | CW66: =IF(AX66>0,1,0) -> 0 | CX66: =IF(AY66>0,1,0) -> 0 | CY66: =IF(AZ66>0,1,0) -> 0 | CZ66: =IF(BA66>0,1,0) -> 0 | DA66: =IF(BB66>0,1,0) -> 0 | DB66: =IF(BC66>0,1,0) -> 0 | DC66: =IF(BD66>0,1,0) -> 0 | DD66: =IF(BE66>0,1,0) -> 0 | DE66: =IF(BF66>0,1,0) -> 0 | DF66: =IF(BG66>0,1,0) -> 0 | DG66: 0
A67: 62 | B67: Betty | C67: vd | D67: Werdstra | E67: =COUNT(K67:BH67) -> 6 | F67: =SUM(BJ67:DG67) -> 2 | G67: =SUM(K67:BH67) -> -17 | H67: =IF(E67=0,-0.99,F67/E67) -> 0.3333333333 | I67: =IF(AND(E67>0,E67<0.5*$B$103),-0.01,H67) -> -0.01 | J67: =IF(I67>=0,I67,IF(I67=-0.01,"<1/2","")) -> <1/2 | Q67: 11 | R67: -11 | S67: -9 | T67: -7 | U67: 1 | V67: -2 | BJ67: =IF(K67>0,1,0) -> 0 | BK67: =IF(L67>0,1,0) -> 0 | BL67: =IF(M67>0,1,0) -> 0 | BM67: =IF(N67>0,1,0) -> 0 | BN67: =IF(O67>0,1,0) -> 0 | BO67: =IF(P67>0,1,0) -> 0 | BP67: =IF(Q67>0,1,0) -> 1 | BQ67: =IF(R67>0,1,0) -> 0 | BR67: =IF(S67>0,1,0) -> 0 | BS67: =IF(T67>0,1,0) -> 0 | BT67: =IF(U67>0,1,0) -> 1 | BU67: =IF(V67>0,1,0) -> 0 | BV67: =IF(W67>0,1,0) -> 0 | BW67: =IF(X67>0,1,0) -> 0 | BX67: =IF(Y67>0,1,0) -> 0 | BY67: =IF(Z67>0,1,0) -> 0 | BZ67: =IF(AA67>0,1,0) -> 0 | CA67: =IF(AB67>0,1,0) -> 0 | CB67: =IF(AC67>0,1,0) -> 0 | CC67: =IF(AD67>0,1,0) -> 0 | CD67: =IF(AE67>0,1,0) -> 0 | CE67: =IF(AF67>0,1,0) -> 0 | CF67: =IF(AG67>0,1,0) -> 0 | CG67: =IF(AH67>0,1,0) -> 0 | CH67: =IF(AI67>0,1,0) -> 0 | CI67: =IF(AJ67>0,1,0) -> 0 | CJ67: =IF(AK67>0,1,0) -> 0 | CK67: =IF(AL67>0,1,0) -> 0 | CL67: =IF(AM67>0,1,0) -> 0 | CM67: =IF(AN67>0,1,0) -> 0 | CN67: =IF(AO67>0,1,0) -> 0 | CO67: =IF(AP67>0,1,0) -> 0 | CP67: =IF(AQ67>0,1,0) -> 0 | CQ67: =IF(AR67>0,1,0) -> 0 | CR67: =IF(AS67>0,1,0) -> 0 | CS67: =IF(AT67>0,1,0) -> 0 | CT67: =IF(AU67>0,1,0) -> 0 | CU67: =IF(AV67>0,1,0) -> 0 | CV67: =IF(AW67>0,1,0) -> 0 | CW67: =IF(AX67>0,1,0) -> 0 | CX67: =IF(AY67>0,1,0) -> 0 | CY67: =IF(AZ67>0,1,0) -> 0 | CZ67: =IF(BA67>0,1,0) -> 0 | DA67: =IF(BB67>0,1,0) -> 0 | DB67: =IF(BC67>0,1,0) -> 0 | DC67: =IF(BD67>0,1,0) -> 0 | DD67: =IF(BE67>0,1,0) -> 0 | DE67: =IF(BF67>0,1,0) -> 0 | DF67: =IF(BG67>0,1,0) -> 0 | DG67: 0
A68: 31 | B68: Jan | C68: v | D68: Wetering | E68: =COUNT(K68:BH68) -> 14 | F68: =SUM(BJ68:DG68) -> 7 | G68: =SUM(K68:BH68) -> 2 | H68: =IF(E68=0,-0.99,F68/E68) -> 0.5 | I68: =IF(AND(E68>0,E68<0.5*$B$103),-0.01,H68) -> 0.5 | J68: =IF(I68>=0,I68,IF(I68=-0.01,"<1/2","")) -> 0.5 | S68: 7 | T68: -8 | U68: 12 | V68: 7 | W68: -9 | X68: 8 | Y68: -9 | Z68: 12 | AA68: -9 | AB68: -7 | AC68: 3 | AD68: -6 | AE68: -3 | AF68: 4 | BJ68: =IF(K68>0,1,0) -> 0 | BK68: =IF(L68>0,1,0) -> 0 | BL68: =IF(M68>0,1,0) -> 0 | BM68: =IF(N68>0,1,0) -> 0 | BN68: =IF(O68>0,1,0) -> 0 | BO68: =IF(P68>0,1,0) -> 0 | BP68: =IF(Q68>0,1,0) -> 0 | BQ68: =IF(R68>0,1,0) -> 0 | BR68: =IF(S68>0,1,0) -> 1 | BS68: =IF(T68>0,1,0) -> 0 | BT68: =IF(U68>0,1,0) -> 1 | BU68: =IF(V68>0,1,0) -> 1 | BV68: =IF(W68>0,1,0) -> 0 | BW68: =IF(X68>0,1,0) -> 1 | BX68: =IF(Y68>0,1,0) -> 0 | BY68: =IF(Z68>0,1,0) -> 1 | BZ68: =IF(AA68>0,1,0) -> 0 | CA68: =IF(AB68>0,1,0) -> 0 | CB68: =IF(AC68>0,1,0) -> 1 | CC68: =IF(AD68>0,1,0) -> 0 | CD68: =IF(AE68>0,1,0) -> 0 | CE68: =IF(AF68>0,1,0) -> 1 | CF68: =IF(AG68>0,1,0) -> 0 | CG68: =IF(AH68>0,1,0) -> 0 | CH68: =IF(AI68>0,1,0) -> 0 | CI68: =IF(AJ68>0,1,0) -> 0 | CJ68: =IF(AK68>0,1,0) -> 0 | CK68: =IF(AL68>0,1,0) -> 0 | CL68: =IF(AM68>0,1,0) -> 0 | CM68: =IF(AN68>0,1,0) -> 0 | CN68: =IF(AO68>0,1,0) -> 0 | CO68: =IF(AP68>0,1,0) -> 0 | CP68: =IF(AQ68>0,1,0) -> 0 | CQ68: =IF(AR68>0,1,0) -> 0 | CR68: =IF(AS68>0,1,0) -> 0 | CS68: =IF(AT68>0,1,0) -> 0 | CT68: =IF(AU68>0,1,0) -> 0 | CU68: =IF(AV68>0,1,0) -> 0 | CV68: =IF(AW68>0,1,0) -> 0 | CW68: =IF(AX68>0,1,0) -> 0 | CX68: =IF(AY68>0,1,0) -> 0 | CY68: =IF(AZ68>0,1,0) -> 0 | CZ68: =IF(BA68>0,1,0) -> 0 | DA68: =IF(BB68>0,1,0) -> 0 | DB68: =IF(BC68>0,1,0) -> 0 | DC68: =IF(BD68>0,1,0) -> 0 | DD68: =IF(BE68>0,1,0) -> 0 | DE68: =IF(BF68>0,1,0) -> 0 | DF68: =IF(BG68>0,1,0) -> 0 | DG68: =IF(BH68>0,1,0) -> 0
A69: 36 | B69: Theo | C69: v | D69: Wolfs | E69: =COUNT(K69:BH69) -> 18 | F69: =SUM(BJ69:DG69) -> 8 | G69: =SUM(K69:BH69) -> -22 | H69: =IF(E69=0,-0.99,F69/E69) -> 0.4444444444 | I69: =IF(AND(E69>0,E69<0.5*$B$103),-0.01,H69) -> 0.4444444444 | J69: =IF(I69>=0,I69,IF(I69=-0.01,"<1/2","")) -> 0.4444444444 | M69: 2 | N69: 5 | Q69: -2 | R69: -2 | S69: -2 | T69: 9 | U69: 1 | V69: -7 | W69: 6 | X69: -10 | Y69: -2 | Z69: -13 | AA69: -10 | AB69: 5 | AC69: -8 | AD69: 6 | AE69: 2 | AF69: -2 | BJ69: =IF(K69>0,1,0) -> 0 | BK69: =IF(L69>0,1,0) -> 0 | BL69: =IF(M69>0,1,0) -> 1 | BM69: =IF(N69>0,1,0) -> 1 | BN69: =IF(O69>0,1,0) -> 0 | BO69: =IF(P69>0,1,0) -> 0 | BP69: =IF(Q69>0,1,0) -> 0 | BQ69: =IF(R69>0,1,0) -> 0 | BR69: =IF(S69>0,1,0) -> 0 | BS69: =IF(T69>0,1,0) -> 1 | BT69: =IF(U69>0,1,0) -> 1 | BU69: =IF(V69>0,1,0) -> 0 | BV69: =IF(W69>0,1,0) -> 1 | BW69: =IF(X69>0,1,0) -> 0 | BX69: =IF(Y69>0,1,0) -> 0 | BY69: =IF(Z69>0,1,0) -> 0 | BZ69: =IF(AA69>0,1,0) -> 0 | CA69: =IF(AB69>0,1,0) -> 1 | CB69: =IF(AC69>0,1,0) -> 0 | CC69: =IF(AD69>0,1,0) -> 1 | CD69: =IF(AE69>0,1,0) -> 1 | CE69: =IF(AF69>0,1,0) -> 0 | CF69: =IF(AG69>0,1,0) -> 0 | CG69: =IF(AH69>0,1,0) -> 0 | CH69: =IF(AI69>0,1,0) -> 0 | CI69: =IF(AJ69>0,1,0) -> 0 | CJ69: =IF(AK69>0,1,0) -> 0 | CK69: =IF(AL69>0,1,0) -> 0 | CL69: =IF(AM69>0,1,0) -> 0 | CM69: =IF(AN69>0,1,0) -> 0 | CN69: =IF(AO69>0,1,0) -> 0 | CO69: =IF(AP69>0,1,0) -> 0 | CP69: =IF(AQ69>0,1,0) -> 0 | CQ69: =IF(AR69>0,1,0) -> 0 | CR69: =IF(AS69>0,1,0) -> 0 | CS69: =IF(AT69>0,1,0) -> 0 | CT69: =IF(AU69>0,1,0) -> 0 | CU69: =IF(AV69>0,1,0) -> 0 | CV69: =IF(AW69>0,1,0) -> 0 | CW69: =IF(AX69>0,1,0) -> 0 | CX69: =IF(AY69>0,1,0) -> 0 | CY69: =IF(AZ69>0,1,0) -> 0 | CZ69: =IF(BA69>0,1,0) -> 0 | DA69: =IF(BB69>0,1,0) -> 0 | DB69: =IF(BC69>0,1,0) -> 0 | DC69: =IF(BD69>0,1,0) -> 0 | DD69: =IF(BE69>0,1,0) -> 0 | DE69: =IF(BF69>0,1,0) -> 0 | DF69: =IF(BG69>0,1,0) -> 0 | DG69: 0
A70: 67 | E70: =COUNT(K70:BH70) -> 0 | F70: =SUM(BJ70:DG70) -> 0 | G70: =SUM(K70:BH70) -> 0 | H70: =IF(E70=0,-0.99,F70/E70) -> -0.99 | I70: =IF(AND(E70>0,E70<0.5*$B$103),-0.01,H70) -> -0.99 | J70: =IF(I70>=0,I70,IF(I70=-0.01,"<1/2","")) ->  | BJ70: =IF(K70>0,1,0) -> 0 | BK70: =IF(L70>0,1,0) -> 0 | BL70: =IF(M70>0,1,0) -> 0 | BM70: =IF(N70>0,1,0) -> 0 | BN70: =IF(O70>0,1,0) -> 0 | BO70: =IF(P70>0,1,0) -> 0 | BP70: =IF(Q70>0,1,0) -> 0 | BQ70: =IF(R70>0,1,0) -> 0 | BR70: =IF(S70>0,1,0) -> 0 | BS70: =IF(T70>0,1,0) -> 0 | BT70: =IF(U70>0,1,0) -> 0 | BU70: =IF(V70>0,1,0) -> 0 | BV70: =IF(W70>0,1,0) -> 0 | BW70: =IF(X70>0,1,0) -> 0 | BX70: =IF(Y70>0,1,0) -> 0 | BY70: =IF(Z70>0,1,0) -> 0 | BZ70: =IF(AA70>0,1,0) -> 0 | CA70: =IF(AB70>0,1,0) -> 0 | CB70: =IF(AC70>0,1,0) -> 0 | CC70: =IF(AD70>0,1,0) -> 0 | CD70: =IF(AE70>0,1,0) -> 0 | CE70: =IF(AF70>0,1,0) -> 0 | CF70: =IF(AG70>0,1,0) -> 0 | CG70: =IF(AH70>0,1,0) -> 0 | CH70: =IF(AI70>0,1,0) -> 0 | CI70: =IF(AJ70>0,1,0) -> 0 | CJ70: =IF(AK70>0,1,0) -> 0 | CK70: =IF(AL70>0,1,0) -> 0 | CL70: =IF(AM70>0,1,0) -> 0 | CM70: =IF(AN70>0,1,0) -> 0 | CN70: =IF(AO70>0,1,0) -> 0 | CO70: =IF(AP70>0,1,0) -> 0 | CP70: =IF(AQ70>0,1,0) -> 0 | CQ70: =IF(AR70>0,1,0) -> 0 | CR70: =IF(AS70>0,1,0) -> 0 | CS70: =IF(AT70>0,1,0) -> 0 | CT70: =IF(AU70>0,1,0) -> 0 | CU70: =IF(AV70>0,1,0) -> 0 | CV70: =IF(AW70>0,1,0) -> 0 | CW70: =IF(AX70>0,1,0) -> 0 | CX70: =IF(AY70>0,1,0) -> 0 | CY70: =IF(AZ70>0,1,0) -> 0 | CZ70: =IF(BA70>0,1,0) -> 0 | DA70: =IF(BB70>0,1,0) -> 0 | DB70: =IF(BC70>0,1,0) -> 0 | DC70: =IF(BD70>0,1,0) -> 0 | DD70: =IF(BE70>0,1,0) -> 0 | DE70: =IF(BF70>0,1,0) -> 0 | DF70: =IF(BG70>0,1,0) -> 0 | DG70: 0
A71: 68 | E71: =COUNT(K71:BH71) -> 0 | F71: =SUM(BJ71:DG71) -> 0 | G71: =SUM(K71:BH71) -> 0 | H71: =IF(E71=0,-0.99,F71/E71) -> -0.99 | I71: =IF(AND(E71>0,E71<0.5*$B$103),-0.01,H71) -> -0.99 | J71: =IF(I71>=0,I71,IF(I71=-0.01,"<1/2","")) ->  | BJ71: =IF(K71>0,1,0) -> 0 | BK71: =IF(L71>0,1,0) -> 0 | BL71: =IF(M71>0,1,0) -> 0 | BM71: =IF(N71>0,1,0) -> 0 | BN71: =IF(O71>0,1,0) -> 0 | BO71: =IF(P71>0,1,0) -> 0 | BP71: =IF(Q71>0,1,0) -> 0 | BQ71: =IF(R71>0,1,0) -> 0 | BR71: =IF(S71>0,1,0) -> 0 | BS71: =IF(T71>0,1,0) -> 0 | BT71: =IF(U71>0,1,0) -> 0 | BU71: =IF(V71>0,1,0) -> 0 | BV71: =IF(W71>0,1,0) -> 0 | BW71: =IF(X71>0,1,0) -> 0 | BX71: =IF(Y71>0,1,0) -> 0 | BY71: =IF(Z71>0,1,0) -> 0 | BZ71: =IF(AA71>0,1,0) -> 0 | CA71: =IF(AB71>0,1,0) -> 0 | CB71: =IF(AC71>0,1,0) -> 0 | CC71: =IF(AD71>0,1,0) -> 0 | CD71: =IF(AE71>0,1,0) -> 0 | CE71: =IF(AF71>0,1,0) -> 0 | CF71: =IF(AG71>0,1,0) -> 0 | CG71: =IF(AH71>0,1,0) -> 0 | CH71: =IF(AI71>0,1,0) -> 0 | CI71: =IF(AJ71>0,1,0) -> 0 | CJ71: =IF(AK71>0,1,0) -> 0 | CK71: =IF(AL71>0,1,0) -> 0 | CL71: =IF(AM71>0,1,0) -> 0 | CM71: =IF(AN71>0,1,0) -> 0 | CN71: =IF(AO71>0,1,0) -> 0 | CO71: =IF(AP71>0,1,0) -> 0 | CP71: =IF(AQ71>0,1,0) -> 0 | CQ71: =IF(AR71>0,1,0) -> 0 | CR71: =IF(AS71>0,1,0) -> 0 | CS71: =IF(AT71>0,1,0) -> 0 | CT71: =IF(AU71>0,1,0) -> 0 | CU71: =IF(AV71>0,1,0) -> 0 | CV71: =IF(AW71>0,1,0) -> 0 | CW71: =IF(AX71>0,1,0) -> 0 | CX71: =IF(AY71>0,1,0) -> 0 | CY71: =IF(AZ71>0,1,0) -> 0 | CZ71: =IF(BA71>0,1,0) -> 0 | DA71: =IF(BB71>0,1,0) -> 0 | DB71: =IF(BC71>0,1,0) -> 0 | DC71: =IF(BD71>0,1,0) -> 0 | DD71: =IF(BE71>0,1,0) -> 0 | DE71: =IF(BF71>0,1,0) -> 0 | DF71: =IF(BG71>0,1,0) -> 0 | DG71: 0
A72: 69 | E72: =COUNT(K72:BH72) -> 0 | F72: =SUM(BJ72:DG72) -> 0 | G72: =SUM(K72:BH72) -> 0 | H72: =IF(E72=0,-0.99,F72/E72) -> -0.99 | I72: =IF(AND(E72>0,E72<0.5*$B$103),-0.01,H72) -> -0.99 | J72: =IF(I72>=0,I72,IF(I72=-0.01,"<1/2","")) ->  | BJ72: =IF(K72>0,1,0) -> 0 | BK72: =IF(L72>0,1,0) -> 0 | BL72: =IF(M72>0,1,0) -> 0 | BM72: =IF(N72>0,1,0) -> 0 | BN72: =IF(O72>0,1,0) -> 0 | BO72: =IF(P72>0,1,0) -> 0 | BP72: =IF(Q72>0,1,0) -> 0 | BQ72: =IF(R72>0,1,0) -> 0 | BR72: =IF(S72>0,1,0) -> 0 | BS72: =IF(T72>0,1,0) -> 0 | BT72: =IF(U72>0,1,0) -> 0 | BU72: =IF(V72>0,1,0) -> 0 | BV72: =IF(W72>0,1,0) -> 0 | BW72: =IF(X72>0,1,0) -> 0 | BX72: =IF(Y72>0,1,0) -> 0 | BY72: =IF(Z72>0,1,0) -> 0 | BZ72: =IF(AA72>0,1,0) -> 0 | CA72: =IF(AB72>0,1,0) -> 0 | CB72: =IF(AC72>0,1,0) -> 0 | CC72: =IF(AD72>0,1,0) -> 0 | CD72: =IF(AE72>0,1,0) -> 0 | CE72: =IF(AF72>0,1,0) -> 0 | CF72: =IF(AG72>0,1,0) -> 0 | CG72: =IF(AH72>0,1,0) -> 0 | CH72: =IF(AI72>0,1,0) -> 0 | CI72: =IF(AJ72>0,1,0) -> 0 | CJ72: =IF(AK72>0,1,0) -> 0 | CK72: =IF(AL72>0,1,0) -> 0 | CL72: =IF(AM72>0,1,0) -> 0 | CM72: =IF(AN72>0,1,0) -> 0 | CN72: =IF(AO72>0,1,0) -> 0 | CO72: =IF(AP72>0,1,0) -> 0 | CP72: =IF(AQ72>0,1,0) -> 0 | CQ72: =IF(AR72>0,1,0) -> 0 | CR72: =IF(AS72>0,1,0) -> 0 | CS72: =IF(AT72>0,1,0) -> 0 | CT72: =IF(AU72>0,1,0) -> 0 | CU72: =IF(AV72>0,1,0) -> 0 | CV72: =IF(AW72>0,1,0) -> 0 | CW72: =IF(AX72>0,1,0) -> 0 | CX72: =IF(AY72>0,1,0) -> 0 | CY72: =IF(AZ72>0,1,0) -> 0 | CZ72: =IF(BA72>0,1,0) -> 0 | DA72: =IF(BB72>0,1,0) -> 0 | DB72: =IF(BC72>0,1,0) -> 0 | DC72: =IF(BD72>0,1,0) -> 0 | DD72: =IF(BE72>0,1,0) -> 0 | DE72: =IF(BF72>0,1,0) -> 0 | DF72: =IF(BG72>0,1,0) -> 0 | DG72: 0
A73: 70 | E73: =COUNT(K73:BH73) -> 0 | F73: =SUM(BJ73:DG73) -> 0 | G73: =SUM(K73:BH73) -> 0 | H73: =IF(E73=0,-0.99,F73/E73) -> -0.99 | I73: =IF(AND(E73>0,E73<0.5*$B$103),-0.01,H73) -> -0.99 | J73: =IF(I73>=0,I73,IF(I73=-0.01,"<1/2","")) ->  | BJ73: =IF(K73>0,1,0) -> 0 | BK73: =IF(L73>0,1,0) -> 0 | BL73: =IF(M73>0,1,0) -> 0 | BM73: =IF(N73>0,1,0) -> 0 | BN73: =IF(O73>0,1,0) -> 0 | BO73: =IF(P73>0,1,0) -> 0 | BP73: =IF(Q73>0,1,0) -> 0 | BQ73: =IF(R73>0,1,0) -> 0 | BR73: =IF(S73>0,1,0) -> 0 | BS73: =IF(T73>0,1,0) -> 0 | BT73: =IF(U73>0,1,0) -> 0 | BU73: =IF(V73>0,1,0) -> 0 | BV73: =IF(W73>0,1,0) -> 0 | BW73: =IF(X73>0,1,0) -> 0 | BX73: =IF(Y73>0,1,0) -> 0 | BY73: =IF(Z73>0,1,0) -> 0 | BZ73: =IF(AA73>0,1,0) -> 0 | CA73: =IF(AB73>0,1,0) -> 0 | CB73: =IF(AC73>0,1,0) -> 0 | CC73: =IF(AD73>0,1,0) -> 0 | CD73: =IF(AE73>0,1,0) -> 0 | CE73: =IF(AF73>0,1,0) -> 0 | CF73: =IF(AG73>0,1,0) -> 0 | CG73: =IF(AH73>0,1,0) -> 0 | CH73: =IF(AI73>0,1,0) -> 0 | CI73: =IF(AJ73>0,1,0) -> 0 | CJ73: =IF(AK73>0,1,0) -> 0 | CK73: =IF(AL73>0,1,0) -> 0 | CL73: =IF(AM73>0,1,0) -> 0 | CM73: =IF(AN73>0,1,0) -> 0 | CN73: =IF(AO73>0,1,0) -> 0 | CO73: =IF(AP73>0,1,0) -> 0 | CP73: =IF(AQ73>0,1,0) -> 0 | CQ73: =IF(AR73>0,1,0) -> 0 | CR73: =IF(AS73>0,1,0) -> 0 | CS73: =IF(AT73>0,1,0) -> 0 | CT73: =IF(AU73>0,1,0) -> 0 | CU73: =IF(AV73>0,1,0) -> 0 | CV73: =IF(AW73>0,1,0) -> 0 | CW73: =IF(AX73>0,1,0) -> 0 | CX73: =IF(AY73>0,1,0) -> 0 | CY73: =IF(AZ73>0,1,0) -> 0 | CZ73: =IF(BA73>0,1,0) -> 0 | DA73: =IF(BB73>0,1,0) -> 0 | DB73: =IF(BC73>0,1,0) -> 0 | DC73: =IF(BD73>0,1,0) -> 0 | DD73: =IF(BE73>0,1,0) -> 0 | DE73: =IF(BF73>0,1,0) -> 0 | DF73: =IF(BG73>0,1,0) -> 0 | DG73: 0
A74: 71 | E74: =COUNT(K74:BH74) -> 0 | F74: =SUM(BJ74:DG74) -> 0 | G74: =SUM(K74:BH74) -> 0 | H74: =IF(E74=0,-0.99,F74/E74) -> -0.99 | I74: =IF(AND(E74>0,E74<0.5*$B$103),-0.01,H74) -> -0.99 | J74: =IF(I74>=0,I74,IF(I74=-0.01,"<1/2","")) ->  | BJ74: =IF(K74>0,1,0) -> 0 | BK74: =IF(L74>0,1,0) -> 0 | BL74: =IF(M74>0,1,0) -> 0 | BM74: =IF(N74>0,1,0) -> 0 | BN74: =IF(O74>0,1,0) -> 0 | BO74: =IF(P74>0,1,0) -> 0 | BP74: =IF(Q74>0,1,0) -> 0 | BQ74: =IF(R74>0,1,0) -> 0 | BR74: =IF(S74>0,1,0) -> 0 | BS74: =IF(T74>0,1,0) -> 0 | BT74: =IF(U74>0,1,0) -> 0 | BU74: =IF(V74>0,1,0) -> 0 | BV74: =IF(W74>0,1,0) -> 0 | BW74: =IF(X74>0,1,0) -> 0 | BX74: =IF(Y74>0,1,0) -> 0 | BY74: =IF(Z74>0,1,0) -> 0 | BZ74: =IF(AA74>0,1,0) -> 0 | CA74: =IF(AB74>0,1,0) -> 0 | CB74: =IF(AC74>0,1,0) -> 0 | CC74: =IF(AD74>0,1,0) -> 0 | CD74: =IF(AE74>0,1,0) -> 0 | CE74: =IF(AF74>0,1,0) -> 0 | CF74: =IF(AG74>0,1,0) -> 0 | CG74: =IF(AH74>0,1,0) -> 0 | CH74: =IF(AI74>0,1,0) -> 0 | CI74: =IF(AJ74>0,1,0) -> 0 | CJ74: =IF(AK74>0,1,0) -> 0 | CK74: =IF(AL74>0,1,0) -> 0 | CL74: =IF(AM74>0,1,0) -> 0 | CM74: =IF(AN74>0,1,0) -> 0 | CN74: =IF(AO74>0,1,0) -> 0 | CO74: =IF(AP74>0,1,0) -> 0 | CP74: =IF(AQ74>0,1,0) -> 0 | CQ74: =IF(AR74>0,1,0) -> 0 | CR74: =IF(AS74>0,1,0) -> 0 | CS74: =IF(AT74>0,1,0) -> 0 | CT74: =IF(AU74>0,1,0) -> 0 | CU74: =IF(AV74>0,1,0) -> 0 | CV74: =IF(AW74>0,1,0) -> 0 | CW74: =IF(AX74>0,1,0) -> 0 | CX74: =IF(AY74>0,1,0) -> 0 | CY74: =IF(AZ74>0,1,0) -> 0 | CZ74: =IF(BA74>0,1,0) -> 0 | DA74: =IF(BB74>0,1,0) -> 0 | DB74: =IF(BC74>0,1,0) -> 0 | DC74: =IF(BD74>0,1,0) -> 0 | DD74: =IF(BE74>0,1,0) -> 0 | DE74: =IF(BF74>0,1,0) -> 0 | DF74: =IF(BG74>0,1,0) -> 0 | DG74: 0
A75: 72 | E75: =COUNT(K75:BH75) -> 0 | F75: =SUM(BJ75:DG75) -> 0 | G75: =SUM(K75:BH75) -> 0 | H75: =IF(E75=0,-0.99,F75/E75) -> -0.99 | I75: =IF(AND(E75>0,E75<0.5*$B$103),-0.01,H75) -> -0.99 | J75: =IF(I75>=0,I75,IF(I75=-0.01,"<1/2","")) ->  | BJ75: =IF(K75>0,1,0) -> 0 | BK75: =IF(L75>0,1,0) -> 0 | BL75: =IF(M75>0,1,0) -> 0 | BM75: =IF(N75>0,1,0) -> 0 | BN75: =IF(O75>0,1,0) -> 0 | BO75: =IF(P75>0,1,0) -> 0 | BP75: =IF(Q75>0,1,0) -> 0 | BQ75: =IF(R75>0,1,0) -> 0 | BR75: =IF(S75>0,1,0) -> 0 | BS75: =IF(T75>0,1,0) -> 0 | BT75: =IF(U75>0,1,0) -> 0 | BU75: =IF(V75>0,1,0) -> 0 | BV75: =IF(W75>0,1,0) -> 0 | BW75: =IF(X75>0,1,0) -> 0 | BX75: =IF(Y75>0,1,0) -> 0 | BY75: =IF(Z75>0,1,0) -> 0 | BZ75: =IF(AA75>0,1,0) -> 0 | CA75: =IF(AB75>0,1,0) -> 0 | CB75: =IF(AC75>0,1,0) -> 0 | CC75: =IF(AD75>0,1,0) -> 0 | CD75: =IF(AE75>0,1,0) -> 0 | CE75: =IF(AF75>0,1,0) -> 0 | CF75: =IF(AG75>0,1,0) -> 0 | CG75: =IF(AH75>0,1,0) -> 0 | CH75: =IF(AI75>0,1,0) -> 0 | CI75: =IF(AJ75>0,1,0) -> 0 | CJ75: =IF(AK75>0,1,0) -> 0 | CK75: =IF(AL75>0,1,0) -> 0 | CL75: =IF(AM75>0,1,0) -> 0 | CM75: =IF(AN75>0,1,0) -> 0 | CN75: =IF(AO75>0,1,0) -> 0 | CO75: =IF(AP75>0,1,0) -> 0 | CP75: =IF(AQ75>0,1,0) -> 0 | CQ75: =IF(AR75>0,1,0) -> 0 | CR75: =IF(AS75>0,1,0) -> 0 | CS75: =IF(AT75>0,1,0) -> 0 | CT75: =IF(AU75>0,1,0) -> 0 | CU75: =IF(AV75>0,1,0) -> 0 | CV75: =IF(AW75>0,1,0) -> 0 | CW75: =IF(AX75>0,1,0) -> 0 | CX75: =IF(AY75>0,1,0) -> 0 | CY75: =IF(AZ75>0,1,0) -> 0 | CZ75: =IF(BA75>0,1,0) -> 0 | DA75: =IF(BB75>0,1,0) -> 0 | DB75: =IF(BC75>0,1,0) -> 0 | DC75: =IF(BD75>0,1,0) -> 0 | DD75: =IF(BE75>0,1,0) -> 0 | DE75: =IF(BF75>0,1,0) -> 0 | DF75: =IF(BG75>0,1,0) -> 0 | DG75: 0
A76: 73 | E76: =COUNT(K76:BH76) -> 0 | F76: =SUM(BJ76:DG76) -> 0 | G76: =SUM(K76:BH76) -> 0 | H76: =IF(E76=0,-0.99,F76/E76) -> -0.99 | I76: =IF(AND(E76>0,E76<0.5*$B$103),-0.01,H76) -> -0.99 | J76: =IF(I76>=0,I76,IF(I76=-0.01,"<1/2","")) ->  | BJ76: =IF(K76>0,1,0) -> 0 | BK76: =IF(L76>0,1,0) -> 0 | BL76: =IF(M76>0,1,0) -> 0 | BM76: =IF(N76>0,1,0) -> 0 | BN76: =IF(O76>0,1,0) -> 0 | BO76: =IF(P76>0,1,0) -> 0 | BP76: =IF(Q76>0,1,0) -> 0 | BQ76: =IF(R76>0,1,0) -> 0 | BR76: =IF(S76>0,1,0) -> 0 | BS76: =IF(T76>0,1,0) -> 0 | BT76: =IF(U76>0,1,0) -> 0 | BU76: =IF(V76>0,1,0) -> 0 | BV76: =IF(W76>0,1,0) -> 0 | BW76: =IF(X76>0,1,0) -> 0 | BX76: =IF(Y76>0,1,0) -> 0 | BY76: =IF(Z76>0,1,0) -> 0 | BZ76: =IF(AA76>0,1,0) -> 0 | CA76: =IF(AB76>0,1,0) -> 0 | CB76: =IF(AC76>0,1,0) -> 0 | CC76: =IF(AD76>0,1,0) -> 0 | CD76: =IF(AE76>0,1,0) -> 0 | CE76: =IF(AF76>0,1,0) -> 0 | CF76: =IF(AG76>0,1,0) -> 0 | CG76: =IF(AH76>0,1,0) -> 0 | CH76: =IF(AI76>0,1,0) -> 0 | CI76: =IF(AJ76>0,1,0) -> 0 | CJ76: =IF(AK76>0,1,0) -> 0 | CK76: =IF(AL76>0,1,0) -> 0 | CL76: =IF(AM76>0,1,0) -> 0 | CM76: =IF(AN76>0,1,0) -> 0 | CN76: =IF(AO76>0,1,0) -> 0 | CO76: =IF(AP76>0,1,0) -> 0 | CP76: =IF(AQ76>0,1,0) -> 0 | CQ76: =IF(AR76>0,1,0) -> 0 | CR76: =IF(AS76>0,1,0) -> 0 | CS76: =IF(AT76>0,1,0) -> 0 | CT76: =IF(AU76>0,1,0) -> 0 | CU76: =IF(AV76>0,1,0) -> 0 | CV76: =IF(AW76>0,1,0) -> 0 | CW76: =IF(AX76>0,1,0) -> 0 | CX76: =IF(AY76>0,1,0) -> 0 | CY76: =IF(AZ76>0,1,0) -> 0 | CZ76: =IF(BA76>0,1,0) -> 0 | DA76: =IF(BB76>0,1,0) -> 0 | DB76: =IF(BC76>0,1,0) -> 0 | DC76: =IF(BD76>0,1,0) -> 0 | DD76: =IF(BE76>0,1,0) -> 0 | DE76: =IF(BF76>0,1,0) -> 0 | DF76: =IF(BG76>0,1,0) -> 0 | DG76: 0
A77: 74 | E77: =COUNT(K77:BH77) -> 0 | F77: =SUM(BJ77:DG77) -> 0 | G77: =SUM(K77:BH77) -> 0 | H77: =IF(E77=0,-0.99,F77/E77) -> -0.99 | I77: =IF(AND(E77>0,E77<0.5*$B$103),-0.01,H77) -> -0.99 | J77: =IF(I77>=0,I77,IF(I77=-0.01,"<1/2","")) ->  | BJ77: =IF(K77>0,1,0) -> 0 | BK77: =IF(L77>0,1,0) -> 0 | BL77: =IF(M77>0,1,0) -> 0 | BM77: =IF(N77>0,1,0) -> 0 | BN77: =IF(O77>0,1,0) -> 0 | BO77: =IF(P77>0,1,0) -> 0 | BP77: =IF(Q77>0,1,0) -> 0 | BQ77: =IF(R77>0,1,0) -> 0 | BR77: =IF(S77>0,1,0) -> 0 | BS77: =IF(T77>0,1,0) -> 0 | BT77: =IF(U77>0,1,0) -> 0 | BU77: =IF(V77>0,1,0) -> 0 | BV77: =IF(W77>0,1,0) -> 0 | BW77: =IF(X77>0,1,0) -> 0 | BX77: =IF(Y77>0,1,0) -> 0 | BY77: =IF(Z77>0,1,0) -> 0 | BZ77: =IF(AA77>0,1,0) -> 0 | CA77: =IF(AB77>0,1,0) -> 0 | CB77: =IF(AC77>0,1,0) -> 0 | CC77: =IF(AD77>0,1,0) -> 0 | CD77: =IF(AE77>0,1,0) -> 0 | CE77: =IF(AF77>0,1,0) -> 0 | CF77: =IF(AG77>0,1,0) -> 0 | CG77: =IF(AH77>0,1,0) -> 0 | CH77: =IF(AI77>0,1,0) -> 0 | CI77: =IF(AJ77>0,1,0) -> 0 | CJ77: =IF(AK77>0,1,0) -> 0 | CK77: =IF(AL77>0,1,0) -> 0 | CL77: =IF(AM77>0,1,0) -> 0 | CM77: =IF(AN77>0,1,0) -> 0 | CN77: =IF(AO77>0,1,0) -> 0 | CO77: =IF(AP77>0,1,0) -> 0 | CP77: =IF(AQ77>0,1,0) -> 0 | CQ77: =IF(AR77>0,1,0) -> 0 | CR77: =IF(AS77>0,1,0) -> 0 | CS77: =IF(AT77>0,1,0) -> 0 | CT77: =IF(AU77>0,1,0) -> 0 | CU77: =IF(AV77>0,1,0) -> 0 | CV77: =IF(AW77>0,1,0) -> 0 | CW77: =IF(AX77>0,1,0) -> 0 | CX77: =IF(AY77>0,1,0) -> 0 | CY77: =IF(AZ77>0,1,0) -> 0 | CZ77: =IF(BA77>0,1,0) -> 0 | DA77: =IF(BB77>0,1,0) -> 0 | DB77: =IF(BC77>0,1,0) -> 0 | DC77: =IF(BD77>0,1,0) -> 0 | DD77: =IF(BE77>0,1,0) -> 0 | DE77: =IF(BF77>0,1,0) -> 0 | DF77: =IF(BG77>0,1,0) -> 0 | DG77: 0
A78: 75 | E78: =COUNT(K78:BH78) -> 0 | F78: =SUM(BJ78:DG78) -> 0 | G78: =SUM(K78:BH78) -> 0 | H78: =IF(E78=0,-0.99,F78/E78) -> -0.99 | I78: =IF(AND(E78>0,E78<0.5*$B$103),-0.01,H78) -> -0.99 | J78: =IF(I78>=0,I78,IF(I78=-0.01,"<1/2","")) ->  | BJ78: =IF(K78>0,1,0) -> 0 | BK78: =IF(L78>0,1,0) -> 0 | BL78: =IF(M78>0,1,0) -> 0 | BM78: =IF(N78>0,1,0) -> 0 | BN78: =IF(O78>0,1,0) -> 0 | BO78: =IF(P78>0,1,0) -> 0 | BP78: =IF(Q78>0,1,0) -> 0 | BQ78: =IF(R78>0,1,0) -> 0 | BR78: =IF(S78>0,1,0) -> 0 | BS78: =IF(T78>0,1,0) -> 0 | BT78: =IF(U78>0,1,0) -> 0 | BU78: =IF(V78>0,1,0) -> 0 | BV78: =IF(W78>0,1,0) -> 0 | BW78: =IF(X78>0,1,0) -> 0 | BX78: =IF(Y78>0,1,0) -> 0 | BY78: =IF(Z78>0,1,0) -> 0 | BZ78: =IF(AA78>0,1,0) -> 0 | CA78: =IF(AB78>0,1,0) -> 0 | CB78: =IF(AC78>0,1,0) -> 0 | CC78: =IF(AD78>0,1,0) -> 0 | CD78: =IF(AE78>0,1,0) -> 0 | CE78: =IF(AF78>0,1,0) -> 0 | CF78: =IF(AG78>0,1,0) -> 0 | CG78: =IF(AH78>0,1,0) -> 0 | CH78: =IF(AI78>0,1,0) -> 0 | CI78: =IF(AJ78>0,1,0) -> 0 | CJ78: =IF(AK78>0,1,0) -> 0 | CK78: =IF(AL78>0,1,0) -> 0 | CL78: =IF(AM78>0,1,0) -> 0 | CM78: =IF(AN78>0,1,0) -> 0 | CN78: =IF(AO78>0,1,0) -> 0 | CO78: =IF(AP78>0,1,0) -> 0 | CP78: =IF(AQ78>0,1,0) -> 0 | CQ78: =IF(AR78>0,1,0) -> 0 | CR78: =IF(AS78>0,1,0) -> 0 | CS78: =IF(AT78>0,1,0) -> 0 | CT78: =IF(AU78>0,1,0) -> 0 | CU78: =IF(AV78>0,1,0) -> 0 | CV78: =IF(AW78>0,1,0) -> 0 | CW78: =IF(AX78>0,1,0) -> 0 | CX78: =IF(AY78>0,1,0) -> 0 | CY78: =IF(AZ78>0,1,0) -> 0 | CZ78: =IF(BA78>0,1,0) -> 0 | DA78: =IF(BB78>0,1,0) -> 0 | DB78: =IF(BC78>0,1,0) -> 0 | DC78: =IF(BD78>0,1,0) -> 0 | DD78: =IF(BE78>0,1,0) -> 0 | DE78: =IF(BF78>0,1,0) -> 0 | DF78: =IF(BG78>0,1,0) -> 0 | DG78: 0
A79: 76 | E79: =COUNT(K79:BH79) -> 0 | F79: =SUM(BJ79:DG79) -> 0 | G79: =SUM(K79:BH79) -> 0 | H79: =IF(E79=0,-0.99,F79/E79) -> -0.99 | I79: =IF(AND(E79>0,E79<0.5*$B$103),-0.01,H79) -> -0.99 | J79: =IF(I79>=0,I79,IF(I79=-0.01,"<1/2","")) ->  | BJ79: =IF(K79>0,1,0) -> 0 | BK79: =IF(L79>0,1,0) -> 0 | BL79: =IF(M79>0,1,0) -> 0 | BM79: =IF(N79>0,1,0) -> 0 | BN79: =IF(O79>0,1,0) -> 0 | BO79: =IF(P79>0,1,0) -> 0 | BP79: =IF(Q79>0,1,0) -> 0 | BQ79: =IF(R79>0,1,0) -> 0 | BR79: =IF(S79>0,1,0) -> 0 | BS79: =IF(T79>0,1,0) -> 0 | BT79: =IF(U79>0,1,0) -> 0 | BU79: =IF(V79>0,1,0) -> 0 | BV79: =IF(W79>0,1,0) -> 0 | BW79: =IF(X79>0,1,0) -> 0 | BX79: =IF(Y79>0,1,0) -> 0 | BY79: =IF(Z79>0,1,0) -> 0 | BZ79: =IF(AA79>0,1,0) -> 0 | CA79: =IF(AB79>0,1,0) -> 0 | CB79: =IF(AC79>0,1,0) -> 0 | CC79: =IF(AD79>0,1,0) -> 0 | CD79: =IF(AE79>0,1,0) -> 0 | CE79: =IF(AF79>0,1,0) -> 0 | CF79: =IF(AG79>0,1,0) -> 0 | CG79: =IF(AH79>0,1,0) -> 0 | CH79: =IF(AI79>0,1,0) -> 0 | CI79: =IF(AJ79>0,1,0) -> 0 | CJ79: =IF(AK79>0,1,0) -> 0 | CK79: =IF(AL79>0,1,0) -> 0 | CL79: =IF(AM79>0,1,0) -> 0 | CM79: =IF(AN79>0,1,0) -> 0 | CN79: =IF(AO79>0,1,0) -> 0 | CO79: =IF(AP79>0,1,0) -> 0 | CP79: =IF(AQ79>0,1,0) -> 0 | CQ79: =IF(AR79>0,1,0) -> 0 | CR79: =IF(AS79>0,1,0) -> 0 | CS79: =IF(AT79>0,1,0) -> 0 | CT79: =IF(AU79>0,1,0) -> 0 | CU79: =IF(AV79>0,1,0) -> 0 | CV79: =IF(AW79>0,1,0) -> 0 | CW79: =IF(AX79>0,1,0) -> 0 | CX79: =IF(AY79>0,1,0) -> 0 | CY79: =IF(AZ79>0,1,0) -> 0 | CZ79: =IF(BA79>0,1,0) -> 0 | DA79: =IF(BB79>0,1,0) -> 0 | DB79: =IF(BC79>0,1,0) -> 0 | DC79: =IF(BD79>0,1,0) -> 0 | DD79: =IF(BE79>0,1,0) -> 0 | DE79: =IF(BF79>0,1,0) -> 0 | DF79: =IF(BG79>0,1,0) -> 0 | DG79: 0
A80: 77 | E80: =COUNT(K80:BH80) -> 0 | F80: =SUM(BJ80:DG80) -> 0 | G80: =SUM(K80:BH80) -> 0 | H80: =IF(E80=0,-0.99,F80/E80) -> -0.99 | I80: =IF(AND(E80>0,E80<0.5*$B$103),-0.01,H80) -> -0.99 | J80: =IF(I80>=0,I80,IF(I80=-0.01,"<1/2","")) ->  | BJ80: =IF(K80>0,1,0) -> 0 | BK80: =IF(L80>0,1,0) -> 0 | BL80: =IF(M80>0,1,0) -> 0 | BM80: =IF(N80>0,1,0) -> 0 | BN80: =IF(O80>0,1,0) -> 0 | BO80: =IF(P80>0,1,0) -> 0 | BP80: =IF(Q80>0,1,0) -> 0 | BQ80: =IF(R80>0,1,0) -> 0 | BR80: =IF(S80>0,1,0) -> 0 | BS80: =IF(T80>0,1,0) -> 0 | BT80: =IF(U80>0,1,0) -> 0 | BU80: =IF(V80>0,1,0) -> 0 | BV80: =IF(W80>0,1,0) -> 0 | BW80: =IF(X80>0,1,0) -> 0 | BX80: =IF(Y80>0,1,0) -> 0 | BY80: =IF(Z80>0,1,0) -> 0 | BZ80: =IF(AA80>0,1,0) -> 0 | CA80: =IF(AB80>0,1,0) -> 0 | CB80: =IF(AC80>0,1,0) -> 0 | CC80: =IF(AD80>0,1,0) -> 0 | CD80: =IF(AE80>0,1,0) -> 0 | CE80: =IF(AF80>0,1,0) -> 0 | CF80: =IF(AG80>0,1,0) -> 0 | CG80: =IF(AH80>0,1,0) -> 0 | CH80: =IF(AI80>0,1,0) -> 0 | CI80: =IF(AJ80>0,1,0) -> 0 | CJ80: =IF(AK80>0,1,0) -> 0 | CK80: =IF(AL80>0,1,0) -> 0 | CL80: =IF(AM80>0,1,0) -> 0 | CM80: =IF(AN80>0,1,0) -> 0 | CN80: =IF(AO80>0,1,0) -> 0 | CO80: =IF(AP80>0,1,0) -> 0 | CP80: =IF(AQ80>0,1,0) -> 0 | CQ80: =IF(AR80>0,1,0) -> 0 | CR80: =IF(AS80>0,1,0) -> 0 | CS80: =IF(AT80>0,1,0) -> 0 | CT80: =IF(AU80>0,1,0) -> 0 | CU80: =IF(AV80>0,1,0) -> 0 | CV80: =IF(AW80>0,1,0) -> 0 | CW80: =IF(AX80>0,1,0) -> 0 | CX80: =IF(AY80>0,1,0) -> 0 | CY80: =IF(AZ80>0,1,0) -> 0 | CZ80: =IF(BA80>0,1,0) -> 0 | DA80: =IF(BB80>0,1,0) -> 0 | DB80: =IF(BC80>0,1,0) -> 0 | DC80: =IF(BD80>0,1,0) -> 0 | DD80: =IF(BE80>0,1,0) -> 0 | DE80: =IF(BF80>0,1,0) -> 0 | DF80: =IF(BG80>0,1,0) -> 0 | DG80: 0
A81: 78 | E81: =COUNT(K81:BH81) -> 0 | F81: =SUM(BJ81:DG81) -> 0 | G81: =SUM(K81:BH81) -> 0 | H81: =IF(E81=0,-0.99,F81/E81) -> -0.99 | I81: =IF(AND(E81>0,E81<0.5*$B$103),-0.01,H81) -> -0.99 | J81: =IF(I81>=0,I81,IF(I81=-0.01,"<1/2","")) ->  | BJ81: =IF(K81>0,1,0) -> 0 | BK81: =IF(L81>0,1,0) -> 0 | BL81: =IF(M81>0,1,0) -> 0 | BM81: =IF(N81>0,1,0) -> 0 | BN81: =IF(O81>0,1,0) -> 0 | BO81: =IF(P81>0,1,0) -> 0 | BP81: =IF(Q81>0,1,0) -> 0 | BQ81: =IF(R81>0,1,0) -> 0 | BR81: =IF(S81>0,1,0) -> 0 | BS81: =IF(T81>0,1,0) -> 0 | BT81: =IF(U81>0,1,0) -> 0 | BU81: =IF(V81>0,1,0) -> 0 | BV81: =IF(W81>0,1,0) -> 0 | BW81: =IF(X81>0,1,0) -> 0 | BX81: =IF(Y81>0,1,0) -> 0 | BY81: =IF(Z81>0,1,0) -> 0 | BZ81: =IF(AA81>0,1,0) -> 0 | CA81: =IF(AB81>0,1,0) -> 0 | CB81: =IF(AC81>0,1,0) -> 0 | CC81: =IF(AD81>0,1,0) -> 0 | CD81: =IF(AE81>0,1,0) -> 0 | CE81: =IF(AF81>0,1,0) -> 0 | CF81: =IF(AG81>0,1,0) -> 0 | CG81: =IF(AH81>0,1,0) -> 0 | CH81: =IF(AI81>0,1,0) -> 0 | CI81: =IF(AJ81>0,1,0) -> 0 | CJ81: =IF(AK81>0,1,0) -> 0 | CK81: =IF(AL81>0,1,0) -> 0 | CL81: =IF(AM81>0,1,0) -> 0 | CM81: =IF(AN81>0,1,0) -> 0 | CN81: =IF(AO81>0,1,0) -> 0 | CO81: =IF(AP81>0,1,0) -> 0 | CP81: =IF(AQ81>0,1,0) -> 0 | CQ81: =IF(AR81>0,1,0) -> 0 | CR81: =IF(AS81>0,1,0) -> 0 | CS81: =IF(AT81>0,1,0) -> 0 | CT81: =IF(AU81>0,1,0) -> 0 | CU81: =IF(AV81>0,1,0) -> 0 | CV81: =IF(AW81>0,1,0) -> 0 | CW81: =IF(AX81>0,1,0) -> 0 | CX81: =IF(AY81>0,1,0) -> 0 | CY81: =IF(AZ81>0,1,0) -> 0 | CZ81: =IF(BA81>0,1,0) -> 0 | DA81: =IF(BB81>0,1,0) -> 0 | DB81: =IF(BC81>0,1,0) -> 0 | DC81: =IF(BD81>0,1,0) -> 0 | DD81: =IF(BE81>0,1,0) -> 0 | DE81: =IF(BF81>0,1,0) -> 0 | DF81: =IF(BG81>0,1,0) -> 0 | DG81: 0
A82: 79 | E82: =COUNT(K82:BH82) -> 0 | F82: =SUM(BJ82:DG82) -> 0 | G82: =SUM(K82:BH82) -> 0 | H82: =IF(E82=0,-0.99,F82/E82) -> -0.99 | I82: =IF(AND(E82>0,E82<0.5*$B$103),-0.01,H82) -> -0.99 | J82: =IF(I82>=0,I82,IF(I82=-0.01,"<1/2","")) ->  | BJ82: =IF(K82>0,1,0) -> 0 | BK82: =IF(L82>0,1,0) -> 0 | BL82: =IF(M82>0,1,0) -> 0 | BM82: =IF(N82>0,1,0) -> 0 | BN82: =IF(O82>0,1,0) -> 0 | BO82: =IF(P82>0,1,0) -> 0 | BP82: =IF(Q82>0,1,0) -> 0 | BQ82: =IF(R82>0,1,0) -> 0 | BR82: =IF(S82>0,1,0) -> 0 | BS82: =IF(T82>0,1,0) -> 0 | BT82: =IF(U82>0,1,0) -> 0 | BU82: =IF(V82>0,1,0) -> 0 | BV82: =IF(W82>0,1,0) -> 0 | BW82: =IF(X82>0,1,0) -> 0 | BX82: =IF(Y82>0,1,0) -> 0 | BY82: =IF(Z82>0,1,0) -> 0 | BZ82: =IF(AA82>0,1,0) -> 0 | CA82: =IF(AB82>0,1,0) -> 0 | CB82: =IF(AC82>0,1,0) -> 0 | CC82: =IF(AD82>0,1,0) -> 0 | CD82: =IF(AE82>0,1,0) -> 0 | CE82: =IF(AF82>0,1,0) -> 0 | CF82: =IF(AG82>0,1,0) -> 0 | CG82: =IF(AH82>0,1,0) -> 0 | CH82: =IF(AI82>0,1,0) -> 0 | CI82: =IF(AJ82>0,1,0) -> 0 | CJ82: =IF(AK82>0,1,0) -> 0 | CK82: =IF(AL82>0,1,0) -> 0 | CL82: =IF(AM82>0,1,0) -> 0 | CM82: =IF(AN82>0,1,0) -> 0 | CN82: =IF(AO82>0,1,0) -> 0 | CO82: =IF(AP82>0,1,0) -> 0 | CP82: =IF(AQ82>0,1,0) -> 0 | CQ82: =IF(AR82>0,1,0) -> 0 | CR82: =IF(AS82>0,1,0) -> 0 | CS82: =IF(AT82>0,1,0) -> 0 | CT82: =IF(AU82>0,1,0) -> 0 | CU82: =IF(AV82>0,1,0) -> 0 | CV82: =IF(AW82>0,1,0) -> 0 | CW82: =IF(AX82>0,1,0) -> 0 | CX82: =IF(AY82>0,1,0) -> 0 | CY82: =IF(AZ82>0,1,0) -> 0 | CZ82: =IF(BA82>0,1,0) -> 0 | DA82: =IF(BB82>0,1,0) -> 0 | DB82: =IF(BC82>0,1,0) -> 0 | DC82: =IF(BD82>0,1,0) -> 0 | DD82: =IF(BE82>0,1,0) -> 0 | DE82: =IF(BF82>0,1,0) -> 0 | DF82: =IF(BG82>0,1,0) -> 0 | DG82: 0
A83: 80 | E83: =COUNT(K83:BH83) -> 0 | F83: =SUM(BJ83:DG83) -> 0 | G83: =SUM(K83:BH83) -> 0 | H83: =IF(E83=0,-0.99,F83/E83) -> -0.99 | I83: =IF(AND(E83>0,E83<0.5*$B$103),-0.01,H83) -> -0.99 | J83: =IF(I83>=0,I83,IF(I83=-0.01,"<1/2","")) ->  | BJ83: =IF(K83>0,1,0) -> 0 | BK83: =IF(L83>0,1,0) -> 0 | BL83: =IF(M83>0,1,0) -> 0 | BM83: =IF(N83>0,1,0) -> 0 | BN83: =IF(O83>0,1,0) -> 0 | BO83: =IF(P83>0,1,0) -> 0 | BP83: =IF(Q83>0,1,0) -> 0 | BQ83: =IF(R83>0,1,0) -> 0 | BR83: =IF(S83>0,1,0) -> 0 | BS83: =IF(T83>0,1,0) -> 0 | BT83: =IF(U83>0,1,0) -> 0 | BU83: =IF(V83>0,1,0) -> 0 | BV83: =IF(W83>0,1,0) -> 0 | BW83: =IF(X83>0,1,0) -> 0 | BX83: =IF(Y83>0,1,0) -> 0 | BY83: =IF(Z83>0,1,0) -> 0 | BZ83: =IF(AA83>0,1,0) -> 0 | CA83: =IF(AB83>0,1,0) -> 0 | CB83: =IF(AC83>0,1,0) -> 0 | CC83: =IF(AD83>0,1,0) -> 0 | CD83: =IF(AE83>0,1,0) -> 0 | CE83: =IF(AF83>0,1,0) -> 0 | CF83: =IF(AG83>0,1,0) -> 0 | CG83: =IF(AH83>0,1,0) -> 0 | CH83: =IF(AI83>0,1,0) -> 0 | CI83: =IF(AJ83>0,1,0) -> 0 | CJ83: =IF(AK83>0,1,0) -> 0 | CK83: =IF(AL83>0,1,0) -> 0 | CL83: =IF(AM83>0,1,0) -> 0 | CM83: =IF(AN83>0,1,0) -> 0 | CN83: =IF(AO83>0,1,0) -> 0 | CO83: =IF(AP83>0,1,0) -> 0 | CP83: =IF(AQ83>0,1,0) -> 0 | CQ83: =IF(AR83>0,1,0) -> 0 | CR83: =IF(AS83>0,1,0) -> 0 | CS83: =IF(AT83>0,1,0) -> 0 | CT83: =IF(AU83>0,1,0) -> 0 | CU83: =IF(AV83>0,1,0) -> 0 | CV83: =IF(AW83>0,1,0) -> 0 | CW83: =IF(AX83>0,1,0) -> 0 | CX83: =IF(AY83>0,1,0) -> 0 | CY83: =IF(AZ83>0,1,0) -> 0 | CZ83: =IF(BA83>0,1,0) -> 0 | DA83: =IF(BB83>0,1,0) -> 0 | DB83: =IF(BC83>0,1,0) -> 0 | DC83: =IF(BD83>0,1,0) -> 0 | DD83: =IF(BE83>0,1,0) -> 0 | DE83: =IF(BF83>0,1,0) -> 0 | DF83: =IF(BG83>0,1,0) -> 0 | DG83: 0
A84: 81 | E84: =COUNT(K84:BH84) -> 0 | F84: =SUM(BJ84:DG84) -> 0 | G84: =SUM(K84:BH84) -> 0 | H84: =IF(E84=0,-0.99,F84/E84) -> -0.99 | I84: =IF(AND(E84>0,E84<0.5*$B$103),-0.01,H84) -> -0.99 | J84: =IF(I84>=0,I84,IF(I84=-0.01,"<1/2","")) ->  | BJ84: =IF(K84>0,1,0) -> 0 | BK84: =IF(L84>0,1,0) -> 0 | BL84: =IF(M84>0,1,0) -> 0 | BM84: =IF(N84>0,1,0) -> 0 | BN84: =IF(O84>0,1,0) -> 0 | BO84: =IF(P84>0,1,0) -> 0 | BP84: =IF(Q84>0,1,0) -> 0 | BQ84: =IF(R84>0,1,0) -> 0 | BR84: =IF(S84>0,1,0) -> 0 | BS84: =IF(T84>0,1,0) -> 0 | BT84: =IF(U84>0,1,0) -> 0 | BU84: =IF(V84>0,1,0) -> 0 | BV84: =IF(W84>0,1,0) -> 0 | BW84: =IF(X84>0,1,0) -> 0 | BX84: =IF(Y84>0,1,0) -> 0 | BY84: =IF(Z84>0,1,0) -> 0 | BZ84: =IF(AA84>0,1,0) -> 0 | CA84: =IF(AB84>0,1,0) -> 0 | CB84: =IF(AC84>0,1,0) -> 0 | CC84: =IF(AD84>0,1,0) -> 0 | CD84: =IF(AE84>0,1,0) -> 0 | CE84: =IF(AF84>0,1,0) -> 0 | CF84: =IF(AG84>0,1,0) -> 0 | CG84: =IF(AH84>0,1,0) -> 0 | CH84: =IF(AI84>0,1,0) -> 0 | CI84: =IF(AJ84>0,1,0) -> 0 | CJ84: =IF(AK84>0,1,0) -> 0 | CK84: =IF(AL84>0,1,0) -> 0 | CL84: =IF(AM84>0,1,0) -> 0 | CM84: =IF(AN84>0,1,0) -> 0 | CN84: =IF(AO84>0,1,0) -> 0 | CO84: =IF(AP84>0,1,0) -> 0 | CP84: =IF(AQ84>0,1,0) -> 0 | CQ84: =IF(AR84>0,1,0) -> 0 | CR84: =IF(AS84>0,1,0) -> 0 | CS84: =IF(AT84>0,1,0) -> 0 | CT84: =IF(AU84>0,1,0) -> 0 | CU84: =IF(AV84>0,1,0) -> 0 | CV84: =IF(AW84>0,1,0) -> 0 | CW84: =IF(AX84>0,1,0) -> 0 | CX84: =IF(AY84>0,1,0) -> 0 | CY84: =IF(AZ84>0,1,0) -> 0 | CZ84: =IF(BA84>0,1,0) -> 0 | DA84: =IF(BB84>0,1,0) -> 0 | DB84: =IF(BC84>0,1,0) -> 0 | DC84: =IF(BD84>0,1,0) -> 0 | DD84: =IF(BE84>0,1,0) -> 0 | DE84: =IF(BF84>0,1,0) -> 0 | DF84: =IF(BG84>0,1,0) -> 0 | DG84: 0
A85: 82 | E85: =COUNT(K85:BH85) -> 0 | F85: =SUM(BJ85:DG85) -> 0 | G85: =SUM(K85:BH85) -> 0 | H85: =IF(E85=0,-0.99,F85/E85) -> -0.99 | I85: =IF(AND(E85>0,E85<0.5*$B$103),-0.01,H85) -> -0.99 | J85: =IF(I85>=0,I85,IF(I85=-0.01,"<1/2","")) ->  | BJ85: =IF(K85>0,1,0) -> 0 | BK85: =IF(L85>0,1,0) -> 0 | BL85: =IF(M85>0,1,0) -> 0 | BM85: =IF(N85>0,1,0) -> 0 | BN85: =IF(O85>0,1,0) -> 0 | BO85: =IF(P85>0,1,0) -> 0 | BP85: =IF(Q85>0,1,0) -> 0 | BQ85: =IF(R85>0,1,0) -> 0 | BR85: =IF(S85>0,1,0) -> 0 | BS85: =IF(T85>0,1,0) -> 0 | BT85: =IF(U85>0,1,0) -> 0 | BU85: =IF(V85>0,1,0) -> 0 | BV85: =IF(W85>0,1,0) -> 0 | BW85: =IF(X85>0,1,0) -> 0 | BX85: =IF(Y85>0,1,0) -> 0 | BY85: =IF(Z85>0,1,0) -> 0 | BZ85: =IF(AA85>0,1,0) -> 0 | CA85: =IF(AB85>0,1,0) -> 0 | CB85: =IF(AC85>0,1,0) -> 0 | CC85: =IF(AD85>0,1,0) -> 0 | CD85: =IF(AE85>0,1,0) -> 0 | CE85: =IF(AF85>0,1,0) -> 0 | CF85: =IF(AG85>0,1,0) -> 0 | CG85: =IF(AH85>0,1,0) -> 0 | CH85: =IF(AI85>0,1,0) -> 0 | CI85: =IF(AJ85>0,1,0) -> 0 | CJ85: =IF(AK85>0,1,0) -> 0 | CK85: =IF(AL85>0,1,0) -> 0 | CL85: =IF(AM85>0,1,0) -> 0 | CM85: =IF(AN85>0,1,0) -> 0 | CN85: =IF(AO85>0,1,0) -> 0 | CO85: =IF(AP85>0,1,0) -> 0 | CP85: =IF(AQ85>0,1,0) -> 0 | CQ85: =IF(AR85>0,1,0) -> 0 | CR85: =IF(AS85>0,1,0) -> 0 | CS85: =IF(AT85>0,1,0) -> 0 | CT85: =IF(AU85>0,1,0) -> 0 | CU85: =IF(AV85>0,1,0) -> 0 | CV85: =IF(AW85>0,1,0) -> 0 | CW85: =IF(AX85>0,1,0) -> 0 | CX85: =IF(AY85>0,1,0) -> 0 | CY85: =IF(AZ85>0,1,0) -> 0 | CZ85: =IF(BA85>0,1,0) -> 0 | DA85: =IF(BB85>0,1,0) -> 0 | DB85: =IF(BC85>0,1,0) -> 0 | DC85: =IF(BD85>0,1,0) -> 0 | DD85: =IF(BE85>0,1,0) -> 0 | DE85: =IF(BF85>0,1,0) -> 0 | DF85: =IF(BG85>0,1,0) -> 0 | DG85: 0
A86: 83 | E86: =COUNT(K86:BH86) -> 0 | F86: =SUM(BJ86:DG86) -> 0 | G86: =SUM(K86:BH86) -> 0 | H86: =IF(E86=0,-0.99,F86/E86) -> -0.99 | I86: =IF(AND(E86>0,E86<0.5*$B$103),-0.01,H86) -> -0.99 | J86: =IF(I86>=0,I86,IF(I86=-0.01,"<1/2","")) ->  | BJ86: =IF(K86>0,1,0) -> 0 | BK86: =IF(L86>0,1,0) -> 0 | BL86: =IF(M86>0,1,0) -> 0 | BM86: =IF(N86>0,1,0) -> 0 | BN86: =IF(O86>0,1,0) -> 0 | BO86: =IF(P86>0,1,0) -> 0 | BP86: =IF(Q86>0,1,0) -> 0 | BQ86: =IF(R86>0,1,0) -> 0 | BR86: =IF(S86>0,1,0) -> 0 | BS86: =IF(T86>0,1,0) -> 0 | BT86: =IF(U86>0,1,0) -> 0 | BU86: =IF(V86>0,1,0) -> 0 | BV86: =IF(W86>0,1,0) -> 0 | BW86: =IF(X86>0,1,0) -> 0 | BX86: =IF(Y86>0,1,0) -> 0 | BY86: =IF(Z86>0,1,0) -> 0 | BZ86: =IF(AA86>0,1,0) -> 0 | CA86: =IF(AB86>0,1,0) -> 0 | CB86: =IF(AC86>0,1,0) -> 0 | CC86: =IF(AD86>0,1,0) -> 0 | CD86: =IF(AE86>0,1,0) -> 0 | CE86: =IF(AF86>0,1,0) -> 0 | CF86: =IF(AG86>0,1,0) -> 0 | CG86: =IF(AH86>0,1,0) -> 0 | CH86: =IF(AI86>0,1,0) -> 0 | CI86: =IF(AJ86>0,1,0) -> 0 | CJ86: =IF(AK86>0,1,0) -> 0 | CK86: =IF(AL86>0,1,0) -> 0 | CL86: =IF(AM86>0,1,0) -> 0 | CM86: =IF(AN86>0,1,0) -> 0 | CN86: =IF(AO86>0,1,0) -> 0 | CO86: =IF(AP86>0,1,0) -> 0 | CP86: =IF(AQ86>0,1,0) -> 0 | CQ86: =IF(AR86>0,1,0) -> 0 | CR86: =IF(AS86>0,1,0) -> 0 | CS86: =IF(AT86>0,1,0) -> 0 | CT86: =IF(AU86>0,1,0) -> 0 | CU86: =IF(AV86>0,1,0) -> 0 | CV86: =IF(AW86>0,1,0) -> 0 | CW86: =IF(AX86>0,1,0) -> 0 | CX86: =IF(AY86>0,1,0) -> 0 | CY86: =IF(AZ86>0,1,0) -> 0 | CZ86: =IF(BA86>0,1,0) -> 0 | DA86: =IF(BB86>0,1,0) -> 0 | DB86: =IF(BC86>0,1,0) -> 0 | DC86: =IF(BD86>0,1,0) -> 0 | DD86: =IF(BE86>0,1,0) -> 0 | DE86: =IF(BF86>0,1,0) -> 0 | DF86: =IF(BG86>0,1,0) -> 0 | DG86: 0
A87: 84 | E87: =COUNT(K87:BH87) -> 0 | F87: =SUM(BJ87:DG87) -> 0 | G87: =SUM(K87:BH87) -> 0 | H87: =IF(E87=0,-0.99,F87/E87) -> -0.99 | I87: =IF(AND(E87>0,E87<0.5*$B$103),-0.01,H87) -> -0.99 | J87: =IF(I87>=0,I87,IF(I87=-0.01,"<1/2","")) ->  | BJ87: =IF(K87>0,1,0) -> 0 | BK87: =IF(L87>0,1,0) -> 0 | BL87: =IF(M87>0,1,0) -> 0 | BM87: =IF(N87>0,1,0) -> 0 | BN87: =IF(O87>0,1,0) -> 0 | BO87: =IF(P87>0,1,0) -> 0 | BP87: =IF(Q87>0,1,0) -> 0 | BQ87: =IF(R87>0,1,0) -> 0 | BR87: =IF(S87>0,1,0) -> 0 | BS87: =IF(T87>0,1,0) -> 0 | BT87: =IF(U87>0,1,0) -> 0 | BU87: =IF(V87>0,1,0) -> 0 | BV87: =IF(W87>0,1,0) -> 0 | BW87: =IF(X87>0,1,0) -> 0 | BX87: =IF(Y87>0,1,0) -> 0 | BY87: =IF(Z87>0,1,0) -> 0 | BZ87: =IF(AA87>0,1,0) -> 0 | CA87: =IF(AB87>0,1,0) -> 0 | CB87: =IF(AC87>0,1,0) -> 0 | CC87: =IF(AD87>0,1,0) -> 0 | CD87: =IF(AE87>0,1,0) -> 0 | CE87: =IF(AF87>0,1,0) -> 0 | CF87: =IF(AG87>0,1,0) -> 0 | CG87: =IF(AH87>0,1,0) -> 0 | CH87: =IF(AI87>0,1,0) -> 0 | CI87: =IF(AJ87>0,1,0) -> 0 | CJ87: =IF(AK87>0,1,0) -> 0 | CK87: =IF(AL87>0,1,0) -> 0 | CL87: =IF(AM87>0,1,0) -> 0 | CM87: =IF(AN87>0,1,0) -> 0 | CN87: =IF(AO87>0,1,0) -> 0 | CO87: =IF(AP87>0,1,0) -> 0 | CP87: =IF(AQ87>0,1,0) -> 0 | CQ87: =IF(AR87>0,1,0) -> 0 | CR87: =IF(AS87>0,1,0) -> 0 | CS87: =IF(AT87>0,1,0) -> 0 | CT87: =IF(AU87>0,1,0) -> 0 | CU87: =IF(AV87>0,1,0) -> 0 | CV87: =IF(AW87>0,1,0) -> 0 | CW87: =IF(AX87>0,1,0) -> 0 | CX87: =IF(AY87>0,1,0) -> 0 | CY87: =IF(AZ87>0,1,0) -> 0 | CZ87: =IF(BA87>0,1,0) -> 0 | DA87: =IF(BB87>0,1,0) -> 0 | DB87: =IF(BC87>0,1,0) -> 0 | DC87: =IF(BD87>0,1,0) -> 0 | DD87: =IF(BE87>0,1,0) -> 0 | DE87: =IF(BF87>0,1,0) -> 0 | DF87: =IF(BG87>0,1,0) -> 0 | DG87: 0
A88: 85 | E88: =COUNT(K88:BH88) -> 0 | F88: =SUM(BJ88:DG88) -> 0 | G88: =SUM(K88:BH88) -> 0 | H88: =IF(E88=0,-0.99,F88/E88) -> -0.99 | I88: =IF(AND(E88>0,E88<0.5*$B$103),-0.01,H88) -> -0.99 | J88: =IF(I88>=0,I88,IF(I88=-0.01,"<1/2","")) ->  | BJ88: =IF(K88>0,1,0) -> 0 | BK88: =IF(L88>0,1,0) -> 0 | BL88: =IF(M88>0,1,0) -> 0 | BM88: =IF(N88>0,1,0) -> 0 | BN88: =IF(O88>0,1,0) -> 0 | BO88: =IF(P88>0,1,0) -> 0 | BP88: =IF(Q88>0,1,0) -> 0 | BQ88: =IF(R88>0,1,0) -> 0 | BR88: =IF(S88>0,1,0) -> 0 | BS88: =IF(T88>0,1,0) -> 0 | BT88: =IF(U88>0,1,0) -> 0 | BU88: =IF(V88>0,1,0) -> 0 | BV88: =IF(W88>0,1,0) -> 0 | BW88: =IF(X88>0,1,0) -> 0 | BX88: =IF(Y88>0,1,0) -> 0 | BY88: =IF(Z88>0,1,0) -> 0 | BZ88: =IF(AA88>0,1,0) -> 0 | CA88: =IF(AB88>0,1,0) -> 0 | CB88: =IF(AC88>0,1,0) -> 0 | CC88: =IF(AD88>0,1,0) -> 0 | CD88: =IF(AE88>0,1,0) -> 0 | CE88: =IF(AF88>0,1,0) -> 0 | CF88: =IF(AG88>0,1,0) -> 0 | CG88: =IF(AH88>0,1,0) -> 0 | CH88: =IF(AI88>0,1,0) -> 0 | CI88: =IF(AJ88>0,1,0) -> 0 | CJ88: =IF(AK88>0,1,0) -> 0 | CK88: =IF(AL88>0,1,0) -> 0 | CL88: =IF(AM88>0,1,0) -> 0 | CM88: =IF(AN88>0,1,0) -> 0 | CN88: =IF(AO88>0,1,0) -> 0 | CO88: =IF(AP88>0,1,0) -> 0 | CP88: =IF(AQ88>0,1,0) -> 0 | CQ88: =IF(AR88>0,1,0) -> 0 | CR88: =IF(AS88>0,1,0) -> 0 | CS88: =IF(AT88>0,1,0) -> 0 | CT88: =IF(AU88>0,1,0) -> 0 | CU88: =IF(AV88>0,1,0) -> 0 | CV88: =IF(AW88>0,1,0) -> 0 | CW88: =IF(AX88>0,1,0) -> 0 | CX88: =IF(AY88>0,1,0) -> 0 | CY88: =IF(AZ88>0,1,0) -> 0 | CZ88: =IF(BA88>0,1,0) -> 0 | DA88: =IF(BB88>0,1,0) -> 0 | DB88: =IF(BC88>0,1,0) -> 0 | DC88: =IF(BD88>0,1,0) -> 0 | DD88: =IF(BE88>0,1,0) -> 0 | DE88: =IF(BF88>0,1,0) -> 0 | DF88: =IF(BG88>0,1,0) -> 0 | DG88: 0
A89: 86 | E89: =COUNT(K89:BH89) -> 0 | F89: =SUM(BJ89:DG89) -> 0 | G89: =SUM(K89:BH89) -> 0 | H89: =IF(E89=0,-0.99,F89/E89) -> -0.99 | I89: =IF(AND(E89>0,E89<0.5*$B$103),-0.01,H89) -> -0.99 | J89: =IF(I89>=0,I89,IF(I89=-0.01,"<1/2","")) ->  | BJ89: =IF(K89>0,1,0) -> 0 | BK89: =IF(L89>0,1,0) -> 0 | BL89: =IF(M89>0,1,0) -> 0 | BM89: =IF(N89>0,1,0) -> 0 | BN89: =IF(O89>0,1,0) -> 0 | BO89: =IF(P89>0,1,0) -> 0 | BP89: =IF(Q89>0,1,0) -> 0 | BQ89: =IF(R89>0,1,0) -> 0 | BR89: =IF(S89>0,1,0) -> 0 | BS89: =IF(T89>0,1,0) -> 0 | BT89: =IF(U89>0,1,0) -> 0 | BU89: =IF(V89>0,1,0) -> 0 | BV89: =IF(W89>0,1,0) -> 0 | BW89: =IF(X89>0,1,0) -> 0 | BX89: =IF(Y89>0,1,0) -> 0 | BY89: =IF(Z89>0,1,0) -> 0 | BZ89: =IF(AA89>0,1,0) -> 0 | CA89: =IF(AB89>0,1,0) -> 0 | CB89: =IF(AC89>0,1,0) -> 0 | CC89: =IF(AD89>0,1,0) -> 0 | CD89: =IF(AE89>0,1,0) -> 0 | CE89: =IF(AF89>0,1,0) -> 0 | CF89: =IF(AG89>0,1,0) -> 0 | CG89: =IF(AH89>0,1,0) -> 0 | CH89: =IF(AI89>0,1,0) -> 0 | CI89: =IF(AJ89>0,1,0) -> 0 | CJ89: =IF(AK89>0,1,0) -> 0 | CK89: =IF(AL89>0,1,0) -> 0 | CL89: =IF(AM89>0,1,0) -> 0 | CM89: =IF(AN89>0,1,0) -> 0 | CN89: =IF(AO89>0,1,0) -> 0 | CO89: =IF(AP89>0,1,0) -> 0 | CP89: =IF(AQ89>0,1,0) -> 0 | CQ89: =IF(AR89>0,1,0) -> 0 | CR89: =IF(AS89>0,1,0) -> 0 | CS89: =IF(AT89>0,1,0) -> 0 | CT89: =IF(AU89>0,1,0) -> 0 | CU89: =IF(AV89>0,1,0) -> 0 | CV89: =IF(AW89>0,1,0) -> 0 | CW89: =IF(AX89>0,1,0) -> 0 | CX89: =IF(AY89>0,1,0) -> 0 | CY89: =IF(AZ89>0,1,0) -> 0 | CZ89: =IF(BA89>0,1,0) -> 0 | DA89: =IF(BB89>0,1,0) -> 0 | DB89: =IF(BC89>0,1,0) -> 0 | DC89: =IF(BD89>0,1,0) -> 0 | DD89: =IF(BE89>0,1,0) -> 0 | DE89: =IF(BF89>0,1,0) -> 0 | DF89: =IF(BG89>0,1,0) -> 0 | DG89: 0
A90: 87 | E90: =COUNT(K90:BH90) -> 0 | F90: =SUM(BJ90:DG90) -> 0 | G90: =SUM(K90:BH90) -> 0 | H90: =IF(E90=0,-0.99,F90/E90) -> -0.99 | I90: =IF(AND(E90>0,E90<0.5*$B$103),-0.01,H90) -> -0.99 | J90: =IF(I90>=0,I90,IF(I90=-0.01,"<1/2","")) ->  | BJ90: =IF(K90>0,1,0) -> 0 | BK90: =IF(L90>0,1,0) -> 0 | BL90: =IF(M90>0,1,0) -> 0 | BM90: =IF(N90>0,1,0) -> 0 | BN90: =IF(O90>0,1,0) -> 0 | BO90: =IF(P90>0,1,0) -> 0 | BP90: =IF(Q90>0,1,0) -> 0 | BQ90: =IF(R90>0,1,0) -> 0 | BR90: =IF(S90>0,1,0) -> 0 | BS90: =IF(T90>0,1,0) -> 0 | BT90: =IF(U90>0,1,0) -> 0 | BU90: =IF(V90>0,1,0) -> 0 | BV90: =IF(W90>0,1,0) -> 0 | BW90: =IF(X90>0,1,0) -> 0 | BX90: =IF(Y90>0,1,0) -> 0 | BY90: =IF(Z90>0,1,0) -> 0 | BZ90: =IF(AA90>0,1,0) -> 0 | CA90: =IF(AB90>0,1,0) -> 0 | CB90: =IF(AC90>0,1,0) -> 0 | CC90: =IF(AD90>0,1,0) -> 0 | CD90: =IF(AE90>0,1,0) -> 0 | CE90: =IF(AF90>0,1,0) -> 0 | CF90: =IF(AG90>0,1,0) -> 0 | CG90: =IF(AH90>0,1,0) -> 0 | CH90: =IF(AI90>0,1,0) -> 0 | CI90: =IF(AJ90>0,1,0) -> 0 | CJ90: =IF(AK90>0,1,0) -> 0 | CK90: =IF(AL90>0,1,0) -> 0 | CL90: =IF(AM90>0,1,0) -> 0 | CM90: =IF(AN90>0,1,0) -> 0 | CN90: =IF(AO90>0,1,0) -> 0 | CO90: =IF(AP90>0,1,0) -> 0 | CP90: =IF(AQ90>0,1,0) -> 0 | CQ90: =IF(AR90>0,1,0) -> 0 | CR90: =IF(AS90>0,1,0) -> 0 | CS90: =IF(AT90>0,1,0) -> 0 | CT90: =IF(AU90>0,1,0) -> 0 | CU90: =IF(AV90>0,1,0) -> 0 | CV90: =IF(AW90>0,1,0) -> 0 | CW90: =IF(AX90>0,1,0) -> 0 | CX90: =IF(AY90>0,1,0) -> 0 | CY90: =IF(AZ90>0,1,0) -> 0 | CZ90: =IF(BA90>0,1,0) -> 0 | DA90: =IF(BB90>0,1,0) -> 0 | DB90: =IF(BC90>0,1,0) -> 0 | DC90: =IF(BD90>0,1,0) -> 0 | DD90: =IF(BE90>0,1,0) -> 0 | DE90: =IF(BF90>0,1,0) -> 0 | DF90: =IF(BG90>0,1,0) -> 0 | DG90: 0
A91: 88 | E91: =COUNT(K91:BH91) -> 0 | F91: =SUM(BJ91:DG91) -> 0 | G91: =SUM(K91:BH91) -> 0 | H91: =IF(E91=0,-0.99,F91/E91) -> -0.99 | I91: =IF(AND(E91>0,E91<0.5*$B$103),-0.01,H91) -> -0.99 | J91: =IF(I91>=0,I91,IF(I91=-0.01,"<1/2","")) ->  | BJ91: =IF(K91>0,1,0) -> 0 | BK91: =IF(L91>0,1,0) -> 0 | BL91: =IF(M91>0,1,0) -> 0 | BM91: =IF(N91>0,1,0) -> 0 | BN91: =IF(O91>0,1,0) -> 0 | BO91: =IF(P91>0,1,0) -> 0 | BP91: =IF(Q91>0,1,0) -> 0 | BQ91: =IF(R91>0,1,0) -> 0 | BR91: =IF(S91>0,1,0) -> 0 | BS91: =IF(T91>0,1,0) -> 0 | BT91: =IF(U91>0,1,0) -> 0 | BU91: =IF(V91>0,1,0) -> 0 | BV91: =IF(W91>0,1,0) -> 0 | BW91: =IF(X91>0,1,0) -> 0 | BX91: =IF(Y91>0,1,0) -> 0 | BY91: =IF(Z91>0,1,0) -> 0 | BZ91: =IF(AA91>0,1,0) -> 0 | CA91: =IF(AB91>0,1,0) -> 0 | CB91: =IF(AC91>0,1,0) -> 0 | CC91: =IF(AD91>0,1,0) -> 0 | CD91: =IF(AE91>0,1,0) -> 0 | CE91: =IF(AF91>0,1,0) -> 0 | CF91: =IF(AG91>0,1,0) -> 0 | CG91: =IF(AH91>0,1,0) -> 0 | CH91: =IF(AI91>0,1,0) -> 0 | CI91: =IF(AJ91>0,1,0) -> 0 | CJ91: =IF(AK91>0,1,0) -> 0 | CK91: =IF(AL91>0,1,0) -> 0 | CL91: =IF(AM91>0,1,0) -> 0 | CM91: =IF(AN91>0,1,0) -> 0 | CN91: =IF(AO91>0,1,0) -> 0 | CO91: =IF(AP91>0,1,0) -> 0 | CP91: =IF(AQ91>0,1,0) -> 0 | CQ91: =IF(AR91>0,1,0) -> 0 | CR91: =IF(AS91>0,1,0) -> 0 | CS91: =IF(AT91>0,1,0) -> 0 | CT91: =IF(AU91>0,1,0) -> 0 | CU91: =IF(AV91>0,1,0) -> 0 | CV91: =IF(AW91>0,1,0) -> 0 | CW91: =IF(AX91>0,1,0) -> 0 | CX91: =IF(AY91>0,1,0) -> 0 | CY91: =IF(AZ91>0,1,0) -> 0 | CZ91: =IF(BA91>0,1,0) -> 0 | DA91: =IF(BB91>0,1,0) -> 0 | DB91: =IF(BC91>0,1,0) -> 0 | DC91: =IF(BD91>0,1,0) -> 0 | DD91: =IF(BE91>0,1,0) -> 0 | DE91: =IF(BF91>0,1,0) -> 0 | DF91: =IF(BG91>0,1,0) -> 0 | DG91: 0
A92: 89 | E92: =COUNT(K92:BH92) -> 0 | F92: =SUM(BJ92:DG92) -> 0 | G92: =SUM(K92:BH92) -> 0 | H92: =IF(E92=0,-0.99,F92/E92) -> -0.99 | I92: =IF(AND(E92>0,E92<0.5*$B$103),-0.01,H92) -> -0.99 | J92: =IF(I92>=0,I92,IF(I92=-0.01,"<1/2","")) ->  | BJ92: =IF(K92>0,1,0) -> 0 | BK92: =IF(L92>0,1,0) -> 0 | BL92: =IF(M92>0,1,0) -> 0 | BM92: =IF(N92>0,1,0) -> 0 | BN92: =IF(O92>0,1,0) -> 0 | BO92: =IF(P92>0,1,0) -> 0 | BP92: =IF(Q92>0,1,0) -> 0 | BQ92: =IF(R92>0,1,0) -> 0 | BR92: =IF(S92>0,1,0) -> 0 | BS92: =IF(T92>0,1,0) -> 0 | BT92: =IF(U92>0,1,0) -> 0 | BU92: =IF(V92>0,1,0) -> 0 | BV92: =IF(W92>0,1,0) -> 0 | BW92: =IF(X92>0,1,0) -> 0 | BX92: =IF(Y92>0,1,0) -> 0 | BY92: =IF(Z92>0,1,0) -> 0 | BZ92: =IF(AA92>0,1,0) -> 0 | CA92: =IF(AB92>0,1,0) -> 0 | CB92: =IF(AC92>0,1,0) -> 0 | CC92: =IF(AD92>0,1,0) -> 0 | CD92: =IF(AE92>0,1,0) -> 0 | CE92: =IF(AF92>0,1,0) -> 0 | CF92: =IF(AG92>0,1,0) -> 0 | CG92: =IF(AH92>0,1,0) -> 0 | CH92: =IF(AI92>0,1,0) -> 0 | CI92: =IF(AJ92>0,1,0) -> 0 | CJ92: =IF(AK92>0,1,0) -> 0 | CK92: =IF(AL92>0,1,0) -> 0 | CL92: =IF(AM92>0,1,0) -> 0 | CM92: =IF(AN92>0,1,0) -> 0 | CN92: =IF(AO92>0,1,0) -> 0 | CO92: =IF(AP92>0,1,0) -> 0 | CP92: =IF(AQ92>0,1,0) -> 0 | CQ92: =IF(AR92>0,1,0) -> 0 | CR92: =IF(AS92>0,1,0) -> 0 | CS92: =IF(AT92>0,1,0) -> 0 | CT92: =IF(AU92>0,1,0) -> 0 | CU92: =IF(AV92>0,1,0) -> 0 | CV92: =IF(AW92>0,1,0) -> 0 | CW92: =IF(AX92>0,1,0) -> 0 | CX92: =IF(AY92>0,1,0) -> 0 | CY92: =IF(AZ92>0,1,0) -> 0 | CZ92: =IF(BA92>0,1,0) -> 0 | DA92: =IF(BB92>0,1,0) -> 0 | DB92: =IF(BC92>0,1,0) -> 0 | DC92: =IF(BD92>0,1,0) -> 0 | DD92: =IF(BE92>0,1,0) -> 0 | DE92: =IF(BF92>0,1,0) -> 0 | DF92: =IF(BG92>0,1,0) -> 0 | DG92: 0
A93: 90 | E93: =COUNT(K93:BH93) -> 0 | F93: =SUM(BJ93:DG93) -> 0 | G93: =SUM(K93:BH93) -> 0 | H93: =IF(E93=0,-0.99,F93/E93) -> -0.99 | I93: =IF(AND(E93>0,E93<0.5*$B$103),-0.01,H93) -> -0.99 | J93: =IF(I93>=0,I93,IF(I93=-0.01,"<1/2","")) ->  | BJ93: =IF(K93>0,1,0) -> 0 | BK93: =IF(L93>0,1,0) -> 0 | BL93: =IF(M93>0,1,0) -> 0 | BM93: =IF(N93>0,1,0) -> 0 | BN93: =IF(O93>0,1,0) -> 0 | BO93: =IF(P93>0,1,0) -> 0 | BP93: =IF(Q93>0,1,0) -> 0 | BQ93: =IF(R93>0,1,0) -> 0 | BR93: =IF(S93>0,1,0) -> 0 | BS93: =IF(T93>0,1,0) -> 0 | BT93: =IF(U93>0,1,0) -> 0 | BU93: =IF(V93>0,1,0) -> 0 | BV93: =IF(W93>0,1,0) -> 0 | BW93: =IF(X93>0,1,0) -> 0 | BX93: =IF(Y93>0,1,0) -> 0 | BY93: =IF(Z93>0,1,0) -> 0 | BZ93: =IF(AA93>0,1,0) -> 0 | CA93: =IF(AB93>0,1,0) -> 0 | CB93: =IF(AC93>0,1,0) -> 0 | CC93: =IF(AD93>0,1,0) -> 0 | CD93: =IF(AE93>0,1,0) -> 0 | CE93: =IF(AF93>0,1,0) -> 0 | CF93: =IF(AG93>0,1,0) -> 0 | CG93: =IF(AH93>0,1,0) -> 0 | CH93: =IF(AI93>0,1,0) -> 0 | CI93: =IF(AJ93>0,1,0) -> 0 | CJ93: =IF(AK93>0,1,0) -> 0 | CK93: =IF(AL93>0,1,0) -> 0 | CL93: =IF(AM93>0,1,0) -> 0 | CM93: =IF(AN93>0,1,0) -> 0 | CN93: =IF(AO93>0,1,0) -> 0 | CO93: =IF(AP93>0,1,0) -> 0 | CP93: =IF(AQ93>0,1,0) -> 0 | CQ93: =IF(AR93>0,1,0) -> 0 | CR93: =IF(AS93>0,1,0) -> 0 | CS93: =IF(AT93>0,1,0) -> 0 | CT93: =IF(AU93>0,1,0) -> 0 | CU93: =IF(AV93>0,1,0) -> 0 | CV93: =IF(AW93>0,1,0) -> 0 | CW93: =IF(AX93>0,1,0) -> 0 | CX93: =IF(AY93>0,1,0) -> 0 | CY93: =IF(AZ93>0,1,0) -> 0 | CZ93: =IF(BA93>0,1,0) -> 0 | DA93: =IF(BB93>0,1,0) -> 0 | DB93: =IF(BC93>0,1,0) -> 0 | DC93: =IF(BD93>0,1,0) -> 0 | DD93: =IF(BE93>0,1,0) -> 0 | DE93: =IF(BF93>0,1,0) -> 0 | DF93: =IF(BG93>0,1,0) -> 0 | DG93: 0
A94: 91 | E94: =COUNT(K94:BH94) -> 0 | F94: =SUM(BJ94:DG94) -> 0 | G94: =SUM(K94:BH94) -> 0 | H94: =IF(E94=0,-0.99,F94/E94) -> -0.99 | I94: =IF(AND(E94>0,E94<0.5*$B$103),-0.01,H94) -> -0.99 | J94: =IF(I94>=0,I94,IF(I94=-0.01,"<1/2","")) ->  | BJ94: =IF(K94>0,1,0) -> 0 | BK94: =IF(L94>0,1,0) -> 0 | BL94: =IF(M94>0,1,0) -> 0 | BM94: =IF(N94>0,1,0) -> 0 | BN94: =IF(O94>0,1,0) -> 0 | BO94: =IF(P94>0,1,0) -> 0 | BP94: =IF(Q94>0,1,0) -> 0 | BQ94: =IF(R94>0,1,0) -> 0 | BR94: =IF(S94>0,1,0) -> 0 | BS94: =IF(T94>0,1,0) -> 0 | BT94: =IF(U94>0,1,0) -> 0 | BU94: =IF(V94>0,1,0) -> 0 | BV94: =IF(W94>0,1,0) -> 0 | BW94: =IF(X94>0,1,0) -> 0 | BX94: =IF(Y94>0,1,0) -> 0 | BY94: =IF(Z94>0,1,0) -> 0 | BZ94: =IF(AA94>0,1,0) -> 0 | CA94: =IF(AB94>0,1,0) -> 0 | CB94: =IF(AC94>0,1,0) -> 0 | CC94: =IF(AD94>0,1,0) -> 0 | CD94: =IF(AE94>0,1,0) -> 0 | CE94: =IF(AF94>0,1,0) -> 0 | CF94: =IF(AG94>0,1,0) -> 0 | CG94: =IF(AH94>0,1,0) -> 0 | CH94: =IF(AI94>0,1,0) -> 0 | CI94: =IF(AJ94>0,1,0) -> 0 | CJ94: =IF(AK94>0,1,0) -> 0 | CK94: =IF(AL94>0,1,0) -> 0 | CL94: =IF(AM94>0,1,0) -> 0 | CM94: =IF(AN94>0,1,0) -> 0 | CN94: =IF(AO94>0,1,0) -> 0 | CO94: =IF(AP94>0,1,0) -> 0 | CP94: =IF(AQ94>0,1,0) -> 0 | CQ94: =IF(AR94>0,1,0) -> 0 | CR94: =IF(AS94>0,1,0) -> 0 | CS94: =IF(AT94>0,1,0) -> 0 | CT94: =IF(AU94>0,1,0) -> 0 | CU94: =IF(AV94>0,1,0) -> 0 | CV94: =IF(AW94>0,1,0) -> 0 | CW94: =IF(AX94>0,1,0) -> 0 | CX94: =IF(AY94>0,1,0) -> 0 | CY94: =IF(AZ94>0,1,0) -> 0 | CZ94: =IF(BA94>0,1,0) -> 0 | DA94: =IF(BB94>0,1,0) -> 0 | DB94: =IF(BC94>0,1,0) -> 0 | DC94: =IF(BD94>0,1,0) -> 0 | DD94: =IF(BE94>0,1,0) -> 0 | DE94: =IF(BF94>0,1,0) -> 0 | DF94: =IF(BG94>0,1,0) -> 0 | DG94: 0
A95: 92 | E95: =COUNT(K95:BH95) -> 0 | F95: =SUM(BJ95:DG95) -> 0 | G95: =SUM(K95:BH95) -> 0 | H95: =IF(E95=0,-0.99,F95/E95) -> -0.99 | I95: =IF(AND(E95>0,E95<0.5*$B$103),-0.01,H95) -> -0.99 | J95: =IF(I95>=0,I95,IF(I95=-0.01,"<1/2","")) ->  | BJ95: =IF(K95>0,1,0) -> 0 | BK95: =IF(L95>0,1,0) -> 0 | BL95: =IF(M95>0,1,0) -> 0 | BM95: =IF(N95>0,1,0) -> 0 | BN95: =IF(O95>0,1,0) -> 0 | BO95: =IF(P95>0,1,0) -> 0 | BP95: =IF(Q95>0,1,0) -> 0 | BQ95: =IF(R95>0,1,0) -> 0 | BR95: =IF(S95>0,1,0) -> 0 | BS95: =IF(T95>0,1,0) -> 0 | BT95: =IF(U95>0,1,0) -> 0 | BU95: =IF(V95>0,1,0) -> 0 | BV95: =IF(W95>0,1,0) -> 0 | BW95: =IF(X95>0,1,0) -> 0 | BX95: =IF(Y95>0,1,0) -> 0 | BY95: =IF(Z95>0,1,0) -> 0 | BZ95: =IF(AA95>0,1,0) -> 0 | CA95: =IF(AB95>0,1,0) -> 0 | CB95: =IF(AC95>0,1,0) -> 0 | CC95: =IF(AD95>0,1,0) -> 0 | CD95: =IF(AE95>0,1,0) -> 0 | CE95: =IF(AF95>0,1,0) -> 0 | CF95: =IF(AG95>0,1,0) -> 0 | CG95: =IF(AH95>0,1,0) -> 0 | CH95: =IF(AI95>0,1,0) -> 0 | CI95: =IF(AJ95>0,1,0) -> 0 | CJ95: =IF(AK95>0,1,0) -> 0 | CK95: =IF(AL95>0,1,0) -> 0 | CL95: =IF(AM95>0,1,0) -> 0 | CM95: =IF(AN95>0,1,0) -> 0 | CN95: =IF(AO95>0,1,0) -> 0 | CO95: =IF(AP95>0,1,0) -> 0 | CP95: =IF(AQ95>0,1,0) -> 0 | CQ95: =IF(AR95>0,1,0) -> 0 | CR95: =IF(AS95>0,1,0) -> 0 | CS95: =IF(AT95>0,1,0) -> 0 | CT95: =IF(AU95>0,1,0) -> 0 | CU95: =IF(AV95>0,1,0) -> 0 | CV95: =IF(AW95>0,1,0) -> 0 | CW95: =IF(AX95>0,1,0) -> 0 | CX95: =IF(AY95>0,1,0) -> 0 | CY95: =IF(AZ95>0,1,0) -> 0 | CZ95: =IF(BA95>0,1,0) -> 0 | DA95: =IF(BB95>0,1,0) -> 0 | DB95: =IF(BC95>0,1,0) -> 0 | DC95: =IF(BD95>0,1,0) -> 0 | DD95: =IF(BE95>0,1,0) -> 0 | DE95: =IF(BF95>0,1,0) -> 0 | DF95: =IF(BG95>0,1,0) -> 0 | DG95: 0
A96: 93 | E96: =COUNT(K96:BH96) -> 0 | F96: =SUM(BJ96:DG96) -> 0 | G96: =SUM(K96:BH96) -> 0 | H96: =IF(E96=0,-0.99,F96/E96) -> -0.99 | I96: =IF(AND(E96>0,E96<0.5*$B$103),-0.01,H96) -> -0.99 | J96: =IF(I96>=0,I96,IF(I96=-0.01,"<1/2","")) ->  | BJ96: =IF(K96>0,1,0) -> 0 | BK96: =IF(L96>0,1,0) -> 0 | BL96: =IF(M96>0,1,0) -> 0 | BM96: =IF(N96>0,1,0) -> 0 | BN96: =IF(O96>0,1,0) -> 0 | BO96: =IF(P96>0,1,0) -> 0 | BP96: =IF(Q96>0,1,0) -> 0 | BQ96: =IF(R96>0,1,0) -> 0 | BR96: =IF(S96>0,1,0) -> 0 | BS96: =IF(T96>0,1,0) -> 0 | BT96: =IF(U96>0,1,0) -> 0 | BU96: =IF(V96>0,1,0) -> 0 | BV96: =IF(W96>0,1,0) -> 0 | BW96: =IF(X96>0,1,0) -> 0 | BX96: =IF(Y96>0,1,0) -> 0 | BY96: =IF(Z96>0,1,0) -> 0 | BZ96: =IF(AA96>0,1,0) -> 0 | CA96: =IF(AB96>0,1,0) -> 0 | CB96: =IF(AC96>0,1,0) -> 0 | CC96: =IF(AD96>0,1,0) -> 0 | CD96: =IF(AE96>0,1,0) -> 0 | CE96: =IF(AF96>0,1,0) -> 0 | CF96: =IF(AG96>0,1,0) -> 0 | CG96: =IF(AH96>0,1,0) -> 0 | CH96: =IF(AI96>0,1,0) -> 0 | CI96: =IF(AJ96>0,1,0) -> 0 | CJ96: =IF(AK96>0,1,0) -> 0 | CK96: =IF(AL96>0,1,0) -> 0 | CL96: =IF(AM96>0,1,0) -> 0 | CM96: =IF(AN96>0,1,0) -> 0 | CN96: =IF(AO96>0,1,0) -> 0 | CO96: =IF(AP96>0,1,0) -> 0 | CP96: =IF(AQ96>0,1,0) -> 0 | CQ96: =IF(AR96>0,1,0) -> 0 | CR96: =IF(AS96>0,1,0) -> 0 | CS96: =IF(AT96>0,1,0) -> 0 | CT96: =IF(AU96>0,1,0) -> 0 | CU96: =IF(AV96>0,1,0) -> 0 | CV96: =IF(AW96>0,1,0) -> 0 | CW96: =IF(AX96>0,1,0) -> 0 | CX96: =IF(AY96>0,1,0) -> 0 | CY96: =IF(AZ96>0,1,0) -> 0 | CZ96: =IF(BA96>0,1,0) -> 0 | DA96: =IF(BB96>0,1,0) -> 0 | DB96: =IF(BC96>0,1,0) -> 0 | DC96: =IF(BD96>0,1,0) -> 0 | DD96: =IF(BE96>0,1,0) -> 0 | DE96: =IF(BF96>0,1,0) -> 0 | DF96: =IF(BG96>0,1,0) -> 0 | DG96: 0
A97: 94 | E97: =COUNT(K97:BH97) -> 0 | F97: =SUM(BJ97:DG97) -> 0 | G97: =SUM(K97:BH97) -> 0 | H97: =IF(E97=0,-0.99,F97/E97) -> -0.99 | I97: =IF(AND(E97>0,E97<0.5*$B$103),-0.01,H97) -> -0.99 | J97: =IF(I97>=0,I97,IF(I97=-0.01,"<1/2","")) ->  | BJ97: =IF(K97>0,1,0) -> 0 | BK97: =IF(L97>0,1,0) -> 0 | BL97: =IF(M97>0,1,0) -> 0 | BM97: =IF(N97>0,1,0) -> 0 | BN97: =IF(O97>0,1,0) -> 0 | BO97: =IF(P97>0,1,0) -> 0 | BP97: =IF(Q97>0,1,0) -> 0 | BQ97: =IF(R97>0,1,0) -> 0 | BR97: =IF(S97>0,1,0) -> 0 | BS97: =IF(T97>0,1,0) -> 0 | BT97: =IF(U97>0,1,0) -> 0 | BU97: =IF(V97>0,1,0) -> 0 | BV97: =IF(W97>0,1,0) -> 0 | BW97: =IF(X97>0,1,0) -> 0 | BX97: =IF(Y97>0,1,0) -> 0 | BY97: =IF(Z97>0,1,0) -> 0 | BZ97: =IF(AA97>0,1,0) -> 0 | CA97: =IF(AB97>0,1,0) -> 0 | CB97: =IF(AC97>0,1,0) -> 0 | CC97: =IF(AD97>0,1,0) -> 0 | CD97: =IF(AE97>0,1,0) -> 0 | CE97: =IF(AF97>0,1,0) -> 0 | CF97: =IF(AG97>0,1,0) -> 0 | CG97: =IF(AH97>0,1,0) -> 0 | CH97: =IF(AI97>0,1,0) -> 0 | CI97: =IF(AJ97>0,1,0) -> 0 | CJ97: =IF(AK97>0,1,0) -> 0 | CK97: =IF(AL97>0,1,0) -> 0 | CL97: =IF(AM97>0,1,0) -> 0 | CM97: =IF(AN97>0,1,0) -> 0 | CN97: =IF(AO97>0,1,0) -> 0 | CO97: =IF(AP97>0,1,0) -> 0 | CP97: =IF(AQ97>0,1,0) -> 0 | CQ97: =IF(AR97>0,1,0) -> 0 | CR97: =IF(AS97>0,1,0) -> 0 | CS97: =IF(AT97>0,1,0) -> 0 | CT97: =IF(AU97>0,1,0) -> 0 | CU97: =IF(AV97>0,1,0) -> 0 | CV97: =IF(AW97>0,1,0) -> 0 | CW97: =IF(AX97>0,1,0) -> 0 | CX97: =IF(AY97>0,1,0) -> 0 | CY97: =IF(AZ97>0,1,0) -> 0 | CZ97: =IF(BA97>0,1,0) -> 0 | DA97: =IF(BB97>0,1,0) -> 0 | DB97: =IF(BC97>0,1,0) -> 0 | DC97: =IF(BD97>0,1,0) -> 0 | DD97: =IF(BE97>0,1,0) -> 0 | DE97: =IF(BF97>0,1,0) -> 0 | DF97: =IF(BG97>0,1,0) -> 0 | DG97: 0
A98: 95 | E98: =COUNT(K98:BH98) -> 0 | F98: =SUM(BJ98:DG98) -> 0 | G98: =SUM(K98:BH98) -> 0 | H98: =IF(E98=0,-0.99,F98/E98) -> -0.99 | I98: =IF(AND(E98>0,E98<0.5*$B$103),-0.01,H98) -> -0.99 | J98: =IF(I98>=0,I98,IF(I98=-0.01,"<1/2","")) ->  | BJ98: =IF(K98>0,1,0) -> 0 | BK98: =IF(L98>0,1,0) -> 0 | BL98: =IF(M98>0,1,0) -> 0 | BM98: =IF(N98>0,1,0) -> 0 | BN98: =IF(O98>0,1,0) -> 0 | BO98: =IF(P98>0,1,0) -> 0 | BP98: =IF(Q98>0,1,0) -> 0 | BQ98: =IF(R98>0,1,0) -> 0 | BR98: =IF(S98>0,1,0) -> 0 | BS98: =IF(T98>0,1,0) -> 0 | BT98: =IF(U98>0,1,0) -> 0 | BU98: =IF(V98>0,1,0) -> 0 | BV98: =IF(W98>0,1,0) -> 0 | BW98: =IF(X98>0,1,0) -> 0 | BX98: =IF(Y98>0,1,0) -> 0 | BY98: =IF(Z98>0,1,0) -> 0 | BZ98: =IF(AA98>0,1,0) -> 0 | CA98: =IF(AB98>0,1,0) -> 0 | CB98: =IF(AC98>0,1,0) -> 0 | CC98: =IF(AD98>0,1,0) -> 0 | CD98: =IF(AE98>0,1,0) -> 0 | CE98: =IF(AF98>0,1,0) -> 0 | CF98: =IF(AG98>0,1,0) -> 0 | CG98: =IF(AH98>0,1,0) -> 0 | CH98: =IF(AI98>0,1,0) -> 0 | CI98: =IF(AJ98>0,1,0) -> 0 | CJ98: =IF(AK98>0,1,0) -> 0 | CK98: =IF(AL98>0,1,0) -> 0 | CL98: =IF(AM98>0,1,0) -> 0 | CM98: =IF(AN98>0,1,0) -> 0 | CN98: =IF(AO98>0,1,0) -> 0 | CO98: =IF(AP98>0,1,0) -> 0 | CP98: =IF(AQ98>0,1,0) -> 0 | CQ98: =IF(AR98>0,1,0) -> 0 | CR98: =IF(AS98>0,1,0) -> 0 | CS98: =IF(AT98>0,1,0) -> 0 | CT98: =IF(AU98>0,1,0) -> 0 | CU98: =IF(AV98>0,1,0) -> 0 | CV98: =IF(AW98>0,1,0) -> 0 | CW98: =IF(AX98>0,1,0) -> 0 | CX98: =IF(AY98>0,1,0) -> 0 | CY98: =IF(AZ98>0,1,0) -> 0 | CZ98: =IF(BA98>0,1,0) -> 0 | DA98: =IF(BB98>0,1,0) -> 0 | DB98: =IF(BC98>0,1,0) -> 0 | DC98: =IF(BD98>0,1,0) -> 0 | DD98: =IF(BE98>0,1,0) -> 0 | DE98: =IF(BF98>0,1,0) -> 0 | DF98: =IF(BG98>0,1,0) -> 0 | DG98: 0
A99: 96 | E99: =COUNT(K99:BH99) -> 0 | F99: =SUM(BJ99:DG99) -> 0 | G99: =SUM(K99:BH99) -> 0 | H99: =IF(E99=0,-0.99,F99/E99) -> -0.99 | I99: =IF(AND(E99>0,E99<0.5*$B$103),-0.01,H99) -> -0.99 | J99: =IF(I99>=0,I99,IF(I99=-0.01,"<1/2","")) ->  | BJ99: =IF(K99>0,1,0) -> 0 | BK99: =IF(L99>0,1,0) -> 0 | BL99: =IF(M99>0,1,0) -> 0 | BM99: =IF(N99>0,1,0) -> 0 | BN99: =IF(O99>0,1,0) -> 0 | BO99: =IF(P99>0,1,0) -> 0 | BP99: =IF(Q99>0,1,0) -> 0 | BQ99: =IF(R99>0,1,0) -> 0 | BR99: =IF(S99>0,1,0) -> 0 | BS99: =IF(T99>0,1,0) -> 0 | BT99: =IF(U99>0,1,0) -> 0 | BU99: =IF(V99>0,1,0) -> 0 | BV99: =IF(W99>0,1,0) -> 0 | BW99: =IF(X99>0,1,0) -> 0 | BX99: =IF(Y99>0,1,0) -> 0 | BY99: =IF(Z99>0,1,0) -> 0 | BZ99: =IF(AA99>0,1,0) -> 0 | CA99: =IF(AB99>0,1,0) -> 0 | CB99: =IF(AC99>0,1,0) -> 0 | CC99: =IF(AD99>0,1,0) -> 0 | CD99: =IF(AE99>0,1,0) -> 0 | CE99: =IF(AF99>0,1,0) -> 0 | CF99: =IF(AG99>0,1,0) -> 0 | CG99: =IF(AH99>0,1,0) -> 0 | CH99: =IF(AI99>0,1,0) -> 0 | CI99: =IF(AJ99>0,1,0) -> 0 | CJ99: =IF(AK99>0,1,0) -> 0 | CK99: =IF(AL99>0,1,0) -> 0 | CL99: =IF(AM99>0,1,0) -> 0 | CM99: =IF(AN99>0,1,0) -> 0 | CN99: =IF(AO99>0,1,0) -> 0 | CO99: =IF(AP99>0,1,0) -> 0 | CP99: =IF(AQ99>0,1,0) -> 0 | CQ99: =IF(AR99>0,1,0) -> 0 | CR99: =IF(AS99>0,1,0) -> 0 | CS99: =IF(AT99>0,1,0) -> 0 | CT99: =IF(AU99>0,1,0) -> 0 | CU99: =IF(AV99>0,1,0) -> 0 | CV99: =IF(AW99>0,1,0) -> 0 | CW99: =IF(AX99>0,1,0) -> 0 | CX99: =IF(AY99>0,1,0) -> 0 | CY99: =IF(AZ99>0,1,0) -> 0 | CZ99: =IF(BA99>0,1,0) -> 0 | DA99: =IF(BB99>0,1,0) -> 0 | DB99: =IF(BC99>0,1,0) -> 0 | DC99: =IF(BD99>0,1,0) -> 0 | DD99: =IF(BE99>0,1,0) -> 0 | DE99: =IF(BF99>0,1,0) -> 0 | DF99: =IF(BG99>0,1,0) -> 0 | DG99: 0
A100: 97 | E100: =COUNT(K100:BH100) -> 0 | F100: =SUM(BJ100:DG100) -> 0 | G100: =SUM(K100:BH100) -> 0 | H100: =IF(E100=0,-0.99,F100/E100) -> -0.99 | I100: =IF(AND(E100>0,E100<0.5*$B$103),-0.01,H100) -> -0.99 | J100: =IF(I100>=0,I100,IF(I100=-0.01,"<1/2","")) ->  | BJ100: =IF(K100>0,1,0) -> 0 | BK100: =IF(L100>0,1,0) -> 0 | BL100: =IF(M100>0,1,0) -> 0 | BM100: =IF(N100>0,1,0) -> 0 | BN100: =IF(O100>0,1,0) -> 0 | BO100: =IF(P100>0,1,0) -> 0 | BP100: =IF(Q100>0,1,0) -> 0 | BQ100: =IF(R100>0,1,0) -> 0 | BR100: =IF(S100>0,1,0) -> 0 | BS100: =IF(T100>0,1,0) -> 0 | BT100: =IF(U100>0,1,0) -> 0 | BU100: =IF(V100>0,1,0) -> 0 | BV100: =IF(W100>0,1,0) -> 0 | BW100: =IF(X100>0,1,0) -> 0 | BX100: =IF(Y100>0,1,0) -> 0 | BY100: =IF(Z100>0,1,0) -> 0 | BZ100: =IF(AA100>0,1,0) -> 0 | CA100: =IF(AB100>0,1,0) -> 0 | CB100: =IF(AC100>0,1,0) -> 0 | CC100: =IF(AD100>0,1,0) -> 0 | CD100: =IF(AE100>0,1,0) -> 0 | CE100: =IF(AF100>0,1,0) -> 0 | CF100: =IF(AG100>0,1,0) -> 0 | CG100: =IF(AH100>0,1,0) -> 0 | CH100: =IF(AI100>0,1,0) -> 0 | CI100: =IF(AJ100>0,1,0) -> 0 | CJ100: =IF(AK100>0,1,0) -> 0 | CK100: =IF(AL100>0,1,0) -> 0 | CL100: =IF(AM100>0,1,0) -> 0 | CM100: =IF(AN100>0,1,0) -> 0 | CN100: =IF(AO100>0,1,0) -> 0 | CO100: =IF(AP100>0,1,0) -> 0 | CP100: =IF(AQ100>0,1,0) -> 0 | CQ100: =IF(AR100>0,1,0) -> 0 | CR100: =IF(AS100>0,1,0) -> 0 | CS100: =IF(AT100>0,1,0) -> 0 | CT100: =IF(AU100>0,1,0) -> 0 | CU100: =IF(AV100>0,1,0) -> 0 | CV100: =IF(AW100>0,1,0) -> 0 | CW100: =IF(AX100>0,1,0) -> 0 | CX100: =IF(AY100>0,1,0) -> 0 | CY100: =IF(AZ100>0,1,0) -> 0 | CZ100: =IF(BA100>0,1,0) -> 0 | DA100: =IF(BB100>0,1,0) -> 0 | DB100: =IF(BC100>0,1,0) -> 0 | DC100: =IF(BD100>0,1,0) -> 0 | DD100: =IF(BE100>0,1,0) -> 0 | DE100: =IF(BF100>0,1,0) -> 0 | DF100: =IF(BG100>0,1,0) -> 0 | DG100: 0
A101: 98 | E101: =COUNT(K101:BH101) -> 0 | F101: =SUM(BJ101:DG101) -> 0 | G101: =SUM(K101:BH101) -> 0 | H101: =IF(E101=0,-0.99,F101/E101) -> -0.99 | I101: =IF(AND(E101>0,E101<0.5*$B$103),-0.01,H101) -> -0.99 | J101: =IF(I101>=0,I101,IF(I101=-0.01,"<1/2","")) ->  | BJ101: =IF(K101>0,1,0) -> 0 | BK101: =IF(L101>0,1,0) -> 0 | BL101: =IF(M101>0,1,0) -> 0 | BM101: =IF(N101>0,1,0) -> 0 | BN101: =IF(O101>0,1,0) -> 0 | BO101: =IF(P101>0,1,0) -> 0 | BP101: =IF(Q101>0,1,0) -> 0 | BQ101: =IF(R101>0,1,0) -> 0 | BR101: =IF(S101>0,1,0) -> 0 | BS101: =IF(T101>0,1,0) -> 0 | BT101: =IF(U101>0,1,0) -> 0 | BU101: =IF(V101>0,1,0) -> 0 | BV101: =IF(W101>0,1,0) -> 0 | BW101: =IF(X101>0,1,0) -> 0 | BX101: =IF(Y101>0,1,0) -> 0 | BY101: =IF(Z101>0,1,0) -> 0 | BZ101: =IF(AA101>0,1,0) -> 0 | CA101: =IF(AB101>0,1,0) -> 0 | CB101: =IF(AC101>0,1,0) -> 0 | CC101: =IF(AD101>0,1,0) -> 0 | CD101: =IF(AE101>0,1,0) -> 0 | CE101: =IF(AF101>0,1,0) -> 0 | CF101: =IF(AG101>0,1,0) -> 0 | CG101: =IF(AH101>0,1,0) -> 0 | CH101: =IF(AI101>0,1,0) -> 0 | CI101: =IF(AJ101>0,1,0) -> 0 | CJ101: =IF(AK101>0,1,0) -> 0 | CK101: =IF(AL101>0,1,0) -> 0 | CL101: =IF(AM101>0,1,0) -> 0 | CM101: =IF(AN101>0,1,0) -> 0 | CN101: =IF(AO101>0,1,0) -> 0 | CO101: =IF(AP101>0,1,0) -> 0 | CP101: =IF(AQ101>0,1,0) -> 0 | CQ101: =IF(AR101>0,1,0) -> 0 | CR101: =IF(AS101>0,1,0) -> 0 | CS101: =IF(AT101>0,1,0) -> 0 | CT101: =IF(AU101>0,1,0) -> 0 | CU101: =IF(AV101>0,1,0) -> 0 | CV101: =IF(AW101>0,1,0) -> 0 | CW101: =IF(AX101>0,1,0) -> 0 | CX101: =IF(AY101>0,1,0) -> 0 | CY101: =IF(AZ101>0,1,0) -> 0 | CZ101: =IF(BA101>0,1,0) -> 0 | DA101: =IF(BB101>0,1,0) -> 0 | DB101: =IF(BC101>0,1,0) -> 0 | DC101: =IF(BD101>0,1,0) -> 0 | DD101: =IF(BE101>0,1,0) -> 0 | DE101: =IF(BF101>0,1,0) -> 0 | DF101: =IF(BG101>0,1,0) -> 0 | DG101: 0
A102: 99 | E102: =COUNT(K102:BH102) -> 0 | F102: =SUM(BJ102:DG102) -> 0 | G102: =SUM(K102:BH102) -> 0 | H102: =IF(E102=0,-0.99,F102/E102) -> -0.99 | I102: =IF(AND(E102>0,E102<0.5*$B$103),-0.01,H102) -> -0.99 | J102: =IF(I102>=0,I102,IF(I102=-0.01,"<1/2","")) ->  | BJ102: =IF(K102>0,1,0) -> 0 | BK102: =IF(L102>0,1,0) -> 0 | BL102: =IF(M102>0,1,0) -> 0 | BM102: =IF(N102>0,1,0) -> 0 | BN102: =IF(O102>0,1,0) -> 0 | BO102: =IF(P102>0,1,0) -> 0 | BP102: =IF(Q102>0,1,0) -> 0 | BQ102: =IF(R102>0,1,0) -> 0 | BR102: =IF(S102>0,1,0) -> 0 | BS102: =IF(T102>0,1,0) -> 0 | BT102: =IF(U102>0,1,0) -> 0 | BU102: =IF(V102>0,1,0) -> 0 | BV102: =IF(W102>0,1,0) -> 0 | BW102: =IF(X102>0,1,0) -> 0 | BX102: =IF(Y102>0,1,0) -> 0 | BY102: =IF(Z102>0,1,0) -> 0 | BZ102: =IF(AA102>0,1,0) -> 0 | CA102: =IF(AB102>0,1,0) -> 0 | CB102: =IF(AC102>0,1,0) -> 0 | CC102: =IF(AD102>0,1,0) -> 0 | CD102: =IF(AE102>0,1,0) -> 0 | CE102: =IF(AF102>0,1,0) -> 0 | CF102: =IF(AG102>0,1,0) -> 0 | CG102: =IF(AH102>0,1,0) -> 0 | CH102: =IF(AI102>0,1,0) -> 0 | CI102: =IF(AJ102>0,1,0) -> 0 | CJ102: =IF(AK102>0,1,0) -> 0 | CK102: =IF(AL102>0,1,0) -> 0 | CL102: =IF(AM102>0,1,0) -> 0 | CM102: =IF(AN102>0,1,0) -> 0 | CN102: =IF(AO102>0,1,0) -> 0 | CO102: =IF(AP102>0,1,0) -> 0 | CP102: =IF(AQ102>0,1,0) -> 0 | CQ102: =IF(AR102>0,1,0) -> 0 | CR102: =IF(AS102>0,1,0) -> 0 | CS102: =IF(AT102>0,1,0) -> 0 | CT102: =IF(AU102>0,1,0) -> 0 | CU102: =IF(AV102>0,1,0) -> 0 | CV102: =IF(AW102>0,1,0) -> 0 | CW102: =IF(AX102>0,1,0) -> 0 | CX102: =IF(AY102>0,1,0) -> 0 | CY102: =IF(AZ102>0,1,0) -> 0 | CZ102: =IF(BA102>0,1,0) -> 0 | DA102: =IF(BB102>0,1,0) -> 0 | DB102: =IF(BC102>0,1,0) -> 0 | DC102: =IF(BD102>0,1,0) -> 0 | DD102: =IF(BE102>0,1,0) -> 0 | DE102: =IF(BF102>0,1,0) -> 0 | DF102: =IF(BG102>0,1,0) -> 0 | DG102: 0
B103: =COUNT(BJ103:DG103) -> 22 | C103: = | D103: aantal wedstijden | G103: Aantal | H103: spelers | I103: è | K103: =COUNT(K4:K102) -> 44 | L103: =COUNT(L4:L102) -> 44 | M103: 41 | N103: 41 | O103: 45 | P103: 45 | Q103: 50 | R103: 50 | S103: 44 | T103: 44 | U103: 46 | V103: 46 | W103: 46 | X103: 46 | Y103: 44 | Z103: 44 | AA103: 44 | AB103: 44 | AC103: 45 | AD103: 45 | AE103: 44 | AF103: 44 | AG103: 0 | AH103: 0 | AI103: 0 | AJ103: 0 | AK103: 0 | AL103: 0 | AM103: 0 | AN103: 0 | AO103: 0 | AP103: 0 | AQ103: 0 | AR103: 0 | AS103: 0 | AT103: 0 | AU103: 0 | AV103: 0 | AW103: 0 | AX103: 0 | AY103: 0 | AZ103: 0 | BA103: 0 | BB103: 0 | BC103: 0 | BD103: 0 | BE103: 0 | BF103: 0 | BG103: 0 | BH103: 0 | BJ103: =IF(K103>0,1,"") -> 1 | BK103: =IF(L103>0,1,"") -> 1 | BL103: 1 | BM103: 1 | BN103: 1 | BO103: 1 | BP103: 1 | BQ103: 1 | BR103: 1 | BS103: 1 | BT103: 1 | BU103: 1 | BV103: 1 | BW103: 1 | BX103: 1 | BY103: 1 | BZ103: 1 | CA103: 1 | CB103: 1 | CC103: 1 | CD103: 1 | CE103: 1
